Ref No,Fund Type,Dept,Cost Centre Description    ,Description    ,Creditor Name    ,GL Code Net Amount,Payment date        
2,Revenue,CAHD,Central - Commissioned Services,Permanent Residential,1 St Georges House,13333.52, 16-Nov-2021
3,Revenue,CAHD,Early Years High Needs Support,Other Private Contractors,100 Acre Wood Day Nursery,880.71, 22-Nov-2021
4,Revenue,CAHD,Supporting People Programme,Grants to Voluntary Bodies,1625 Independent People,15167.00, 01-Nov-2021
5,Revenue,CAHD,South - Commissioned Services,Permanent Residential,2Nd Floor Building,5630.76, 16-Nov-2021
6,Revenue,CAHD,South - Commissioned Services,Permanent Residential,2Nd Floor Building,2806.12, 16-Nov-2021
7,Revenue,CAHD,Central - Commissioned Services,Other Small Contracts,3 Trees Community Support Ltd,7485.27, 08-Nov-2021
8,Revenue,CAHD,Central - Commissioned Services,Supported Living,3 Trees Community Support Ltd,3001.06, 08-Nov-2021
9,Revenue,CAHD,Central - Commissioned Services,Other Small Contracts,3 Trees Community Support Ltd,7542.39, 10-Nov-2021
10,Revenue,CAHD,Central - Commissioned Services,Supported Living,3 Trees Community Support Ltd,3005.78, 10-Nov-2021
11,Revenue,CAHD,Central - Commissioned Services,Other Small Contracts,3 Trees Community Support Ltd,7655.89, 10-Nov-2021
12,Revenue,CAHD,Central - Commissioned Services,Supported Living,3 Trees Community Support Ltd,3004.69, 10-Nov-2021
13,Revenue,CAHD,Central - Commissioned Services,Other Small Contracts,3 Trees Community Support Ltd,7528.64, 26-Nov-2021
14,Revenue,CAHD,Central - Commissioned Services,Supported Living,3 Trees Community Support Ltd,3004.69, 26-Nov-2021
15,Revenue,CAHD,Central - Commissioned Services,Other Small Contracts,3 Trees Community Support Ltd,7691.52, 26-Nov-2021
16,Revenue,CAHD,Central - Commissioned Services,Supported Living,3 Trees Community Support Ltd,2997.43, 26-Nov-2021
17,Revenue,CAHD,Central - Commissioned Services,Permanent Residential,5Th Floor Harlech Court,18007.03, 16-Nov-2021
18,Revenue,CAHD,Central - Commissioned Services,Fees & Charges Income - General,5Th Floor Harlech Court,516.80, 16-Nov-2021
19,Revenue,CAHD,North - Community based support,Permanent Residential,5Th Floor Harlech Court,82326.79, 16-Nov-2021
20,Revenue,CAHD,South - Commissioned Services,Permanent Residential,5Th Floor Harlech Court,17391.48, 16-Nov-2021
21,Revenue,CAHD,South - Commissioned Services,Permanent Residential,5Th Floor Harlech Court,18290.84, 16-Nov-2021
22,Revenue,CAHD,S28A cases,Permanent Residential,5Th Floor Harlech Court,11378.60, 16-Nov-2021
23,Revenue,CAHD,South - Commissioned Services,Permanent Residential,5Th Floor Harlech Court,11933.40, 16-Nov-2021
24,Revenue,CAHD,North - Community based support,Permanent Residential,5Th Floor Harlech Court,12498.56, 16-Nov-2021
25,Revenue,CAHD,North - Community based support,Permanent Residential,5Th Floor Harlech Court,10537.24, 16-Nov-2021
26,Revenue,CAHD,North - Community based support,Permanent Residential,5Th Floor Harlech Court,9071.12, 16-Nov-2021
27,Revenue,CAHD,Alexandra Way,Mechanical & Electrical Maintenance,A E Horder (Contracting) Limited,2328.15, 26-Nov-2021
28,Revenue,CAHD,EARLY YEARS DEPRIVATION PAYMENT,Preventative Assistance,Abacus @ Baileys Court Activity Centre,717.43, 12-Nov-2021
29,Revenue,CAHD,Early Years Inclusion Fund,Other Public Bodies,Abacus Pre-School,1000.00, 22-Nov-2021
30,Revenue,CAHD,EARLY YEARS DEPRIVATION PAYMENT,Preventative Assistance,Abacus Pre-School (Meadowbrook),717.43, 12-Nov-2021
31,Revenue,CAHD,CSC - Legal Fees,Legal Fees,Individual,2500.00, 01-Nov-2021
32,Revenue,CAHD,South - Commissioned Services,Permanent Nursing,Acacia House,3085.88, 16-Nov-2021
33,Revenue,CAHD,LSE - Schools Priority Support,Training Expenses,ACAS,860.00, 25-Nov-2021
34,Revenue,CAHD,Home Care Monitoring (CM2000),Other Supplies & Services,Access UK Limited,14507.33, 12-Nov-2021
35,Revenue,CAHD,Central - Commissioned Services,Permanent Residential,Acer House Care Home.,3800.00, 16-Nov-2021
36,Revenue,CAHD,CSC - Residential Placements,Permanent Residential,Acorn Care & Education Ltd,8228.57, 22-Nov-2021
37,Revenue,CAHD,CSC - Residential Placements,Permanent Residential,Acorn Care & Education Ltd,17005.71, 26-Nov-2021
38,Revenue,CAHD,Jointly Funded H&SC Packages,Permanent Residential,Acorn Care Providers,2366.36, 16-Nov-2021
39,Revenue,CAHD,Section 117 Placements MH Younger,Permanent Residential,Acorn Care Providers,5605.08, 16-Nov-2021
40,Revenue,CAHD,North - S117,Permanent Residential,Acorn Care Providers,4067.36, 16-Nov-2021
41,Revenue,CAHD,Jointly Funded H&SC Packages,Permanent Residential,Acorn Care Providers,2193.40, 16-Nov-2021
42,Revenue,CAHD,MH Purchasing - Younger,Permanent Residential,Acorn Care Providers,6528.83, 16-Nov-2021
43,Revenue,CAHD,Jointly Funded H&SC Packages,Permanent Residential,Acorn Care Providers,3515.53, 16-Nov-2021
44,Revenue,CAHD,MH Purchasing - Younger,Permanent Residential,Acorn Care Providers,6411.00, 16-Nov-2021
45,Revenue,CAHD,Covid - ASC - Infection Control,Grants to Voluntary Bodies,Acorn Care Providers,1006.47, 30-Nov-2021
46,Revenue,CAHD,ASC Rapid Testing Fund,Grants to Voluntary Bodies,Acorn Care Providers,715.14, 30-Nov-2021
47,Revenue,CAHD,Training - Adult Services,Training Expenses,Acorn Health & Safety Limited,620.00, 04-Nov-2021
48,Revenue,CAHD,Training Budget - Children`s Social Serv,Training Expenses,Acorn Health & Safety Limited,449.00, 04-Nov-2021
49,Revenue,CAHD,Training Budget - Children`s Social Serv,Training Expenses,Acorn Health & Safety Limited,449.00, 08-Nov-2021
50,Revenue,CAHD,CSC - Agency Fostering,Foster Parent Allowances,Action for Children,3897.01, 19-Nov-2021
51,Revenue,CAHD,CSC - Agency Fostering,Foster Parent Allowances,Action for Children,599.25, 19-Nov-2021
52,Revenue,CAHD,CSC - Agency Fostering,Foster Parent Allowances,Action for Children,599.25, 19-Nov-2021
53,Revenue,CAHD,CSC - Agency Fostering,Foster Parent Allowances,Action for Children,3715.35, 19-Nov-2021
54,Revenue,CAHD,CSC - Agency Fostering,Foster Parent Allowances,Action for Children,3715.35, 19-Nov-2021
55,Revenue,CAHD,CSC - Agency Fostering,Foster Parent Allowances,Action for Children,3595.50, 19-Nov-2021
56,Revenue,CAHD,CSC - Agency Fostering,Foster Parent Allowances,Action for Children,3595.50, 19-Nov-2021
57,Revenue,CAHD,CSC - Agency Fostering,Foster Parent Allowances,Action for Children,3715.35, 19-Nov-2021
58,Revenue,CAHD,CSC - Agency Fostering,Foster Parent Allowances,Action for Children,3715.35, 19-Nov-2021
59,Revenue,CAHD,CSC - Professional Fees Foster Carers,Therapeutic Fostering Fee,Individual,1409.14, 12-Nov-2021
60,Revenue,CAHD,CSC - Professional Fees Foster Carers,Therapeutic Fostering Fee,Individual,548.00, 19-Nov-2021
61,Revenue,CAHD,CSC - Professional Fees Foster Carers,Therapeutic Fostering Fee,Individual,548.00, 26-Nov-2021
62,Revenue,CAHD,South - Commissioned Services,Other Small Contracts,Advantedge Commercial Finance Limited,1063.58, 30-Nov-2021
63,Revenue,CAHD,South - Commissioned Services,Other Small Contracts,Advantedge Commercial Finance Limited,1113.28, 30-Nov-2021
64,Revenue,CAHD,South - Commissioned Services,Other Small Contracts,Advantedge Commercial Finance Limited,1113.28, 16-Nov-2021
65,Revenue,CAHD,Central - Commissioned Services,Other Small Contracts,Advantedge Commercial Finance Limited,2504.88, 16-Nov-2021
66,Revenue,CAHD,South - Commissioned Services,Other Small Contracts,Advantedge Commercial Finance Limited,695.80, 16-Nov-2021
67,Revenue,CAHD,South - Commissioned Services,Other Small Contracts,Advantedge Commercial Finance Limited,2504.88, 16-Nov-2021
68,Revenue,CAHD,South - Commissioned Services,Other Small Contracts,Advantedge Commercial Finance Limited,536.76, 17-Nov-2021
69,Revenue,CAHD,South - Commissioned Services,Other Small Contracts,Advantedge Commercial Finance Limited,2027.76, 16-Nov-2021
70,Revenue,CAHD,South - Commissioned Services,Other Small Contracts,Advantedge Commercial Finance Limited,1182.86, 16-Nov-2021
71,Revenue,CAHD,South - Commissioned Services,Other Small Contracts,Advantedge Commercial Finance Limited,556.64, 15-Nov-2021
72,Revenue,CAHD,South - Commissioned Services,Other Small Contracts,Advantedge Commercial Finance Limited,1371.72, 15-Nov-2021
73,Revenue,CAHD,Central - Commissioned Services,Day Care / Social Activities,Age Concern,559.36, 16-Nov-2021
74,Revenue,CAHD,Central - Commissioned Services,Day Care / Social Activities,Age UK South Gloucestershire,10704.47, 30-Nov-2021
75,Revenue,CAHD,South - Commissioned Services,Other Small Contracts,Agincare UK Limited,484.12, 10-Nov-2021
76,Revenue,CAHD,Younger MH non-res purchasing,Other Small Contracts,Agincare UK Limited,153.14, 10-Nov-2021
77,Revenue,CAHD,South - Commissioned Services,Other Small Contracts,Agincare UK Limited,503.88, 10-Nov-2021
78,Revenue,CAHD,Extra Care Housing,Private & Voluntary Home Care,Agincare UK Limited,24448.84, 01-Nov-2021
79,Revenue,CAHD,Extra Care Housing,Private & Voluntary Home Care,Agincare UK Limited,11763.39, 01-Nov-2021
80,Revenue,CAHD,Extra Care Housing,Private & Voluntary Home Care,Agincare UK Limited,30860.93, 04-Nov-2021
81,Revenue,CAHD,Prison Assessments & Costs,Other Supplies & Services,Agincare UK Limited,4400.00, 17-Nov-2021
82,Revenue,CAHD,Statemented Support Payments to OLAs,Other L.A.s - General,Air Balloon Hill Primary School,801.92, 22-Nov-2021
83,Revenue,CAHD,Central - Commissioned Services,Other Small Contracts,AliMo Care Ltd,215.16, 05-Nov-2021
84,Revenue,CAHD,South - Commissioned Services,Other Small Contracts,AliMo Care Ltd,836.19, 05-Nov-2021
85,Revenue,CAHD,North - Community based support,Other Small Contracts,AliMo Care Ltd,122.25, 05-Nov-2021
86,Revenue,CAHD,Central - Commissioned Services,Other Small Contracts,AliMo Care Ltd,224.94, 05-Nov-2021
87,Revenue,CAHD,South - Commissioned Services,Other Small Contracts,AliMo Care Ltd,845.97, 05-Nov-2021
88,Revenue,CAHD,North - Community based support,Other Small Contracts,AliMo Care Ltd,136.92, 05-Nov-2021
89,Revenue,CAHD,Central - Commissioned Services,Other Small Contracts,AliMo Care Ltd,210.27, 12-Nov-2021
90,Revenue,CAHD,South - Commissioned Services,Other Small Contracts,AliMo Care Ltd,841.08, 12-Nov-2021
91,Revenue,CAHD,North - Community based support,Other Small Contracts,AliMo Care Ltd,132.03, 12-Nov-2021
92,Revenue,CAHD,Central - Commissioned Services,Other Small Contracts,AliMo Care Ltd,205.38, 29-Nov-2021
93,Revenue,CAHD,South - Commissioned Services,Other Small Contracts,AliMo Care Ltd,850.86, 29-Nov-2021
94,Revenue,CAHD,North - Community based support,Other Small Contracts,AliMo Care Ltd,132.03, 29-Nov-2021
95,Revenue,CAHD,Covid 19 -Adult Social Care,Other Small Contracts,AliMo Care Ltd,9.78, 29-Nov-2021
96,Revenue,CAHD,Central - Commissioned Services,Other Small Contracts,AliMo Care Ltd,205.38, 29-Nov-2021
97,Revenue,CAHD,South - Commissioned Services,Other Small Contracts,AliMo Care Ltd,806.85, 29-Nov-2021
98,Revenue,CAHD,North - Community based support,Other Small Contracts,AliMo Care Ltd,136.92, 29-Nov-2021
99,Revenue,CAHD,Drug and Alcohol Programme,Other Small Contracts,Alveston Pharmacy,1200.00, 08-Nov-2021
100,Revenue,CAHD,Central - Commissioned Services,Permanent Residential,Alvony House Residential Care Home,3000.00, 16-Nov-2021
101,Revenue,CAHD,CSC - Residential Placements,Permanent Residential,Amberleigh Care Ltd,16771.00, 10-Nov-2021
102,Revenue,CAHD,CSC - Residential Placements,Permanent Residential,Amberleigh Care Ltd,15189.43, 10-Nov-2021
103,Revenue,CAHD,CSC - Residential Placements,Permanent Residential,Ambito Care and Education,19930.88, 08-Nov-2021
104,Revenue,CAHD,CSC - Agency Fostering,Foster Parent Allowances,Amicus Foster Care Ltd,4721.61, 18-Nov-2021
105,Revenue,CAHD,CSC - Agency Fostering,Foster Parent Allowances,Amicus Foster Care Ltd,4879.00, 03-Nov-2021
106,Revenue,CAHD,CSC - Agency Fostering,Foster Parent Allowances,Amicus Foster Care Ltd,4796.44, 09-Nov-2021
107,Revenue,CAHD,Alexandra Way,Premises Maintenance by Contractor,Amy Flooring Limited,2014.50, 19-Nov-2021
108,Revenue,CAHD,CAHC - Complaints & Advocacy Service,Complaints External Expenses,Amy Weir & Associates Ltd,637.25, 10-Nov-2021
109,Revenue,CAHD,South - Commissioned Services,Other Supplies & Services,Anchor Hanover,2232.62, 11-Nov-2021
110,Revenue,CAHD,Supporting People Programme,Grants to Voluntary Bodies,Anchor Hanover Group,1039.00, 01-Nov-2021
111,Revenue,CAHD,Supporting People Programme,Grants to Voluntary Bodies,Anchor Hanover Group,847.00, 01-Nov-2021
112,Revenue,CAHD,Social Lettings Agency,Rent,Individual,822.73, 19-Nov-2021
113,Revenue,CAHD,Social Lettings Agency,Fees & Charges Income - General,Individual,-65.82, 19-Nov-2021
114,Revenue,CAHD,Social Lettings Agency,Rent,Individual,822.73, 12-Nov-2021
115,Revenue,CAHD,Social Lettings Agency,Fees & Charges Income - General,Individual,-65.82, 12-Nov-2021
116,Revenue,CAHD,EARLY YEARS DEPRIVATION PAYMENT,Preventative Assistance,Apple Tree Pre-School,645.69, 12-Nov-2021
117,Revenue,CAHD,Younger MH non-res purchasing,Supported Living,Archcare Rehab Limited,2002.44, 16-Nov-2021
118,Revenue,CAHD,South - Commissioned Services,Permanent Residential,Ash Lea House,5551.92, 16-Nov-2021
119,Revenue,CAHD,South - Commissioned Services,Permanent Residential,Ash View House,5655.48, 16-Nov-2021
120,Revenue,CAHD,Jointly Funded H&SC Packages,Permanent Residential,Ash View House,1160.84, 16-Nov-2021
121,Revenue,CAHD,S117 Placements PCT,Permanent Residential,Ash View House,7884.72, 16-Nov-2021
122,Revenue,CAHD,North - Community based support,Permanent Residential,Ash View House,7099.52, 16-Nov-2021
123,Revenue,CAHD,North - Community based support,Permanent Residential,Ash View House,7120.00, 16-Nov-2021
124,Revenue,CAHD,Section 117 Placements MH Younger,Permanent Residential,Ash View House,5135.96, 16-Nov-2021
125,Revenue,CAHD,Jointly Funded H&SC Packages,Permanent Residential,Ash View House,2204.28, 16-Nov-2021
126,Revenue,CAHD,South - S117,Permanent Residential,Ash View House,6983.64, 16-Nov-2021
127,Revenue,CAHD,South - Commissioned Services,Permanent Residential,Ash View House,6903.04, 16-Nov-2021
128,Revenue,CAHD,Supporting People Programme,Grants to Voluntary Bodies,Aspects and Milestones Trust,3441.00, 01-Nov-2021
129,Revenue,CAHD,Supporting People Programme,Grants to Voluntary Bodies,Aspects and Milestones Trust,1725.00, 01-Nov-2021
130,Revenue,CAHD,18-25 Year Olds,Other Small Contracts,Aspirations,4430.24, 05-Nov-2021
131,Revenue,CAHD,18-25 Year Olds,Supported Living,Aspirations,215.16, 05-Nov-2021
132,Revenue,CAHD,Central - Commissioned Services,Other Small Contracts,Aspirations,144.00, 05-Nov-2021
133,Revenue,CAHD,South - Commissioned Services,Day Care / Social Activities,Aspirations,1437.66, 05-Nov-2021
134,Revenue,CAHD,South - Commissioned Services,Other Small Contracts,Aspirations,2303.16, 05-Nov-2021
135,Revenue,CAHD,South - Commissioned Services,Supported Living,Aspirations,14543.26, 05-Nov-2021
136,Revenue,CAHD,North - Community based support,Supported Living,Aspirations,3438.72, 05-Nov-2021
137,Revenue,CAHD,18-25 Year Olds,Other Small Contracts,Aspirations,4333.24, 10-Nov-2021
138,Revenue,CAHD,18-25 Year Olds,Supported Living,Aspirations,361.86, 10-Nov-2021
139,Revenue,CAHD,Central - Commissioned Services,Other Small Contracts,Aspirations,144.00, 10-Nov-2021
140,Revenue,CAHD,South - Commissioned Services,Day Care / Social Activities,Aspirations,1501.23, 10-Nov-2021
141,Revenue,CAHD,South - Commissioned Services,Other Small Contracts,Aspirations,2455.46, 10-Nov-2021
142,Revenue,CAHD,South - Commissioned Services,Supported Living,Aspirations,14862.65, 10-Nov-2021
143,Revenue,CAHD,North - Community based support,Supported Living,Aspirations,3268.38, 10-Nov-2021
144,Revenue,CAHD,18-25 Year Olds,Other Small Contracts,Aspirations,3547.02, 10-Nov-2021
145,Revenue,CAHD,18-25 Year Olds,Supported Living,Aspirations,361.86, 10-Nov-2021
146,Revenue,CAHD,Central - Commissioned Services,Other Small Contracts,Aspirations,144.00, 10-Nov-2021
147,Revenue,CAHD,South - Commissioned Services,Day Care / Social Activities,Aspirations,1408.32, 10-Nov-2021
148,Revenue,CAHD,South - Commissioned Services,Other Small Contracts,Aspirations,2622.43, 10-Nov-2021
149,Revenue,CAHD,South - Commissioned Services,Supported Living,Aspirations,14598.43, 10-Nov-2021
150,Revenue,CAHD,North - Community based support,Supported Living,Aspirations,3444.48, 10-Nov-2021
151,Revenue,CAHD,18-25 Year Olds,Other Small Contracts,Aspirations,3961.60, 26-Nov-2021
152,Revenue,CAHD,18-25 Year Olds,Supported Living,Aspirations,440.10, 26-Nov-2021
153,Revenue,CAHD,Central - Commissioned Services,Other Small Contracts,Aspirations,144.00, 26-Nov-2021
154,Revenue,CAHD,South - Commissioned Services,Day Care / Social Activities,Aspirations,1378.98, 26-Nov-2021
155,Revenue,CAHD,South - Commissioned Services,Other Small Contracts,Aspirations,2497.89, 26-Nov-2021
156,Revenue,CAHD,South - Commissioned Services,Supported Living,Aspirations,14177.75, 26-Nov-2021
157,Revenue,CAHD,North - Community based support,Supported Living,Aspirations,3204.48, 26-Nov-2021
158,Revenue,CAHD,18-25 Year Olds,Other Small Contracts,Aspirations,3707.32, 29-Nov-2021
159,Revenue,CAHD,18-25 Year Olds,Supported Living,Aspirations,361.86, 29-Nov-2021
160,Revenue,CAHD,Central - Commissioned Services,Other Small Contracts,Aspirations,144.00, 29-Nov-2021
161,Revenue,CAHD,South - Commissioned Services,Day Care / Social Activities,Aspirations,1462.11, 29-Nov-2021
162,Revenue,CAHD,South - Commissioned Services,Other Small Contracts,Aspirations,2943.75, 29-Nov-2021
163,Revenue,CAHD,South - Commissioned Services,Supported Living,Aspirations,13945.57, 29-Nov-2021
164,Revenue,CAHD,North - Community based support,Supported Living,Aspirations,2309.76, 29-Nov-2021
165,Revenue,CAHD,18-25 Year Olds,Other Small Contracts,Aspirations,4050.60, 29-Nov-2021
166,Revenue,CAHD,18-25 Year Olds,Supported Living,Aspirations,361.86, 29-Nov-2021
167,Revenue,CAHD,Central - Commissioned Services,Other Small Contracts,Aspirations,144.00, 29-Nov-2021
168,Revenue,CAHD,South - Commissioned Services,Day Care / Social Activities,Aspirations,1569.69, 29-Nov-2021
169,Revenue,CAHD,South - Commissioned Services,Other Small Contracts,Aspirations,2947.77, 29-Nov-2021
170,Revenue,CAHD,South - Commissioned Services,Supported Living,Aspirations,13306.03, 29-Nov-2021
171,Revenue,CAHD,North - Community based support,Supported Living,Aspirations,3260.16, 29-Nov-2021
172,Revenue,CAHD,CSC - Care Leavers Independent Living,Adults - Family Support,Aspirations Support Bristol Limited,15419.68, 08-Nov-2021
173,Revenue,CAHD,CSC - Vinney Green Secure Unit,R & M by Departments,Assa Abloy Limited,504.00, 24-Nov-2021
174,Revenue,CAHD,Psychology Traded,Advertising for Recruitment,Association of Educational Psychologists,700.00, 29-Nov-2021
175,Revenue,CAHD,South - Commissioned Services,Adults - Family Support,Ategi Limited,17042.85, 10-Nov-2021
176,Revenue,CAHD,Schools Block Growth Contingency,Other Public Bodies,Athelstan Trust,6262.60, 10-Nov-2021
177,Revenue,CAHD,Schools Block Growth Contingency,Other Public Bodies,Athelstan Trust,7182.80, 10-Nov-2021
178,Revenue,CAHD,Schools Specific Grant Income,Other Public Bodies,Athelstan Trust,500.00, 19-Nov-2021
179,Revenue,CAHD,Schools Specific Grant Income,Other Public Bodies,Athelstan Trust,500.00, 19-Nov-2021
180,Revenue,CAHD,Schools Specific Grant Income,Other Public Bodies,Athelstan Trust,500.00, 19-Nov-2021
181,Revenue,CAHD,Statemented Support Academies,Other Public Bodies,Athelstan Trust,718.08, 23-Nov-2021
182,Revenue,CAHD,Statemented Support Academies,Other Public Bodies,Athelstan Trust,1101.42, 23-Nov-2021
183,Revenue,CAHD,Statemented Support Academies,Other Public Bodies,Athelstan Trust,722.42, 23-Nov-2021
184,Revenue,CAHD,Statemented Support Academies,Other Public Bodies,Athelstan Trust,1342.25, 23-Nov-2021
185,Revenue,CAHD,Statemented Support Academies,Other Public Bodies,Athelstan Trust,1367.64, 23-Nov-2021
186,Revenue,CAHD,Statemented Support Academies,Other Public Bodies,Athelstan Trust,771.42, 23-Nov-2021
187,Revenue,CAHD,Statemented Support Academies,Other Public Bodies,Athelstan Trust,1436.25, 23-Nov-2021
188,Revenue,CAHD,Statemented Support Academies,Other Public Bodies,Athelstan Trust,588.75, 23-Nov-2021
189,Revenue,CAHD,Statemented Support Academies,Other Public Bodies,Athelstan Trust,3514.12, 23-Nov-2021
190,Revenue,CAHD,CSC - CLA Placements,Supported Living,Athelstan Trust,934.13, 23-Nov-2021
191,Revenue,CAHD,Statemented Support Academies,Other Public Bodies,Athelstan Trust,926.58, 23-Nov-2021
192,Revenue,CAHD,Statemented Support Academies,Other Public Bodies,Athelstan Trust,1066.65, 23-Nov-2021
193,Revenue,CAHD,Academy Resource Base Funding,Other Public Bodies,Athelstan Trust,821.92, 23-Nov-2021
194,Revenue,CAHD,Academy Resource Base Funding,Other Public Bodies,Athelstan Trust,2432.79, 23-Nov-2021
195,Revenue,CAHD,Academy Resource Base Funding,Other Public Bodies,Athelstan Trust,2432.79, 23-Nov-2021
196,Revenue,CAHD,Academy Resource Base Funding,Other Public Bodies,Athelstan Trust,2432.79, 23-Nov-2021
197,Revenue,CAHD,Academy Resource Base Funding,Other Public Bodies,Athelstan Trust,2432.79, 23-Nov-2021
198,Revenue,CAHD,Academy Resource Base Funding,Other Public Bodies,Athelstan Trust,2432.79, 23-Nov-2021
199,Revenue,CAHD,Academy Resource Base Funding,Other Public Bodies,Athelstan Trust,2432.79, 23-Nov-2021
200,Revenue,CAHD,Academy Resource Base Funding,Other Public Bodies,Athelstan Trust,2432.79, 23-Nov-2021
201,Revenue,CAHD,Academy Resource Base Funding,Other Public Bodies,Athelstan Trust,2432.79, 23-Nov-2021
202,Revenue,CAHD,Academy Resource Base Funding,Other Public Bodies,Athelstan Trust,2432.79, 23-Nov-2021
203,Revenue,CAHD,Academy Resource Base Funding,Other Public Bodies,Athelstan Trust,2432.79, 23-Nov-2021
204,Revenue,CAHD,Academy Resource Base Funding,Other Public Bodies,Athelstan Trust,2432.79, 23-Nov-2021
205,Revenue,CAHD,Independent Special Placements - Post 16,Bus Revenue Support,Aurora Severnside School,16656.00, 29-Nov-2021
206,Revenue,CAHD,South - Commissioned Services,Permanent Residential,Autism Specialised Care Homes,6506.88, 16-Nov-2021
207,Revenue,CAHD,South Glos Users in South Glos Homes,Permanent Nursing,Avon Lodge Care Centre,750.40, 16-Nov-2021
208,Revenue,CAHD,South Glos Users in South Glos Homes,Permanent Nursing,Avon Lodge Care Centre,750.40, 16-Nov-2021
209,Revenue,CAHD,South Glos Users in South Glos Homes,Permanent Nursing,Avon Lodge Care Centre,750.40, 16-Nov-2021
210,Revenue,CAHD,South Glos Users in South Glos Homes,Permanent Nursing,Avon Lodge Care Centre,750.40, 16-Nov-2021
211,Revenue,CAHD,South - Commissioned Services,Permanent Nursing,Avon Lodge Care Centre,3339.08, 16-Nov-2021
212,Revenue,CAHD,South Glos Users in South Glos Homes,Permanent Nursing,Avon Lodge Care Centre,750.40, 16-Nov-2021
213,Revenue,CAHD,South Glos Users in South Glos Homes,Permanent Nursing,Avon Lodge Care Centre,750.40, 16-Nov-2021
214,Revenue,CAHD,South - Commissioned Services,Permanent Nursing,Avon Lodge Care Centre,4296.00, 16-Nov-2021
215,Revenue,CAHD,South Glos Users in South Glos Homes,Permanent Nursing,Avon Lodge Care Centre,750.40, 16-Nov-2021
216,Revenue,CAHD,South - Commissioned Services,Permanent Nursing,Avon Lodge Care Centre,3539.60, 16-Nov-2021
217,Revenue,CAHD,South Glos Users in South Glos Homes,Permanent Nursing,Avon Lodge Care Centre,750.40, 16-Nov-2021
218,Revenue,CAHD,South Glos Users in South Glos Homes,Permanent Nursing,Avon Lodge Care Centre,750.40, 16-Nov-2021
219,Revenue,CAHD,South - Commissioned Services,Permanent Nursing,Avon Lodge Care Centre,4447.88, 16-Nov-2021
220,Revenue,CAHD,South Glos Users in South Glos Homes,Permanent Nursing,Avon Lodge Care Centre,750.40, 16-Nov-2021
221,Revenue,CAHD,South Glos Users in South Glos Homes,Permanent Nursing,Avon Lodge Care Centre,750.40, 16-Nov-2021
222,Revenue,CAHD,South - Commissioned Services,Permanent Nursing,Avon Lodge Care Centre,4505.12, 16-Nov-2021
223,Revenue,CAHD,South Glos Users in South Glos Homes,Permanent Nursing,Avon Lodge Care Centre,750.40, 16-Nov-2021
224,Revenue,CAHD,South - Commissioned Services,Permanent Nursing,Avon Lodge Care Centre,4410.32, 16-Nov-2021
225,Revenue,CAHD,South Glos Users in South Glos Homes,Permanent Nursing,Avon Lodge Care Centre,750.40, 16-Nov-2021
226,Revenue,CAHD,South - Commissioned Services,Permanent Nursing,Avon Lodge Care Centre,4400.00, 16-Nov-2021
227,Revenue,CAHD,South Glos Users in South Glos Homes,Permanent Nursing,Avon Lodge Care Centre,750.40, 16-Nov-2021
228,Revenue,CAHD,South Glos Users in South Glos Homes,Permanent Nursing,Avon Lodge Care Centre,750.40, 16-Nov-2021
229,Revenue,CAHD,South Glos Users in South Glos Homes,Permanent Nursing,Avon Lodge Care Centre,750.40, 16-Nov-2021
230,Revenue,CAHD,Central - Commissioned Services,Permanent Nursing,Avon Lodge Care Centre,3974.16, 16-Nov-2021
231,Revenue,CAHD,South Glos Users in South Glos Homes,Permanent Nursing,Avon Lodge Care Centre,750.40, 16-Nov-2021
232,Revenue,CAHD,Central - Commissioned Services,Permanent Residential,Avon Lodge Care Centre,3478.20, 16-Nov-2021
233,Revenue,CAHD,South Glos Users in South Glos Homes,Permanent Nursing,Avon Lodge Care Centre,750.40, 16-Nov-2021
234,Revenue,CAHD,South - Commissioned Services,Permanent Nursing,Avon Lodge Care Centre,3887.40, 16-Nov-2021
235,Revenue,CAHD,South Glos Users in South Glos Homes,Permanent Nursing,Avon Lodge Care Centre,750.40, 16-Nov-2021
236,Revenue,CAHD,South - Commissioned Services,Respite Planned - Nursing,Avon Lodge Care Centre,12582.55, 16-Nov-2021
237,Revenue,CAHD,South - Commissioned Services,Respite Planned - Nursing,Avon Lodge Care Centre,7570.32, 16-Nov-2021
238,Revenue,CAHD,Central - Commissioned Services,Permanent Nursing,Avon Lodge Care Centre,3887.40, 16-Nov-2021
239,Revenue,CAHD,South Glos Users in South Glos Homes,Permanent Nursing,Avon Lodge Care Centre,750.40, 16-Nov-2021
240,Revenue,CAHD,North - Community based support,Permanent Residential,Avon Lodge Care Centre,3539.60, 16-Nov-2021
241,Revenue,CAHD,South Glos Users in South Glos Homes,Permanent Nursing,Avon Lodge Care Centre,750.40, 16-Nov-2021
242,Revenue,CAHD,Central - Commissioned Services,Respite Planned - Nursing,Avon Lodge Care Centre,1139.81, 16-Nov-2021
243,Revenue,CAHD,South Glos Users in South Glos Homes,Permanent Nursing,Avon Lodge Care Centre,750.40, 16-Nov-2021
244,Revenue,CAHD,South - Commissioned Services,Permanent Nursing,Avon Lodge Care Centre,4634.24, 16-Nov-2021
245,Revenue,CAHD,South Glos Users in South Glos Homes,Permanent Nursing,Avon Lodge Care Centre,750.40, 16-Nov-2021
246,Revenue,CAHD,South - S117,Permanent Nursing,Avon Lodge Care Centre,3974.84, 16-Nov-2021
247,Revenue,CAHD,South Glos Users in South Glos Homes,Permanent Nursing,Avon Lodge Care Centre,750.40, 16-Nov-2021
248,Revenue,CAHD,South Glos Users in South Glos Homes,Permanent Nursing,Avon Lodge Care Centre,750.40, 16-Nov-2021
249,Revenue,CAHD,North - Community based support,Permanent Nursing,Avon Lodge Care Centre,3887.40, 16-Nov-2021
250,Revenue,CAHD,South Glos Users in South Glos Homes,Permanent Nursing,Avon Lodge Care Centre,750.40, 16-Nov-2021
251,Revenue,CAHD,South - Commissioned Services,Permanent Nursing,Avon Lodge Care Centre,5984.38, 16-Nov-2021
252,Revenue,CAHD,South - Commissioned Services,Permanent Nursing,Avon Lodge Care Centre,4296.48, 16-Nov-2021
253,Revenue,CAHD,South - Commissioned Services,Permanent Residential,Avon Lodge Care Centre,3130.40, 16-Nov-2021
254,Revenue,CAHD,South Glos Users in South Glos Homes,Permanent Nursing,Avon Lodge Care Centre,750.40, 16-Nov-2021
255,Revenue,CAHD,South Glos Users in South Glos Homes,Permanent Nursing,Avon Lodge Care Centre,750.40, 16-Nov-2021
256,Revenue,CAHD,South - Commissioned Services,Permanent Nursing,Avon Lodge Care Centre,3800.00, 16-Nov-2021
257,Revenue,CAHD,South Glos Users in South Glos Homes,Permanent Nursing,Avon Lodge Care Centre,750.40, 16-Nov-2021
258,Revenue,CAHD,Covid - ASC - Infection Control,Grants to Voluntary Bodies,Avon Lodge Care Centre,10400.16, 30-Nov-2021
259,Revenue,CAHD,ASC Rapid Testing Fund,Grants to Voluntary Bodies,Avon Lodge Care Centre,7389.81, 30-Nov-2021
260,Revenue,CAHD,Covid - Vaccines,Grants to Voluntary Bodies,Avon Lodge Care Centre,908.57, 30-Nov-2021
261,Revenue,CAHD,South - Commissioned Services,Permanent Residential,Avon Valley Care Home,4092.00, 16-Nov-2021
262,Revenue,CAHD,South - Commissioned Services,Permanent Residential,Avon Valley Care Home,4270.00, 16-Nov-2021
263,Revenue,CAHD,South - Commissioned Services,Permanent Residential,Avon Valley Care Home,4270.00, 16-Nov-2021
264,Revenue,CAHD,South - S117,Permanent Residential,Avon Valley Care Home,4092.00, 16-Nov-2021
265,Revenue,CAHD,South - Commissioned Services,Permanent Residential,Avon Valley Care Home,4051.08, 16-Nov-2021
266,Revenue,CAHD,South - Commissioned Services,Permanent Residential,Avon Valley Care Home,4230.00, 16-Nov-2021
267,Revenue,CAHD,South - Commissioned Services,Permanent Residential,Avon Valley Care Home,4051.08, 16-Nov-2021
268,Revenue,CAHD,South - Commissioned Services,Respite Planned - Residential,Avon Valley Care Home,4000.00, 16-Nov-2021
269,Revenue,CAHD,South - Commissioned Services,Permanent Residential,Avon Valley Care Home,4270.00, 16-Nov-2021
270,Revenue,CAHD,South - Commissioned Services,Permanent Residential,Avon Valley Care Home,4910.40, 16-Nov-2021
271,Revenue,CAHD,South - Commissioned Services,Permanent Residential,Avon Valley Care Home,4230.00, 16-Nov-2021
272,Revenue,CAHD,South - Commissioned Services,Permanent Residential,Avon Valley Care Home,4051.08, 16-Nov-2021
273,Revenue,CAHD,South - Commissioned Services,Permanent Residential,Avon Valley Care Home,4230.00, 16-Nov-2021
274,Revenue,CAHD,South - Commissioned Services,Permanent Residential,Avon Valley Care Home,4230.00, 16-Nov-2021
275,Revenue,CAHD,South - Commissioned Services,Permanent Residential,Avon Valley Care Home,3323.57, 16-Nov-2021
276,Revenue,CAHD,South - Commissioned Services,Permanent Residential,Avon Valley Care Home,3323.57, 16-Nov-2021
277,Revenue,CAHD,South - Commissioned Services,Permanent Residential,Avon Valley Care Home,906.43, 16-Nov-2021
278,Revenue,CAHD,Central - Commissioned Services,Permanent Residential,Avon Valley Care Home,4092.00, 16-Nov-2021
279,Revenue,CAHD,South - Commissioned Services,Permanent Residential,Avon Valley Care Home,4092.00, 16-Nov-2021
280,Revenue,CAHD,South - Commissioned Services,Permanent Residential,Avon Valley Care Home,4230.00, 16-Nov-2021
281,Revenue,CAHD,Covid - ASC - Infection Control,Grants to Voluntary Bodies,Avon Valley Care Home,13084.07, 30-Nov-2021
282,Revenue,CAHD,ASC Rapid Testing Fund,Grants to Voluntary Bodies,Avon Valley Care Home,9296.86, 30-Nov-2021
283,Revenue,CAHD,Covid - Vaccines,Grants to Voluntary Bodies,Avon Valley Care Home,1143.04, 30-Nov-2021
284,Revenue,CAHD,North - Community based support,Permanent Residential,Avonmere Care Home,4680.00, 16-Nov-2021
285,Revenue,CAHD,North - Community based support,Permanent Residential,Avonmere Care Home,4892.00, 16-Nov-2021
286,Revenue,CAHD,North - Community based support,Permanent Residential,Avonmere Care Home,4521.68, 16-Nov-2021
287,Revenue,CAHD,South - Commissioned Services,Permanent Nursing,Avonmere Care Home,4800.00, 16-Nov-2021
288,Revenue,CAHD,North - Community based support,Permanent Residential,Avonmere Care Home,4600.00, 16-Nov-2021
289,Revenue,CAHD,South - Commissioned Services,Respite Emergency - Residential,Avonmere Care Home,1150.00, 16-Nov-2021
290,Revenue,CAHD,North - Community based support,Permanent Residential,Avonmere Care Home,4720.00, 16-Nov-2021
291,Revenue,CAHD,North - Community based support,Permanent Residential,Avonmere Care Home,4892.00, 16-Nov-2021
292,Revenue,CAHD,Covid - ASC - Infection Control,Grants to Voluntary Bodies,Avonmere Care Home,12748.58, 30-Nov-2021
293,Revenue,CAHD,ASC Rapid Testing Fund,Grants to Voluntary Bodies,Avonmere Care Home,9058.48, 30-Nov-2021
294,Revenue,CAHD,Covid - Vaccines,Grants to Voluntary Bodies,Avonmere Care Home,1113.73, 30-Nov-2021
295,Revenue,CAHD,North - Community based support,Permanent Nursing,Badminton Place,4864.32, 16-Nov-2021
296,Revenue,CAHD,South Glos Users in South Glos Homes,Permanent Nursing,Badminton Place,750.40, 16-Nov-2021
297,Revenue,CAHD,South Glos Users in South Glos Homes,Permanent Nursing,Badminton Place,5547.60, 16-Nov-2021
298,Revenue,CAHD,South Glos Users in South Glos Homes,Permanent Nursing,Badminton Place,750.40, 16-Nov-2021
299,Revenue,CAHD,South Glos Users in South Glos Homes,Permanent Nursing,Badminton Place,4636.40, 16-Nov-2021
300,Revenue,CAHD,South Glos Users in South Glos Homes,Permanent Nursing,Badminton Place,750.40, 16-Nov-2021
301,Revenue,CAHD,Covid - ASC - Infection Control,Grants to Voluntary Bodies,Badminton Place,12245.35, 30-Nov-2021
302,Revenue,CAHD,ASC Rapid Testing Fund,Grants to Voluntary Bodies,Badminton Place,8700.91, 30-Nov-2021
303,Revenue,CAHD,Covid - Vaccines,Grants to Voluntary Bodies,Badminton Place,1069.77, 30-Nov-2021
304,Revenue,CAHD,Early Years Inclusion Fund,Other Public Bodies,Baker Street Nursery & Pre-School,3600.00, 19-Nov-2021
305,Revenue,CAHD,Children & Young People`s Health,Other Small Contracts,Barnardos,7650.00, 26-Nov-2021
306,Revenue,CAHD,CSC - Agency Fostering,Other L.A.s - General,Bath & North East Somerset Council,6000.00, 01-Nov-2021
307,Revenue,CAHD,Pensions - Non DSG,Annual Pension,Bath & North East Somerset Council,6796.20, 09-Nov-2021
308,Revenue,CAHD,Pensions - Non DSG,Annual Pension,Bath & North East Somerset Council,100911.41, 12-Nov-2021
309,Revenue,CAHD,Schools Specific Grant Income,Other Public Bodies,Bath & North East Somerset Council,500.00, 25-Nov-2021
310,Revenue,CAHD,CSC - Adoption Support Fund,Post Adoption,Individual,1190.00, 04-Nov-2021
311,Revenue,CAHD,North - Community based support,Respite Planned - Residential,Beaufort Grange Care Home,1285.71, 16-Nov-2021
312,Revenue,CAHD,South Glos Users in South Glos Homes,Permanent Nursing,Beaufort Grange Care Home,750.40, 16-Nov-2021
313,Revenue,CAHD,South Glos Users in South Glos Homes,Permanent Nursing,Beaufort Grange Care Home,750.40, 16-Nov-2021
314,Revenue,CAHD,South Glos Users in South Glos Homes,Permanent Nursing,Beaufort Grange Care Home,750.40, 16-Nov-2021
315,Revenue,CAHD,Central - Commissioned Services,Permanent Nursing,Beaufort Grange Care Home,36721.14, 16-Nov-2021
316,Revenue,CAHD,Central - Commissioned Services,Permanent Nursing,Beaufort Grange Care Home,11684.00, 16-Nov-2021
317,Revenue,CAHD,South Glos Users in South Glos Homes,Permanent Nursing,Beaufort Grange Care Home,750.40, 16-Nov-2021
318,Revenue,CAHD,South Glos Users in South Glos Homes,Permanent Nursing,Beaufort Grange Care Home,750.40, 16-Nov-2021
319,Revenue,CAHD,Central - Commissioned Services,Permanent Nursing,Beaufort Grange Care Home,5400.00, 16-Nov-2021
320,Revenue,CAHD,South Glos Users in South Glos Homes,Permanent Nursing,Beaufort Grange Care Home,750.40, 16-Nov-2021
321,Revenue,CAHD,South Glos Users in South Glos Homes,Permanent Nursing,Beaufort Grange Care Home,750.40, 16-Nov-2021
322,Revenue,CAHD,North - Community based support,Permanent Nursing,Beaufort Grange Care Home,5238.26, 16-Nov-2021
323,Revenue,CAHD,North - Community based support,Permanent Nursing,Beaufort Grange Care Home,4369.60, 16-Nov-2021
324,Revenue,CAHD,South Glos Users in South Glos Homes,Permanent Nursing,Beaufort Grange Care Home,750.40, 16-Nov-2021
325,Revenue,CAHD,South Glos Users in South Glos Homes,Permanent Nursing,Beaufort Grange Care Home,750.40, 16-Nov-2021
326,Revenue,CAHD,South - Commissioned Services,Permanent Nursing,Beaufort Grange Care Home,4449.60, 16-Nov-2021
327,Revenue,CAHD,South Glos Users in South Glos Homes,Permanent Nursing,Beaufort Grange Care Home,750.40, 16-Nov-2021
328,Revenue,CAHD,South Glos Users in South Glos Homes,Permanent Nursing,Beaufort Grange Care Home,750.40, 16-Nov-2021
329,Revenue,CAHD,South Glos Users in South Glos Homes,Permanent Nursing,Beaufort Grange Care Home,750.40, 16-Nov-2021
330,Revenue,CAHD,South Glos Users in South Glos Homes,Permanent Nursing,Beaufort Grange Care Home,750.40, 16-Nov-2021
331,Revenue,CAHD,South Glos Users in South Glos Homes,Permanent Nursing,Beaufort Grange Care Home,750.40, 16-Nov-2021
332,Revenue,CAHD,South Glos Users in South Glos Homes,Permanent Nursing,Beaufort Grange Care Home,750.40, 16-Nov-2021
333,Revenue,CAHD,South Glos Users in South Glos Homes,Permanent Nursing,Beaufort Grange Care Home,750.40, 16-Nov-2021
334,Revenue,CAHD,South Glos Users in South Glos Homes,Permanent Nursing,Beaufort Grange Care Home,750.40, 16-Nov-2021
335,Revenue,CAHD,South Glos Users in South Glos Homes,Permanent Nursing,Beaufort Grange Care Home,750.40, 16-Nov-2021
336,Revenue,CAHD,South Glos Users in South Glos Homes,Permanent Nursing,Beaufort Grange Care Home,750.40, 16-Nov-2021
337,Revenue,CAHD,South Glos Users in South Glos Homes,Permanent Nursing,Beaufort Grange Care Home,750.40, 16-Nov-2021
338,Revenue,CAHD,South Glos Users in South Glos Homes,Permanent Nursing,Beaufort Grange Care Home,750.40, 16-Nov-2021
339,Revenue,CAHD,North - S117,Permanent Nursing,Beaufort Grange Care Home,5400.00, 16-Nov-2021
340,Revenue,CAHD,Central - Commissioned Services,Permanent Nursing,Beaufort Grange Care Home,5500.00, 16-Nov-2021
341,Revenue,CAHD,South Glos Users in South Glos Homes,Permanent Nursing,Beaufort Grange Care Home,750.40, 16-Nov-2021
342,Revenue,CAHD,North - Community based support,Permanent Nursing,Beaufort Grange Care Home,10620.00, 16-Nov-2021
343,Revenue,CAHD,South Glos Users in South Glos Homes,Permanent Nursing,Beaufort Grange Care Home,750.40, 16-Nov-2021
344,Revenue,CAHD,South Glos Users in South Glos Homes,Permanent Nursing,Beaufort Grange Care Home,750.40, 16-Nov-2021
345,Revenue,CAHD,South Glos Users in South Glos Homes,Permanent Nursing,Beaufort Grange Care Home,750.40, 16-Nov-2021
346,Revenue,CAHD,South Glos Users in South Glos Homes,Permanent Nursing,Beaufort Grange Care Home,750.40, 16-Nov-2021
347,Revenue,CAHD,South Glos Users in South Glos Homes,Permanent Nursing,Beaufort Grange Care Home,750.40, 16-Nov-2021
348,Revenue,CAHD,South Glos Users in South Glos Homes,Permanent Nursing,Beaufort Grange Care Home,750.40, 16-Nov-2021
349,Revenue,CAHD,South Glos Users in South Glos Homes,Permanent Nursing,Beaufort Grange Care Home,750.40, 16-Nov-2021
350,Revenue,CAHD,South Glos Users in South Glos Homes,Permanent Nursing,Beaufort Grange Care Home,750.40, 16-Nov-2021
351,Revenue,CAHD,South Glos Users in South Glos Homes,Permanent Nursing,Beaufort Grange Care Home,750.40, 16-Nov-2021
352,Revenue,CAHD,South Glos Users in South Glos Homes,Permanent Nursing,Beaufort Grange Care Home,750.40, 16-Nov-2021
353,Revenue,CAHD,South Glos Users in South Glos Homes,Permanent Nursing,Beaufort Grange Care Home,750.40, 16-Nov-2021
354,Revenue,CAHD,South Glos Users in South Glos Homes,Permanent Nursing,Beaufort Grange Care Home,750.40, 16-Nov-2021
355,Revenue,CAHD,South Glos Users in South Glos Homes,Permanent Nursing,Beaufort Grange Care Home,750.40, 16-Nov-2021
356,Revenue,CAHD,South Glos Users in South Glos Homes,Permanent Nursing,Beaufort Grange Care Home,750.40, 16-Nov-2021
357,Revenue,CAHD,Central - Commissioned Services,Permanent Residential,Beaufort House,2991.84, 16-Nov-2021
358,Revenue,CAHD,Central - Commissioned Services,Permanent Residential,Beaufort House,2896.24, 16-Nov-2021
359,Revenue,CAHD,Central - Commissioned Services,Permanent Residential,Beaufort House,3800.00, 16-Nov-2021
360,Revenue,CAHD,North - Community based support,Permanent Residential,Beaufort House,4000.00, 16-Nov-2021
361,Revenue,CAHD,North - Community based support,Permanent Residential,Beaufort House,2817.28, 16-Nov-2021
362,Revenue,CAHD,Central - Commissioned Services,Permanent Residential,Beaufort House,4000.00, 16-Nov-2021
363,Revenue,CAHD,Central - Commissioned Services,Permanent Residential,Beaufort House,3200.00, 16-Nov-2021
364,Revenue,CAHD,Central - Commissioned Services,Permanent Residential,Beaufort House,3600.00, 16-Nov-2021
365,Revenue,CAHD,Central - Commissioned Services,Permanent Residential,Beaufort House,4000.00, 16-Nov-2021
366,Revenue,CAHD,North - Community based support,Permanent Residential,Beaufort House,4000.00, 16-Nov-2021
367,Revenue,CAHD,Central - Commissioned Services,Permanent Residential,Beaufort House,3600.00, 16-Nov-2021
368,Revenue,CAHD,Central - Commissioned Services,Permanent Residential,Beaufort House,3478.20, 16-Nov-2021
369,Revenue,CAHD,Covid - ASC - Infection Control,Grants to Voluntary Bodies,Beaufort House,4696.85, 30-Nov-2021
370,Revenue,CAHD,ASC Rapid Testing Fund,Grants to Voluntary Bodies,Beaufort House,3337.33, 30-Nov-2021
371,Revenue,CAHD,South - Commissioned Services,Permanent Residential,Beech House,3088.28, 16-Nov-2021
372,Revenue,CAHD,South Glos Users in South Glos Homes,Permanent Nursing,Beech House,750.40, 16-Nov-2021
373,Revenue,CAHD,South Glos Users in South Glos Homes,Permanent Nursing,Beech House,750.40, 16-Nov-2021
374,Revenue,CAHD,South Glos Users in South Glos Homes,Permanent Nursing,Beech House,750.40, 16-Nov-2021
375,Revenue,CAHD,South Glos Users in South Glos Homes,Permanent Nursing,Beech House,750.40, 16-Nov-2021
376,Revenue,CAHD,South Glos Users in South Glos Homes,Permanent Nursing,Beech House,750.40, 16-Nov-2021
377,Revenue,CAHD,South Glos Users in South Glos Homes,Permanent Nursing,Beech House,750.40, 16-Nov-2021
378,Revenue,CAHD,North - Community based support,Permanent Nursing,Beech House,4378.44, 16-Nov-2021
379,Revenue,CAHD,South Glos Users in South Glos Homes,Permanent Nursing,Beech House,750.40, 16-Nov-2021
380,Revenue,CAHD,South Glos Users in South Glos Homes,Permanent Nursing,Beech House,750.40, 16-Nov-2021
381,Revenue,CAHD,North - Community based support,Permanent Nursing,Beech House,4378.44, 16-Nov-2021
382,Revenue,CAHD,South Glos Users in South Glos Homes,Permanent Nursing,Beech House,750.40, 16-Nov-2021
383,Revenue,CAHD,North - Community based support,Permanent Nursing,Beech House,4407.12, 16-Nov-2021
384,Revenue,CAHD,South Glos Users in South Glos Homes,Permanent Nursing,Beech House,750.40, 16-Nov-2021
385,Revenue,CAHD,North - Community based support,Fees & Charges Income - General,Beech House,15495.19, 16-Nov-2021
386,Revenue,CAHD,North - Community based support,Permanent Residential,Beech House,4480.00, 16-Nov-2021
387,Revenue,CAHD,South Glos Users in South Glos Homes,Permanent Nursing,Beech House,750.40, 16-Nov-2021
388,Revenue,CAHD,South - Commissioned Services,Permanent Residential,Beech House,18720.00, 16-Nov-2021
389,Revenue,CAHD,South - Commissioned Services,Permanent Residential,Beech House,4480.00, 16-Nov-2021
390,Revenue,CAHD,South - Commissioned Services,Fees & Charges Income - General,Beech House,3209.21, 16-Nov-2021
391,Revenue,CAHD,North - Community based support,Permanent Residential,Beech House,4480.00, 16-Nov-2021
392,Revenue,CAHD,South Glos Users in South Glos Homes,Permanent Nursing,Beech House,750.40, 16-Nov-2021
393,Revenue,CAHD,South Glos Users in South Glos Homes,Permanent Nursing,Beech House,750.40, 16-Nov-2021
394,Revenue,CAHD,North - Community based support,Permanent Residential,Beech House,16960.00, 16-Nov-2021
395,Revenue,CAHD,North - Community based support,Permanent Residential,Beech House,4480.00, 16-Nov-2021
396,Revenue,CAHD,North - Community based support,Fees & Charges Income - General,Beech House,3280.23, 16-Nov-2021
397,Revenue,CAHD,South Glos Users in South Glos Homes,Permanent Nursing,Beech House,750.40, 16-Nov-2021
398,Revenue,CAHD,South Glos Users in South Glos Homes,Permanent Nursing,Beech House,750.40, 16-Nov-2021
399,Revenue,CAHD,South Glos Users in South Glos Homes,Permanent Nursing,Beech House,750.40, 16-Nov-2021
400,Revenue,CAHD,South Glos Users in South Glos Homes,Permanent Nursing,Beech House,750.40, 16-Nov-2021
401,Revenue,CAHD,North - Community based support,Permanent Residential,Beech House,4460.28, 16-Nov-2021
402,Revenue,CAHD,Covid - ASC - Infection Control,Grants to Voluntary Bodies,Beech House,9225.95, 30-Nov-2021
403,Revenue,CAHD,ASC Rapid Testing Fund,Grants to Voluntary Bodies,Beech House,6555.48, 30-Nov-2021
404,Revenue,CAHD,Covid - Vaccines,Grants to Voluntary Bodies,Beech House,805.99, 30-Nov-2021
405,Revenue,CAHD,South Glos Users in South Glos Homes,Permanent Nursing,Beechwood Care Home,1122.00, 16-Nov-2021
406,Revenue,CAHD,18-25 Year Olds,Permanent Residential,Beechwood Court Ltd,21854.54, 10-Nov-2021
407,Revenue,CAHD,18-25 Year Olds,Permanent Residential,Beechwood Court Ltd,14586.31, 22-Nov-2021
408,Revenue,CAHD,18-25 Year Olds,Permanent Residential,Beechwood Court Ltd,20867.62, 22-Nov-2021
409,Revenue,CAHD,South - Commissioned Services,Permanent Nursing,Begbrook House Nursing Home,3593.88, 16-Nov-2021
410,Revenue,CAHD,North - Community based support,Permanent Nursing,Begbrook House Nursing Home,3234.72, 16-Nov-2021
411,Revenue,CAHD,South - Commissioned Services,Permanent Residential,Begbrook House Nursing Home,3400.00, 16-Nov-2021
412,Revenue,CAHD,Central - Commissioned Services,Permanent Nursing,Begbrook House Nursing Home,3400.00, 16-Nov-2021
413,Revenue,CAHD,Schools Specific Grant Income,Other Public Bodies,Begbrook Primary Academy,500.00, 19-Nov-2021
414,Revenue,CAHD,Schools Specific Grant Income,Other Public Bodies,Begbrook Primary Academy,500.00, 19-Nov-2021
415,Revenue,CAHD,Schools Specific Grant Income,Educational Materials,Better Bilingual CIC,575.00, 30-Nov-2021
416,Revenue,CAHD,ICES / NRS Contract,Legal Fees,Bevan Brittan LLP,3301.12, 19-Nov-2021
417,Revenue,CAHD,ICES / NRS Contract,Legal Fees,Bevan Brittan LLP,1842.13, 19-Nov-2021
418,Revenue,CAHD,ICES / NRS Contract,Legal Fees,Bevan Brittan LLP,2474.50, 19-Nov-2021
419,Revenue,CAHD,ICES / NRS Contract,Legal Fees,Bevan Brittan LLP,429.18, 19-Nov-2021
420,Revenue,CAHD,ICES / NRS Contract,Legal Fees,Bevan Brittan LLP,1029.75, 19-Nov-2021
421,Revenue,CAHD,Schools Specific Grant Income,Other Public Bodies,Biddenham International School & Sports College,500.00, 19-Nov-2021
422,Revenue,CAHD,South - S117,Permanent Residential,Bidna House,3774.24, 16-Nov-2021
423,Revenue,CAHD,Tobacco Control,Other Supplies & Services,Bionical Solutions Limited,7171.76, 22-Nov-2021
424,Revenue,CAHD,Schools Specific Grant Income,Other Public Bodies,Blaise High School,500.00, 19-Nov-2021
425,Revenue,CAHD,Placements OLA Special Schools and RB,Other L.A.s - General,Blaise High School,807.94, 22-Nov-2021
426,Revenue,CAHD,Placements OLA Special Schools and RB,Other L.A.s - General,Blaise High School,766.84, 22-Nov-2021
427,Revenue,CAHD,Statemented Support Payments to OLAs,Other L.A.s - General,Blaise High School,907.83, 22-Nov-2021
428,Revenue,CAHD,Placements OLA Special Schools and RB,Other L.A.s - General,Blaise High School,766.84, 22-Nov-2021
429,Revenue,CAHD,Central - Commissioned Services,Other Small Contracts,Blakehill Healthcare Ltd,5618.75, 08-Nov-2021
430,Revenue,CAHD,South - Commissioned Services,Other Small Contracts,Blakehill Healthcare Ltd,2216.06, 08-Nov-2021
431,Revenue,CAHD,North - Community based support,Other Small Contracts,Blakehill Healthcare Ltd,4697.65, 08-Nov-2021
432,Revenue,CAHD,18-25 Year Olds,Other Small Contracts,Blakehill Healthcare Ltd,206.25, 26-Nov-2021
433,Revenue,CAHD,Central - Commissioned Services,Other Small Contracts,Blakehill Healthcare Ltd,5387.50, 26-Nov-2021
434,Revenue,CAHD,South - Commissioned Services,Other Small Contracts,Blakehill Healthcare Ltd,4335.08, 26-Nov-2021
435,Revenue,CAHD,North - Community based support,Other Small Contracts,Blakehill Healthcare Ltd,4387.15, 26-Nov-2021
436,Revenue,CAHD,18-25 Year Olds,Other Small Contracts,Blakehill Healthcare Ltd,481.25, 26-Nov-2021
437,Revenue,CAHD,Central - Commissioned Services,Other Small Contracts,Blakehill Healthcare Ltd,5206.25, 26-Nov-2021
438,Revenue,CAHD,South - Commissioned Services,Other Small Contracts,Blakehill Healthcare Ltd,5139.75, 26-Nov-2021
439,Revenue,CAHD,North - Community based support,Other Small Contracts,Blakehill Healthcare Ltd,4193.85, 26-Nov-2021
440,Revenue,CAHD,18-25 Year Olds,Other Small Contracts,Blakehill Healthcare Ltd,450.00, 26-Nov-2021
441,Revenue,CAHD,Central - Commissioned Services,Other Small Contracts,Blakehill Healthcare Ltd,5312.50, 26-Nov-2021
442,Revenue,CAHD,South - Commissioned Services,Other Small Contracts,Blakehill Healthcare Ltd,5773.49, 26-Nov-2021
443,Revenue,CAHD,North - Community based support,Other Small Contracts,Blakehill Healthcare Ltd,4316.50, 26-Nov-2021
444,Revenue,CAHD,South Glos Users in South Glos Homes,Permanent Nursing,Blossom Fields Nursing Home,750.40, 16-Nov-2021
445,Revenue,CAHD,North - Community based support,Permanent Nursing,Blossom Fields Nursing Home,522.87, 16-Nov-2021
446,Revenue,CAHD,South Glos Users in South Glos Homes,Permanent Nursing,Blossom Fields Nursing Home,750.40, 16-Nov-2021
447,Revenue,CAHD,South Glos Users in South Glos Homes,Permanent Nursing,Blossom Fields Nursing Home,750.40, 16-Nov-2021
448,Revenue,CAHD,South Glos Users in South Glos Homes,Permanent Nursing,Blossom Fields Nursing Home,750.40, 16-Nov-2021
449,Revenue,CAHD,South - Commissioned Services,Permanent Nursing,Blossom Fields Nursing Home,3600.00, 16-Nov-2021
450,Revenue,CAHD,South Glos Users in South Glos Homes,Permanent Nursing,Blossom Fields Nursing Home,750.40, 16-Nov-2021
451,Revenue,CAHD,North - Community based support,Permanent Nursing,Blossom Fields Nursing Home,4910.28, 16-Nov-2021
452,Revenue,CAHD,South Glos Users in South Glos Homes,Permanent Nursing,Blossom Fields Nursing Home,750.40, 16-Nov-2021
453,Revenue,CAHD,South Glos Users in South Glos Homes,Permanent Nursing,Blossom Fields Nursing Home,750.40, 16-Nov-2021
454,Revenue,CAHD,South Glos Users in South Glos Homes,Permanent Nursing,Blossom Fields Nursing Home,1286.40, 16-Nov-2021
455,Revenue,CAHD,South Glos Users in South Glos Homes,Permanent Nursing,Blossom Fields Nursing Home,750.40, 16-Nov-2021
456,Revenue,CAHD,South Glos Users in South Glos Homes,Permanent Nursing,Blossom Fields Nursing Home,750.40, 16-Nov-2021
457,Revenue,CAHD,South Glos Users in South Glos Homes,Permanent Nursing,Blossom Fields Nursing Home,750.40, 16-Nov-2021
458,Revenue,CAHD,South Glos Users in South Glos Homes,Permanent Nursing,Blossom Fields Nursing Home,750.40, 16-Nov-2021
459,Revenue,CAHD,North - Community based support,Permanent Residential,Blossom Fields Nursing Home,4132.12, 16-Nov-2021
460,Revenue,CAHD,South Glos Users in South Glos Homes,Permanent Nursing,Blossom Fields Nursing Home,750.40, 16-Nov-2021
461,Revenue,CAHD,South Glos Users in South Glos Homes,Permanent Nursing,Blossom Fields Nursing Home,750.40, 16-Nov-2021
462,Revenue,CAHD,North - Community based support,Permanent Nursing,Blossom Fields Nursing Home,4132.12, 16-Nov-2021
463,Revenue,CAHD,South Glos Users in South Glos Homes,Permanent Nursing,Blossom Fields Nursing Home,750.40, 16-Nov-2021
464,Revenue,CAHD,South Glos Users in South Glos Homes,Permanent Nursing,Blossom Fields Nursing Home,750.40, 16-Nov-2021
465,Revenue,CAHD,South Glos Users in South Glos Homes,Permanent Nursing,Blossom Fields Nursing Home,750.40, 16-Nov-2021
466,Revenue,CAHD,South Glos Users in South Glos Homes,Permanent Nursing,Blossom Fields Nursing Home,750.40, 16-Nov-2021
467,Revenue,CAHD,South Glos Users in South Glos Homes,Permanent Nursing,Blossom Fields Nursing Home,750.40, 16-Nov-2021
468,Revenue,CAHD,South Glos Users in South Glos Homes,Permanent Nursing,Blossom Fields Nursing Home,750.40, 16-Nov-2021
469,Revenue,CAHD,South Glos Users in South Glos Homes,Permanent Nursing,Blossom Fields Nursing Home,750.40, 16-Nov-2021
470,Revenue,CAHD,South - Commissioned Services,Respite Emergency - Residential,Blossom Fields Nursing Home,10035.15, 16-Nov-2021
471,Revenue,CAHD,South Glos Users in South Glos Homes,Permanent Nursing,Blossom Fields Nursing Home,750.40, 16-Nov-2021
472,Revenue,CAHD,Central - Commissioned Services,Permanent Nursing,Blossom Fields Nursing Home,3600.00, 16-Nov-2021
473,Revenue,CAHD,South Glos Users in South Glos Homes,Permanent Nursing,Blossom Fields Nursing Home,750.40, 16-Nov-2021
474,Revenue,CAHD,South Glos Users in South Glos Homes,Permanent Nursing,Blossom Fields Nursing Home,750.40, 16-Nov-2021
475,Revenue,CAHD,South Glos Users in South Glos Homes,Permanent Nursing,Blossom Fields Nursing Home,750.40, 16-Nov-2021
476,Revenue,CAHD,South Glos Users in South Glos Homes,Permanent Nursing,Blossom Fields Nursing Home,1232.80, 16-Nov-2021
477,Revenue,CAHD,South Glos Users in South Glos Homes,Permanent Nursing,Blossom Fields Nursing Home,750.40, 16-Nov-2021
478,Revenue,CAHD,Central - Commissioned Services,Permanent Nursing,Blossom Fields Nursing Home,4132.12, 16-Nov-2021
479,Revenue,CAHD,South Glos Users in South Glos Homes,Permanent Nursing,Blossom Fields Nursing Home,750.40, 16-Nov-2021
480,Revenue,CAHD,South Glos Users in South Glos Homes,Permanent Nursing,Blossom Fields Nursing Home,750.40, 16-Nov-2021
481,Revenue,CAHD,North - Community based support,Permanent Nursing,Blossom Fields Nursing Home,3792.92, 16-Nov-2021
482,Revenue,CAHD,South Glos Users in South Glos Homes,Permanent Nursing,Blossom Fields Nursing Home,750.40, 16-Nov-2021
483,Revenue,CAHD,Covid - ASC - Infection Control,Grants to Voluntary Bodies,Blossom Fields Nursing Home,7213.01, 30-Nov-2021
484,Revenue,CAHD,ASC Rapid Testing Fund,Grants to Voluntary Bodies,Blossom Fields Nursing Home,5125.19, 30-Nov-2021
485,Revenue,CAHD,Covid - Vaccines,Grants to Voluntary Bodies,Blossom Fields Nursing Home,630.14, 30-Nov-2021
486,Revenue,CAHD,South Glos Users in South Glos Homes,Permanent Nursing,Blossom Fields Nursing Home,750.40, 16-Nov-2021
487,Revenue,CAHD,South Glos Users in South Glos Homes,Permanent Nursing,Blossom Fields Nursing Home,750.40, 16-Nov-2021
488,Revenue,CAHD,North - Community based support,Permanent Residential,Blossom Fields Nursing Home,3800.00, 16-Nov-2021
489,Revenue,CAHD,South Glos Users in South Glos Homes,Permanent Nursing,Blossom Fields Nursing Home,750.40, 16-Nov-2021
490,Revenue,CAHD,South - S117,Permanent Residential,Blossom Fields Nursing Home,4400.00, 16-Nov-2021
491,Revenue,CAHD,South Glos Users in South Glos Homes,Permanent Nursing,Blossom Fields Nursing Home,750.40, 16-Nov-2021
492,Revenue,CAHD,South Glos Users in South Glos Homes,Permanent Nursing,Blossom Fields Nursing Home,750.40, 16-Nov-2021
493,Revenue,CAHD,Central - Commissioned Services,Permanent Residential,Blossom Fields Nursing Home,3800.00, 16-Nov-2021
494,Revenue,CAHD,South Glos Users in South Glos Homes,Permanent Nursing,Blossom Fields Nursing Home,750.40, 16-Nov-2021
495,Revenue,CAHD,South Glos Users in South Glos Homes,Permanent Nursing,Blossom Fields Nursing Home,750.40, 16-Nov-2021
496,Revenue,CAHD,South - Commissioned Services,Permanent Nursing,Blossom Fields Nursing Home,4790.76, 16-Nov-2021
497,Revenue,CAHD,South Glos Users in South Glos Homes,Permanent Nursing,Blossom Fields Nursing Home,750.40, 16-Nov-2021
498,Revenue,CAHD,Central - Commissioned Services,Permanent Nursing,Blossom Fields Nursing Home,5123.80, 16-Nov-2021
499,Revenue,CAHD,South Glos Users in South Glos Homes,Permanent Nursing,Blossom Fields Nursing Home,750.40, 16-Nov-2021
500,Revenue,CAHD,Central - Commissioned Services,Permanent Nursing,Blossom Fields Nursing Home,4132.12, 16-Nov-2021
501,Revenue,CAHD,South Glos Users in South Glos Homes,Permanent Nursing,Blossom Fields Nursing Home,750.40, 16-Nov-2021
502,Revenue,CAHD,South - Commissioned Services,Permanent Nursing,Blossom Fields Nursing Home,3943.04, 16-Nov-2021
503,Revenue,CAHD,South Glos Users in South Glos Homes,Permanent Nursing,Blossom Fields Nursing Home,750.40, 16-Nov-2021
504,Revenue,CAHD,Central - Commissioned Services,Permanent Nursing,Blossom Fields Nursing Home,4132.12, 16-Nov-2021
505,Revenue,CAHD,South Glos Users in South Glos Homes,Permanent Nursing,Blossom Fields Nursing Home,750.40, 16-Nov-2021
506,Revenue,CAHD,Central - Commissioned Services,Permanent Nursing,Blossom Fields Nursing Home,4790.76, 16-Nov-2021
507,Revenue,CAHD,South Glos Users in South Glos Homes,Permanent Nursing,Blossom Fields Nursing Home,750.40, 16-Nov-2021
508,Revenue,CAHD,South - Commissioned Services,Permanent Residential,Blossom Fields Nursing Home,5115.00, 16-Nov-2021
509,Revenue,CAHD,South Glos Users in South Glos Homes,Permanent Nursing,Blossom Fields Nursing Home,750.40, 16-Nov-2021
510,Revenue,CAHD,South Glos Users in South Glos Homes,Permanent Nursing,Blossom Fields Nursing Home,750.40, 16-Nov-2021
511,Revenue,CAHD,Central - Commissioned Services,Fees & Charges Income - General,Blossom Fields Nursing Home,985.40, 16-Nov-2021
512,Revenue,CAHD,North - S117,Permanent Residential,Blossom Fields Nursing Home,4910.40, 16-Nov-2021
513,Revenue,CAHD,South Glos Users in South Glos Homes,Permanent Nursing,Blossom Fields Nursing Home,750.40, 16-Nov-2021
514,Revenue,CAHD,South Glos Users in South Glos Homes,Permanent Nursing,Blossom Fields Nursing Home,750.40, 16-Nov-2021
515,Revenue,CAHD,South Glos Users in South Glos Homes,Permanent Nursing,Blossom Fields Nursing Home,750.40, 16-Nov-2021
516,Revenue,CAHD,North - S117,Permanent Residential,Blossom Fields Nursing Home,5115.00, 16-Nov-2021
517,Revenue,CAHD,South Glos Users in South Glos Homes,Permanent Nursing,Blossom Fields Nursing Home,750.40, 16-Nov-2021
518,Revenue,CAHD,South Glos Users in South Glos Homes,Permanent Nursing,Blossom Fields Nursing Home,750.40, 16-Nov-2021
519,Revenue,CAHD,Central - Commissioned Services,Permanent Nursing,Blossom Fields Nursing Home,4818.72, 16-Nov-2021
520,Revenue,CAHD,South Glos Users in South Glos Homes,Permanent Nursing,Blossom Fields Nursing Home,750.40, 16-Nov-2021
521,Revenue,CAHD,South Glos Users in South Glos Homes,Permanent Nursing,Blossom Fields Nursing Home,750.40, 16-Nov-2021
522,Revenue,CAHD,Central - Commissioned Services,Permanent Nursing,Blossom Fields Nursing Home,4132.12, 16-Nov-2021
523,Revenue,CAHD,South Glos Users in South Glos Homes,Permanent Nursing,Blossom Fields Nursing Home,750.40, 16-Nov-2021
524,Revenue,CAHD,Central - Commissioned Services,Permanent Nursing,Blossom Fields Nursing Home,4600.00, 16-Nov-2021
525,Revenue,CAHD,South Glos Users in South Glos Homes,Permanent Nursing,Blossom Fields Nursing Home,750.40, 16-Nov-2021
526,Revenue,CAHD,South Glos Users in South Glos Homes,Permanent Nursing,Blossom Fields Nursing Home,1795.60, 16-Nov-2021
527,Revenue,CAHD,South Glos Users in South Glos Homes,Permanent Nursing,Blossom Fields Nursing Home,750.40, 16-Nov-2021
528,Revenue,CAHD,South Glos Users in South Glos Homes,Permanent Nursing,Blossom Fields Nursing Home,750.40, 16-Nov-2021
529,Revenue,CAHD,South Glos Users in South Glos Homes,Permanent Nursing,Blossom Fields Nursing Home,750.40, 16-Nov-2021
530,Revenue,CAHD,South Glos Users in South Glos Homes,Permanent Nursing,Blossom Fields Nursing Home,750.40, 16-Nov-2021
531,Revenue,CAHD,South Glos Users in South Glos Homes,Permanent Nursing,Blossom Fields Nursing Home,750.40, 16-Nov-2021
532,Revenue,CAHD,South Glos Users in South Glos Homes,Permanent Nursing,Blossom Fields Nursing Home,750.40, 16-Nov-2021
533,Revenue,CAHD,South - Commissioned Services,Permanent Nursing,Blossom Fields Nursing Home,5000.00, 16-Nov-2021
534,Revenue,CAHD,South Glos Users in South Glos Homes,Permanent Nursing,Blossom Fields Nursing Home,750.40, 16-Nov-2021
535,Revenue,CAHD,South Glos Users in South Glos Homes,Permanent Nursing,Blossom Fields Nursing Home,750.40, 16-Nov-2021
536,Revenue,CAHD,Central - Commissioned Services,Permanent Nursing,Blossom Fields Nursing Home,4910.40, 16-Nov-2021
537,Revenue,CAHD,South Glos Users in South Glos Homes,Permanent Nursing,Blossom Fields Nursing Home,750.40, 16-Nov-2021
538,Revenue,CAHD,Central - Commissioned Services,Permanent Nursing,Blossom Fields Nursing Home,4132.12, 16-Nov-2021
539,Revenue,CAHD,South Glos Users in South Glos Homes,Permanent Nursing,Blossom Fields Nursing Home,750.40, 16-Nov-2021
540,Revenue,CAHD,Central - Commissioned Services,Permanent Nursing,Blossom Fields Nursing Home,3600.00, 16-Nov-2021
541,Revenue,CAHD,South Glos Users in South Glos Homes,Permanent Nursing,Blossom Fields Nursing Home,750.40, 16-Nov-2021
542,Revenue,CAHD,South Glos Users in South Glos Homes,Permanent Nursing,Blossom Fields Nursing Home,750.40, 16-Nov-2021
543,Revenue,CAHD,South Glos Users in South Glos Homes,Permanent Nursing,Blossom Fields Nursing Home,750.40, 16-Nov-2021
544,Revenue,CAHD,South Glos Users in South Glos Homes,Permanent Nursing,Blossom Fields Nursing Home,750.40, 16-Nov-2021
545,Revenue,CAHD,South Glos Users in South Glos Homes,Permanent Nursing,Blossom Fields Nursing Home,1018.40, 16-Nov-2021
546,Revenue,CAHD,South Glos Users in South Glos Homes,Permanent Nursing,Blossom Fields Nursing Home,750.40, 16-Nov-2021
547,Revenue,CAHD,South Glos Users in South Glos Homes,Permanent Nursing,Blossom Fields Nursing Home,1259.60, 16-Nov-2021
548,Revenue,CAHD,North - Community based support,Respite Planned - Nursing,Blossom Fields Nursing Home,738.07, 16-Nov-2021
549,Revenue,CAHD,South - Commissioned Services,Permanent Nursing,Blossom Fields Nursing Home,3600.00, 16-Nov-2021
550,Revenue,CAHD,South Glos Users in South Glos Homes,Permanent Nursing,Blossom Fields Nursing Home,750.40, 16-Nov-2021
551,Revenue,CAHD,Central - Commissioned Services,Permanent Nursing,Blossom Fields Nursing Home,5115.00, 16-Nov-2021
552,Revenue,CAHD,South Glos Users in South Glos Homes,Permanent Nursing,Blossom Fields Nursing Home,750.40, 16-Nov-2021
553,Revenue,CAHD,Central - Commissioned Services,Permanent Nursing,Blossom Fields Nursing Home,4132.12, 16-Nov-2021
554,Revenue,CAHD,South Glos Users in South Glos Homes,Permanent Nursing,Blossom Fields Nursing Home,750.40, 16-Nov-2021
555,Revenue,CAHD,Covid - ASC - Infection Control,Grants to Voluntary Bodies,Blossom Fields Nursing Home,10903.39, 30-Nov-2021
556,Revenue,CAHD,ASC Rapid Testing Fund,Grants to Voluntary Bodies,Blossom Fields Nursing Home,7747.38, 30-Nov-2021
557,Revenue,CAHD,Covid - Vaccines,Grants to Voluntary Bodies,Blossom Fields Nursing Home,952.53, 30-Nov-2021
558,Revenue,CAHD,Statemented Support Payments to OLAs,Other L.A.s - General,Blue Coat CE VA Primary School,837.09, 22-Nov-2021
559,Revenue,CAHD,Statemented Support Payments to OLAs,Other L.A.s - General,Blue Coat CE VA Primary School,1292.50, 22-Nov-2021
560,Revenue,CAHD,North - Community based support,Permanent Residential,Bluebells,3699.60, 16-Nov-2021
561,Revenue,CAHD,Central - Commissioned Services,Other Small Contracts,Bluebird Care (South Gloucestershire),13391.14, 10-Nov-2021
562,Revenue,CAHD,South - Commissioned Services,Other Small Contracts,Bluebird Care (South Gloucestershire),4375.79, 10-Nov-2021
563,Revenue,CAHD,North - Community based support,Other Small Contracts,Bluebird Care (South Gloucestershire),5359.84, 10-Nov-2021
564,Revenue,CAHD,Central - Commissioned Services,Other Small Contracts,Bluebird Care (South Gloucestershire),13323.19, 26-Nov-2021
565,Revenue,CAHD,South - Commissioned Services,Other Small Contracts,Bluebird Care (South Gloucestershire),4322.94, 26-Nov-2021
566,Revenue,CAHD,North - Community based support,Other Small Contracts,Bluebird Care (South Gloucestershire),5372.69, 26-Nov-2021
567,Revenue,CAHD,Central - Commissioned Services,Other Small Contracts,Bluebird Care (South Gloucestershire),12722.34, 26-Nov-2021
568,Revenue,CAHD,South - Commissioned Services,Other Small Contracts,Bluebird Care (South Gloucestershire),4398.44, 26-Nov-2021
569,Revenue,CAHD,North - Community based support,Other Small Contracts,Bluebird Care (South Gloucestershire),5193.74, 26-Nov-2021
570,Revenue,CAHD,Central - Commissioned Services,Other Small Contracts,Bluebird Care (South Gloucestershire),12688.01, 29-Nov-2021
571,Revenue,CAHD,South - Commissioned Services,Other Small Contracts,Bluebird Care (South Gloucestershire),4421.09, 29-Nov-2021
572,Revenue,CAHD,North - Community based support,Other Small Contracts,Bluebird Care (South Gloucestershire),4934.50, 29-Nov-2021
573,Revenue,CAHD,Central - Commissioned Services,Other Small Contracts,Bluebird Care (South Gloucestershire),12726.74, 30-Nov-2021
574,Revenue,CAHD,South - Commissioned Services,Other Small Contracts,Bluebird Care (South Gloucestershire),4239.89, 30-Nov-2021
575,Revenue,CAHD,North - Community based support,Other Small Contracts,Bluebird Care (South Gloucestershire),4807.49, 30-Nov-2021
576,Revenue,CAHD,Drug and Alcohol Programme,Other Small Contracts,Boots UK Ltd,600.00, 08-Nov-2021
577,Revenue,CAHD,Drug and Alcohol Programme,Other Small Contracts,Boots UK Ltd,825.00, 08-Nov-2021
578,Revenue,CAHD,S28A cases,Permanent Residential,Bradbury House,6505.16, 16-Nov-2021
579,Revenue,CAHD,Jointly Funded H&SC Packages,Permanent Residential,Bradbury House,8441.92, 16-Nov-2021
580,Revenue,CAHD,North - S117,Permanent Residential,Bradbury House,5772.00, 16-Nov-2021
581,Revenue,CAHD,South - Commissioned Services,Permanent Residential,Bradbury House,10168.08, 16-Nov-2021
582,Revenue,CAHD,Drug and Alcohol Programme,Other Small Contracts,Bradley Stoke Surgery,1421.00, 05-Nov-2021
583,Revenue,CAHD,NHS Health Checks,Other Small Contracts,Bradley Stoke Surgery,966.00, 05-Nov-2021
584,Revenue,CAHD,Sexual Health,Other Small Contracts,Bradley Stoke Surgery,3059.00, 12-Nov-2021
585,Revenue,CAHD,Sexual Health,Other Small Contracts,Bradley Stoke Surgery,3076.44, 12-Nov-2021
586,Revenue,CAHD,CSC - Residential Placements,Permanent Residential,Branas ISAF Ltd,21921.34, 01-Nov-2021
587,Revenue,CAHD,CSC - Residential Placements,Permanent Residential,Branas ISAF Ltd,21214.20, 22-Nov-2021
588,Revenue,CAHD,North - Community based support,Respite Planned - Nursing,Breadstone House Care Centre,8746.65, 16-Nov-2021
589,Revenue,CAHD,North - Community based support,Respite Planned - Nursing,Breadstone House Care Centre,2577.96, 16-Nov-2021
590,Revenue,CAHD,Social Lettings Agency,Rent,Individual,822.73, 25-Nov-2021
591,Revenue,CAHD,Social Lettings Agency,Fees & Charges Income - General,Individual,-102.80, 25-Nov-2021
592,Revenue,CAHD,Social Lettings Agency,Rent,Individual,915.00, 03-Nov-2021
593,Revenue,CAHD,Social Lettings Agency,Fees & Charges Income - General,Individual,-73.20, 03-Nov-2021
594,Revenue,CAHD,Placements OLA Special Schools and RB,Other L.A.s - General,Briarwood School,2685.21, 22-Nov-2021
595,Revenue,CAHD,North - Community based support,Permanent Residential,Bridge House Care Home,3100.00, 16-Nov-2021
596,Revenue,CAHD,North - Community based support,Permanent Residential,Bridge House Care Home,2913.52, 16-Nov-2021
597,Revenue,CAHD,Covid - ASC - Infection Control,Grants to Voluntary Bodies,Bridge House Care Home,2683.91, 30-Nov-2021
598,Revenue,CAHD,ASC Rapid Testing Fund,Grants to Voluntary Bodies,Bridge House Care Home,1907.05, 30-Nov-2021
599,Revenue,CAHD,North - Community based support,Permanent Residential,Bridgwater Court Care Home,10773.64, 16-Nov-2021
600,Revenue,CAHD,EARLY YEARS DEPRIVATION PAYMENT,Preventative Assistance,Bright Sparks,1076.15, 12-Nov-2021
601,Revenue,CAHD,Early Years Pupil Premium Grant,Preventative Assistance,Bright Sparks,620.10, 12-Nov-2021
602,Revenue,CAHD,EARLY YEARS DEPRIVATION PAYMENT,Preventative Assistance,Bright Sparks Pre School Ltd,538.07, 12-Nov-2021
603,Revenue,CAHD,Statemented Support Payments to OLAs,Other L.A.s - General,Bristol Cathedral Choir School,942.58, 22-Nov-2021
604,Revenue,CAHD,Statemented Support Payments to OLAs,Other L.A.s - General,Bristol Cathedral Choir School,880.08, 22-Nov-2021
605,Revenue,CAHD,Schools Specific Grant Income,Other Public Bodies,Bristol Cathedral Choir School,500.00, 19-Nov-2021
606,Revenue,CAHD,Statemented Support Payments to OLAs,Other L.A.s - General,Bristol Cathedral Choir School,978.57, 22-Nov-2021
607,Revenue,CAHD,CSC - Section 17 SOUTH,Interpreting & Translation,Bristol City Council,633.57, 01-Nov-2021
608,Revenue,CAHD,Serious Case Review Child Safeguarding,Fees - General,Bristol City Council,4552.00, 26-Nov-2021
609,Revenue,CAHD,Schools Specific Grant Income,Other Public Bodies,Bristol City Council - Schools,500.00, 19-Nov-2021
610,Revenue,CAHD,Statemented Support Payments to OLAs,Other L.A.s - General,Bristol City Council Schools General,897.42, 22-Nov-2021
611,Revenue,CAHD,Statemented Support Payments to OLAs,Other L.A.s - General,Bristol City Council Schools General,635.33, 22-Nov-2021
612,Revenue,CAHD,SEN High Needs - Not at School Base,Other Private Contractors,Bristol Tuition Limited,532.00, 11-Nov-2021
613,Revenue,CAHD,High Risk Group Funding,Other Public Bodies,Bristol Tuition Limited,658.80, 17-Nov-2021
614,Revenue,CAHD,CSC - Section 17 CENTRAL,Day Care / Social Activities,Britannia Day Nursery,990.00, 30-Nov-2021
615,Revenue,CAHD,Statemented Support Payments to OLAs,Other L.A.s - General,Broadlands Academy,835.17, 22-Nov-2021
616,Revenue,CAHD,North - Community based support,Permanent Residential,Brockhills Farm,3200.00, 16-Nov-2021
617,Revenue,CAHD,Supporting People Programme,Grants to Voluntary Bodies,Bromford  :  Merlin Housing Society,15637.00, 01-Nov-2021
618,Revenue,CAHD,Supporting People Programme,Grants to Voluntary Bodies,Bromford  :  Merlin Housing Society,2741.00, 01-Nov-2021
619,Revenue,CAHD,Supporting People Programme,Grants to Voluntary Bodies,Bromford  :  Merlin Housing Society,22940.00, 01-Nov-2021
620,Revenue,CAHD,Supporting People Programme,Grants to Voluntary Bodies,Bromford  :  Merlin Housing Society,1113.00, 01-Nov-2021
621,Revenue,CAHD,Parent Partnership & Disagreement Resolutions,Fees - General,Browne Jacobson,1360.50, 24-Nov-2021
622,Revenue,CAHD,Parent Partnership & Disagreement Resolutions,Fees - General,Browne Jacobson,585.00, 24-Nov-2021
623,Revenue,CAHD,South Glos Users in South Glos Homes,Permanent Nursing,Brunelcare,830.80, 18-Nov-2021
624,Revenue,CAHD,South Glos Users in South Glos Homes,Permanent Nursing,Brunelcare,830.80, 18-Nov-2021
625,Revenue,CAHD,South Glos Users in South Glos Homes,Permanent Nursing,Brunelcare,830.80, 18-Nov-2021
626,Revenue,CAHD,South Glos Users in South Glos Homes,Permanent Nursing,Brunelcare,830.80, 18-Nov-2021
627,Revenue,CAHD,South Glos Users in South Glos Homes,Permanent Nursing,Brunelcare,830.80, 18-Nov-2021
628,Revenue,CAHD,South Glos Users in South Glos Homes,Permanent Nursing,Brunelcare,830.80, 18-Nov-2021
629,Revenue,CAHD,South Glos Users in South Glos Homes,Permanent Nursing,Brunelcare,830.80, 18-Nov-2021
630,Revenue,CAHD,South Glos Users in South Glos Homes,Permanent Nursing,Brunelcare,830.80, 18-Nov-2021
631,Revenue,CAHD,South Glos Users in South Glos Homes,Permanent Nursing,Brunelcare,830.80, 18-Nov-2021
632,Revenue,CAHD,South Glos Users in South Glos Homes,Permanent Nursing,Brunelcare,830.80, 18-Nov-2021
633,Revenue,CAHD,North - S117,Permanent Nursing,Brunelcare,3828.54, 18-Nov-2021
634,Revenue,CAHD,North - S117,Permanent Nursing,Brunelcare,3828.54, 18-Nov-2021
635,Revenue,CAHD,South - Commissioned Services,Permanent Nursing,Brunelcare,3828.54, 18-Nov-2021
636,Revenue,CAHD,South - Commissioned Services,Permanent Nursing,Brunelcare,2743.06, 18-Nov-2021
637,Revenue,CAHD,South - Commissioned Services,Permanent Nursing,Brunelcare,1912.91, 18-Nov-2021
638,Revenue,CAHD,South - Commissioned Services,Permanent Nursing,Brunelcare,1653.32, 18-Nov-2021
639,Revenue,CAHD,South - Commissioned Services,Permanent Nursing,Brunelcare,3096.55, 18-Nov-2021
640,Revenue,CAHD,South - Commissioned Services,Permanent Nursing,Brunelcare,3171.34, 18-Nov-2021
641,Revenue,CAHD,South - Commissioned Services,Permanent Nursing,Brunelcare,2220.40, 18-Nov-2021
642,Revenue,CAHD,Central - Commissioned Services,Permanent Nursing,Brunelcare,2876.27, 18-Nov-2021
643,Revenue,CAHD,Central - Commissioned Services,Permanent Nursing,Brunelcare,3057.66, 18-Nov-2021
644,Revenue,CAHD,North - Community based support,Permanent Nursing,Brunelcare,3828.54, 18-Nov-2021
645,Revenue,CAHD,North - Community based support,Respite Planned - Nursing,Brunelcare,1235.01, 18-Nov-2021
646,Revenue,CAHD,Central - Commissioned Services,Respite Planned - Nursing,Brunelcare,3156.33, 18-Nov-2021
647,Revenue,CAHD,Central - Commissioned Services,Permanent Nursing,Brunelcare,13546.30, 18-Nov-2021
648,Revenue,CAHD,South Glos Users in South Glos Homes,Permanent Nursing,Brunelcare,11509.76, 18-Nov-2021
649,Revenue,CAHD,Central - Commissioned Services,Other Small Contracts,Brunelcare,649.04, 10-Nov-2021
650,Revenue,CAHD,South - Commissioned Services,Other Small Contracts,Brunelcare,14747.04, 10-Nov-2021
651,Revenue,CAHD,South - Commissioned Services,Mentoring,Brunelcare,21.28, 10-Nov-2021
652,Revenue,CAHD,North - Community based support,Other Small Contracts,Brunelcare,212.80, 10-Nov-2021
653,Revenue,CAHD,Central - Commissioned Services,Other Small Contracts,Brunelcare,686.28, 10-Nov-2021
654,Revenue,CAHD,South - Commissioned Services,Other Small Contracts,Brunelcare,14550.20, 10-Nov-2021
655,Revenue,CAHD,South - Commissioned Services,Mentoring,Brunelcare,42.56, 10-Nov-2021
656,Revenue,CAHD,North - Community based support,Other Small Contracts,Brunelcare,393.68, 10-Nov-2021
657,Revenue,CAHD,Central - Commissioned Services,Other Small Contracts,Brunelcare,654.36, 26-Nov-2021
658,Revenue,CAHD,South - Commissioned Services,Other Small Contracts,Brunelcare,13986.28, 26-Nov-2021
659,Revenue,CAHD,South - Commissioned Services,Mentoring,Brunelcare,42.56, 26-Nov-2021
660,Revenue,CAHD,North - Community based support,Other Small Contracts,Brunelcare,383.04, 26-Nov-2021
661,Revenue,CAHD,North - S117,Permanent Residential,Buckland Care,3600.00, 16-Nov-2021
662,Revenue,CAHD,CSC - Vinney Green Secure Unit,Service Contracts (Premises),BWS Standfast Fire & Security Systems,1279.37, 04-Nov-2021
663,Revenue,CAHD,CSC - Vinney Green Secure Unit,R & M by Departments,BWS Standfast Fire & Security Systems,687.77, 29-Nov-2021
664,Revenue,CAHD,Social Lettings Agency,Rent,Individual,947.40, 12-Nov-2021
665,Revenue,CAHD,Social Lettings Agency,Fees & Charges Income - General,Individual,-94.74, 12-Nov-2021
666,Revenue,CAHD,North - Community based support,Permanent Nursing,Clevedon Court Nursing Home,3448.16, 16-Nov-2021
667,Revenue,CAHD,Schools Specific Grant Income,Other Public Bodies,Cabot Learning Federation,500.00, 19-Nov-2021
668,Revenue,CAHD,Schools Specific Grant Income,Other Public Bodies,Cabot Learning Federation,500.00, 19-Nov-2021
669,Revenue,CAHD,Statemented Support Academies,Other Public Bodies,Cabot Learning Federation,1940.01, 23-Nov-2021
670,Revenue,CAHD,Statemented Support Academies,Other Public Bodies,Cabot Learning Federation,1666.67, 23-Nov-2021
671,Revenue,CAHD,Statemented Support Academies,Other Public Bodies,Cabot Learning Federation,1103.25, 23-Nov-2021
672,Revenue,CAHD,Statemented Support Academies,Other Public Bodies,Cabot Learning Federation,1899.58, 23-Nov-2021
673,Revenue,CAHD,Statemented Support Academies,Other Public Bodies,Cabot Learning Federation,788.22, 23-Nov-2021
674,Revenue,CAHD,Statemented Support Academies,Other Public Bodies,Cabot Learning Federation,957.92, 23-Nov-2021
675,Revenue,CAHD,Statemented Support Academies,Other Public Bodies,Cabot Learning Federation,917.67, 23-Nov-2021
676,Revenue,CAHD,Statemented Support Academies,Other Public Bodies,Cabot Learning Federation,1654.33, 23-Nov-2021
677,Revenue,CAHD,Statemented Support Academies,Other Public Bodies,Cabot Learning Federation,658.75, 23-Nov-2021
678,Revenue,CAHD,Statemented Support Academies,Other Public Bodies,Cabot Learning Federation,632.67, 23-Nov-2021
679,Revenue,CAHD,Statemented Support Academies,Other Public Bodies,Cabot Learning Federation,695.61, 23-Nov-2021
680,Revenue,CAHD,Statemented Support Academies,Other Public Bodies,Cabot Learning Federation,918.75, 23-Nov-2021
681,Revenue,CAHD,Statemented Support Academies,Other Public Bodies,Cabot Learning Federation,975.58, 23-Nov-2021
682,Revenue,CAHD,Statemented Support Academies,Other Public Bodies,Cabot Learning Federation,705.00, 23-Nov-2021
683,Revenue,CAHD,Statemented Support Academies,Other Public Bodies,Cabot Learning Federation,1084.17, 23-Nov-2021
684,Revenue,CAHD,Academy Resource Base Funding,Other Public Bodies,Cabot Learning Federation,4109.60, 23-Nov-2021
685,Revenue,CAHD,Academy Resource Base Funding,Other Public Bodies,Cabot Learning Federation,1648.03, 23-Nov-2021
686,Revenue,CAHD,Academy Resource Base Funding,Other Public Bodies,Cabot Learning Federation,1491.13, 23-Nov-2021
687,Revenue,CAHD,Academy Resource Base Funding,Other Public Bodies,Cabot Learning Federation,1491.13, 23-Nov-2021
688,Revenue,CAHD,Academy Resource Base Funding,Other Public Bodies,Cabot Learning Federation,1137.94, 23-Nov-2021
689,Revenue,CAHD,Academy Resource Base Funding,Other Public Bodies,Cabot Learning Federation,1137.94, 23-Nov-2021
690,Revenue,CAHD,Academy Resource Base Funding,Other Public Bodies,Cabot Learning Federation,1137.94, 23-Nov-2021
691,Revenue,CAHD,Academy Resource Base Funding,Other Public Bodies,Cabot Learning Federation,1491.13, 23-Nov-2021
692,Revenue,CAHD,Academy Resource Base Funding,Other Public Bodies,Cabot Learning Federation,981.04, 23-Nov-2021
693,Revenue,CAHD,Academy Resource Base Funding,Other Public Bodies,Cabot Learning Federation,1648.03, 23-Nov-2021
694,Revenue,CAHD,Academy Resource Base Funding,Other Public Bodies,Cabot Learning Federation,1648.03, 23-Nov-2021
695,Revenue,CAHD,Academy Resource Base Funding,Other Public Bodies,Cabot Learning Federation,1137.94, 23-Nov-2021
696,Revenue,CAHD,Academy Resource Base Funding,Other Public Bodies,Cabot Learning Federation,1137.94, 23-Nov-2021
697,Revenue,CAHD,Academy Resource Base Funding,Other Public Bodies,Cabot Learning Federation,1648.03, 23-Nov-2021
698,Revenue,CAHD,Academy Resource Base Funding,Other Public Bodies,Cabot Learning Federation,627.77, 23-Nov-2021
699,Revenue,CAHD,Academy Resource Base Funding,Other Public Bodies,Cabot Learning Federation,1137.94, 23-Nov-2021
700,Revenue,CAHD,Academy Resource Base Funding,Other Public Bodies,Cabot Learning Federation,1648.03, 23-Nov-2021
701,Revenue,CAHD,Academy Resource Base Funding,Other Public Bodies,Cabot Learning Federation,1137.94, 23-Nov-2021
702,Revenue,CAHD,Academy Resource Base Funding,Other Public Bodies,Cabot Learning Federation,1648.03, 23-Nov-2021
703,Revenue,CAHD,Academy Resource Base Funding,Other Public Bodies,Cabot Learning Federation,1648.03, 23-Nov-2021
704,Revenue,CAHD,Academy Resource Base Funding,Other Public Bodies,Cabot Learning Federation,627.77, 23-Nov-2021
705,Revenue,CAHD,Academy Resource Base Funding,Other Public Bodies,Cabot Learning Federation,1491.13, 23-Nov-2021
706,Revenue,CAHD,Academy Resource Base Funding,Other Public Bodies,Cabot Learning Federation,1137.94, 23-Nov-2021
707,Revenue,CAHD,Academy Resource Base Funding,Other Public Bodies,Cabot Learning Federation,2118.90, 23-Nov-2021
708,Revenue,CAHD,Academy Resource Base Funding,Other Public Bodies,Cabot Learning Federation,1137.94, 23-Nov-2021
709,Revenue,CAHD,Statemented Support Academies,Other Public Bodies,Cabot Learning Federation,1626.67, 23-Nov-2021
710,Revenue,CAHD,Statemented Support Academies,Other Public Bodies,Cabot Learning Federation,710.58, 23-Nov-2021
711,Revenue,CAHD,Statemented Support Academies,Other Public Bodies,Cabot Learning Federation,804.08, 23-Nov-2021
712,Revenue,CAHD,Statemented Support Academies,Other Public Bodies,Cabot Learning Federation,855.08, 23-Nov-2021
713,Revenue,CAHD,Statemented Support Academies,Other Public Bodies,Cabot Learning Federation,554.13, 23-Nov-2021
714,Revenue,CAHD,Statemented Support Academies,Other Public Bodies,Cabot Learning Federation,742.77, 23-Nov-2021
715,Revenue,CAHD,Statemented Support Academies,Other Public Bodies,Cabot Learning Federation,778.14, 23-Nov-2021
716,Revenue,CAHD,Statemented Support Academies,Other Public Bodies,Cabot Learning Federation,1202.67, 23-Nov-2021
717,Revenue,CAHD,Statemented Support Academies,Other Public Bodies,Cabot Learning Federation,813.51, 23-Nov-2021
718,Revenue,CAHD,Schools Specific Grant Income,Other Public Bodies,Cabot Learning Federation,500.00, 19-Nov-2021
719,Revenue,CAHD,Schools Specific Grant Income,Other Public Bodies,Cabot Learning Federation,500.00, 19-Nov-2021
720,Revenue,CAHD,Schools Specific Grant Income,Other Public Bodies,Cabot Learning Federation,500.00, 19-Nov-2021
721,Revenue,CAHD,Schools Specific Grant Income,Other Public Bodies,Cabot Learning Federation,500.00, 19-Nov-2021
722,Revenue,CAHD,Schools Specific Grant Income,Other Public Bodies,Cabot Learning Federation,500.00, 19-Nov-2021
723,Revenue,CAHD,Schools Specific Grant Income,Other Public Bodies,Cabot Learning Federation,500.00, 19-Nov-2021
724,Revenue,CAHD,Statemented Support Payments to OLAs,Other L.A.s - General,Cabot Learning Federation,601.29, 22-Nov-2021
725,Revenue,CAHD,Statemented Support Academies,Other Public Bodies,Cabot Learning Federation,661.33, 23-Nov-2021
726,Revenue,CAHD,Statemented Support Academies,Other Public Bodies,Cabot Learning Federation,1131.84, 23-Nov-2021
727,Revenue,CAHD,Statemented Support Academies,Other Public Bodies,Cabot Learning Federation,554.13, 23-Nov-2021
728,Revenue,CAHD,Statemented Support Academies,Other Public Bodies,Cabot Learning Federation,1028.08, 23-Nov-2021
729,Revenue,CAHD,Statemented Support Academies,Other Public Bodies,Cabot Learning Federation,1096.47, 23-Nov-2021
730,Revenue,CAHD,Statemented Support Academies,Other Public Bodies,Cabot Learning Federation,1429.42, 23-Nov-2021
731,Revenue,CAHD,Statemented Support Academies,Other Public Bodies,Cabot Learning Federation,730.98, 23-Nov-2021
732,Revenue,CAHD,Statemented Support Academies,Other Public Bodies,Cabot Learning Federation,680.42, 23-Nov-2021
733,Revenue,CAHD,Statemented Support Academies,Other Public Bodies,Cabot Learning Federation,1150.25, 23-Nov-2021
734,Revenue,CAHD,Statemented Support Academies,Other Public Bodies,Cabot Learning Federation,685.33, 23-Nov-2021
735,Revenue,CAHD,Statemented Support Academies,Other Public Bodies,Cabot Learning Federation,530.55, 23-Nov-2021
736,Revenue,CAHD,Statemented Support Payments to OLAs,Other L.A.s - General,Cabot Learning Federation,1062.33, 22-Nov-2021
737,Revenue,CAHD,Statemented Support Payments to OLAs,Other L.A.s - General,Cabot Learning Federation,809.75, 22-Nov-2021
738,Revenue,CAHD,Statemented Support Payments to OLAs,Other L.A.s - General,Cabot Learning Federation,888.33, 22-Nov-2021
739,Revenue,CAHD,Statemented Support Academies,Other Public Bodies,Cabot Learning Federation,577.50, 23-Nov-2021
740,Revenue,CAHD,Statemented Support Academies,Other Public Bodies,Cabot Learning Federation,1297.08, 23-Nov-2021
741,Revenue,CAHD,Statemented Support Academies,Other Public Bodies,Cabot Learning Federation,966.83, 23-Nov-2021
742,Revenue,CAHD,Schools Specific Grant Income,Other Public Bodies,Cabot Learning Federation,500.00, 19-Nov-2021
743,Revenue,CAHD,Schools Specific Grant Income,Other Public Bodies,Cabot Learning Federation,500.00, 19-Nov-2021
744,Revenue,CAHD,Statemented Support Payments to OLAs,Other L.A.s - General,Cabot Learning Federation,665.33, 22-Nov-2021
745,Revenue,CAHD,Drug and Alcohol Programme,Other Small Contracts,Cadbury Heath Healthcare,3146.50, 05-Nov-2021
746,Revenue,CAHD,NHS Health Checks,Other Small Contracts,Cadbury Heath Healthcare,1081.00, 05-Nov-2021
747,Revenue,CAHD,Sexual Health,Other Small Contracts,Cadbury Heath Healthcare,1288.00, 12-Nov-2021
748,Revenue,CAHD,Sexual Health,Other Small Contracts,Cadbury Heath Healthcare,1445.30, 12-Nov-2021
749,Revenue,CAHD,Drug and Alcohol Programme,Other Small Contracts,Cadbury Heath Ltd,525.00, 08-Nov-2021
750,Revenue,CAHD,EARLY YEARS DEPRIVATION PAYMENT,Preventative Assistance,Caerleon Childcare,896.79, 12-Nov-2021
751,Revenue,CAHD,Early Years Pupil Premium Grant,Preventative Assistance,Caerleon Childcare,516.75, 12-Nov-2021
752,Revenue,CAHD,North - Community based support,Permanent Nursing,Caernarvon House,4710.40, 16-Nov-2021
753,Revenue,CAHD,North - S117,Permanent Nursing,Caernarvon House,3990.24, 16-Nov-2021
754,Revenue,CAHD,South - Commissioned Services,Permanent Nursing,Caernarvon House,4915.20, 16-Nov-2021
755,Revenue,CAHD,South - S117,Permanent Nursing,Caernarvon House,4915.20, 16-Nov-2021
756,Revenue,CAHD,South - Commissioned Services,Permanent Nursing,Caernarvon House,2960.00, 16-Nov-2021
757,Revenue,CAHD,South - Commissioned Services,Permanent Nursing,Caernarvon House,4800.00, 16-Nov-2021
758,Revenue,CAHD,ELS - Skills,Training Expenses,Call of the Wild Ltd,2980.00, 24-Nov-2021
759,Revenue,CAHD,CSC - Residential Placements,Permanent Residential,Cambian Childcare Ltd,19042.99, 05-Nov-2021
760,Revenue,CAHD,North - Community based support,Day Care / Social Activities,Camphill Communities Thornbury Limited,1052.22, 05-Nov-2021
761,Revenue,CAHD,North - Community based support,Other Small Contracts,Camphill Communities Thornbury Limited,1649.96, 05-Nov-2021
762,Revenue,CAHD,North - Community based support,Supported Living,Camphill Communities Thornbury Limited,1101.62, 05-Nov-2021
763,Revenue,CAHD,North - Community based support,Day Care / Social Activities,Camphill Communities Thornbury Limited,1121.38, 12-Nov-2021
764,Revenue,CAHD,North - Community based support,Other Small Contracts,Camphill Communities Thornbury Limited,1645.02, 12-Nov-2021
765,Revenue,CAHD,North - Community based support,Supported Living,Camphill Communities Thornbury Limited,1101.62, 12-Nov-2021
766,Revenue,CAHD,North - Community based support,Day Care / Social Activities,Camphill Communities Thornbury Limited,1071.98, 19-Nov-2021
767,Revenue,CAHD,North - Community based support,Other Small Contracts,Camphill Communities Thornbury Limited,1654.90, 19-Nov-2021
768,Revenue,CAHD,North - Community based support,Supported Living,Camphill Communities Thornbury Limited,1101.62, 19-Nov-2021
769,Revenue,CAHD,North - Community based support,Day Care / Social Activities,Camphill Communities Thornbury Limited,1215.24, 26-Nov-2021
770,Revenue,CAHD,North - Community based support,Other Small Contracts,Camphill Communities Thornbury Limited,1654.90, 26-Nov-2021
771,Revenue,CAHD,North - Community based support,Supported Living,Camphill Communities Thornbury Limited,889.20, 26-Nov-2021
772,Revenue,CAHD,North - Community based support,Other Small Contracts,Camphill Communities Thornbury Limited,52679.25, 29-Nov-2021
773,Revenue,CAHD,CSC - Agency Fostering,Foster Parent Allowances,Capstone Foster Care (South West) Limited,3498.66, 23-Nov-2021
774,Revenue,CAHD,Central - Commissioned Services,Other Small Contracts,Care 1st Homecare,3071.25, 08-Nov-2021
775,Revenue,CAHD,South - Commissioned Services,Other Small Contracts,Care 1st Homecare,3150.48, 08-Nov-2021
776,Revenue,CAHD,Central - Commissioned Services,Other Small Contracts,Care 1st Homecare,2620.80, 08-Nov-2021
777,Revenue,CAHD,South - Commissioned Services,Other Small Contracts,Care 1st Homecare,3150.48, 08-Nov-2021
778,Revenue,CAHD,Central - Commissioned Services,Other Small Contracts,Care 1st Homecare,3057.60, 12-Nov-2021
779,Revenue,CAHD,South - Commissioned Services,Other Small Contracts,Care 1st Homecare,3150.48, 12-Nov-2021
780,Revenue,CAHD,Central - Commissioned Services,Other Small Contracts,Care 1st Homecare,3062.15, 26-Nov-2021
781,Revenue,CAHD,South - Commissioned Services,Other Small Contracts,Care 1st Homecare,3150.48, 26-Nov-2021
782,Revenue,CAHD,Central - Commissioned Services,Other Small Contracts,Care 1st Homecare,3066.70, 26-Nov-2021
783,Revenue,CAHD,South - Commissioned Services,Other Small Contracts,Care 1st Homecare,3150.48, 26-Nov-2021
784,Revenue,CAHD,Central - Commissioned Services,Other Small Contracts,Care 1st Homecare,3062.15, 26-Nov-2021
785,Revenue,CAHD,South - Commissioned Services,Other Small Contracts,Care 1st Homecare,3150.48, 26-Nov-2021
786,Revenue,CAHD,North - Community based support,Supported Living,Care Horizons,5560.28, 16-Nov-2021
787,Revenue,CAHD,North - Community based support,Supported Living,Care Horizons,5560.28, 16-Nov-2021
788,Revenue,CAHD,18-25 Year Olds,Other Small Contracts,Care Horizons Limited,80.64, 10-Nov-2021
789,Revenue,CAHD,Central - Commissioned Services,Other Small Contracts,Care Horizons Limited,4642.16, 10-Nov-2021
790,Revenue,CAHD,South - Commissioned Services,Other Small Contracts,Care Horizons Limited,362.88, 10-Nov-2021
791,Revenue,CAHD,South - Commissioned Services,Mentoring,Care Horizons Limited,80.64, 10-Nov-2021
792,Revenue,CAHD,North - Community based support,Other Small Contracts,Care Horizons Limited,3436.16, 10-Nov-2021
793,Revenue,CAHD,Younger MH non-res purchasing,Other Small Contracts,Care Horizons Limited,257.04, 10-Nov-2021
794,Revenue,CAHD,18-25 Year Olds,Other Small Contracts,Care Horizons Limited,80.64, 26-Nov-2021
795,Revenue,CAHD,Central - Commissioned Services,Other Small Contracts,Care Horizons Limited,4777.36, 26-Nov-2021
796,Revenue,CAHD,South - Commissioned Services,Other Small Contracts,Care Horizons Limited,206.64, 26-Nov-2021
797,Revenue,CAHD,South - Commissioned Services,Mentoring,Care Horizons Limited,80.64, 26-Nov-2021
798,Revenue,CAHD,North - Community based support,Other Small Contracts,Care Horizons Limited,3456.32, 26-Nov-2021
799,Revenue,CAHD,Younger MH non-res purchasing,Other Small Contracts,Care Horizons Limited,241.92, 26-Nov-2021
800,Revenue,CAHD,Home care - Elderly MH - North,Other Small Contracts,Care Horizons Limited,40.32, 26-Nov-2021
801,Revenue,CAHD,18-25 Year Olds,Other Small Contracts,Care Horizons Limited,80.64, 30-Nov-2021
802,Revenue,CAHD,Central - Commissioned Services,Other Small Contracts,Care Horizons Limited,4717.02, 30-Nov-2021
803,Revenue,CAHD,South - Commissioned Services,Other Small Contracts,Care Horizons Limited,423.36, 30-Nov-2021
804,Revenue,CAHD,South - Commissioned Services,Mentoring,Care Horizons Limited,80.64, 30-Nov-2021
805,Revenue,CAHD,North - Community based support,Other Small Contracts,Care Horizons Limited,3416.00, 30-Nov-2021
806,Revenue,CAHD,Younger MH non-res purchasing,Other Small Contracts,Care Horizons Limited,221.76, 30-Nov-2021
807,Revenue,CAHD,Home care - Elderly MH - North,Other Small Contracts,Care Horizons Limited,40.32, 30-Nov-2021
808,Revenue,CAHD,South - Commissioned Services,Other Small Contracts,Care Unite Ltd t/a Home Instead Senior Care,1864.61, 30-Nov-2021
809,Revenue,CAHD,South - Commissioned Services,Other Small Contracts,Care Unite Ltd t/a Home Instead Senior Care,1643.51, 02-Nov-2021
810,Revenue,CAHD,South - Commissioned Services,Other Small Contracts,Care Unite Ltd t/a Home Instead Senior Care,1481.37, 03-Nov-2021
811,Revenue,CAHD,South - Commissioned Services,Other Small Contracts,Care Unite Ltd t/a Home Instead Senior Care,619.08, 24-Nov-2021
812,Revenue,CAHD,South - Commissioned Services,Other Small Contracts,Care Unite Ltd t/a Home Instead Senior Care,1503.48, 30-Nov-2021
813,Revenue,CAHD,Central - Commissioned Services,Other Small Contracts,Carepride Ltd,519.12, 10-Nov-2021
814,Revenue,CAHD,South - Commissioned Services,Other Small Contracts,Carepride Ltd,191.52, 10-Nov-2021
815,Revenue,CAHD,North - Community based support,Other Small Contracts,Carepride Ltd,302.40, 10-Nov-2021
816,Revenue,CAHD,Central - Commissioned Services,Other Small Contracts,Carepride Ltd,509.04, 12-Nov-2021
817,Revenue,CAHD,South - Commissioned Services,Other Small Contracts,Carepride Ltd,216.72, 12-Nov-2021
818,Revenue,CAHD,North - Community based support,Other Small Contracts,Carepride Ltd,398.16, 12-Nov-2021
819,Revenue,CAHD,Central - Commissioned Services,Other Small Contracts,Carepride Ltd,493.92, 10-Nov-2021
820,Revenue,CAHD,South - Commissioned Services,Other Small Contracts,Carepride Ltd,221.76, 10-Nov-2021
821,Revenue,CAHD,North - Community based support,Other Small Contracts,Carepride Ltd,388.08, 10-Nov-2021
822,Revenue,CAHD,Central - Commissioned Services,Other Small Contracts,Carepride Ltd,493.92, 26-Nov-2021
823,Revenue,CAHD,South - Commissioned Services,Other Small Contracts,Carepride Ltd,211.68, 26-Nov-2021
824,Revenue,CAHD,North - Community based support,Other Small Contracts,Carepride Ltd,372.96, 26-Nov-2021
825,Revenue,CAHD,Central - Commissioned Services,Other Small Contracts,Carepride Ltd,498.96, 26-Nov-2021
826,Revenue,CAHD,South - Commissioned Services,Other Small Contracts,Carepride Ltd,221.76, 26-Nov-2021
827,Revenue,CAHD,North - Community based support,Other Small Contracts,Carepride Ltd,388.08, 26-Nov-2021
828,Revenue,CAHD,Central - Commissioned Services,Other Small Contracts,Carepride Ltd,493.92, 26-Nov-2021
829,Revenue,CAHD,South - Commissioned Services,Other Small Contracts,Carepride Ltd,221.76, 26-Nov-2021
830,Revenue,CAHD,North - Community based support,Other Small Contracts,Carepride Ltd,347.76, 26-Nov-2021
831,Revenue,CAHD,Central - Commissioned Services,Other Small Contracts,Carepride Ltd,488.88, 26-Nov-2021
832,Revenue,CAHD,South - Commissioned Services,Other Small Contracts,Carepride Ltd,231.84, 26-Nov-2021
833,Revenue,CAHD,North - Community based support,Other Small Contracts,Carepride Ltd,357.84, 26-Nov-2021
834,Revenue,CAHD,Central - Commissioned Services,Other Small Contracts,Carepride Ltd,282.24, 26-Nov-2021
835,Revenue,CAHD,South - Commissioned Services,Other Small Contracts,Carepride Ltd,186.48, 26-Nov-2021
836,Revenue,CAHD,North - Community based support,Other Small Contracts,Carepride Ltd,357.84, 26-Nov-2021
837,Revenue,CAHD,Central - Commissioned Services,Other Small Contracts,Carepride Ltd,171.36, 30-Nov-2021
838,Revenue,CAHD,South - Commissioned Services,Other Small Contracts,Carepride Ltd,231.84, 30-Nov-2021
839,Revenue,CAHD,North - Community based support,Other Small Contracts,Carepride Ltd,357.84, 30-Nov-2021
840,Revenue,CAHD,Central - Commissioned Services,Other Small Contracts,Carepride Ltd,161.28, 30-Nov-2021
841,Revenue,CAHD,South - Commissioned Services,Other Small Contracts,Carepride Ltd,196.56, 30-Nov-2021
842,Revenue,CAHD,North - Community based support,Other Small Contracts,Carepride Ltd,362.88, 30-Nov-2021
843,Revenue,CAHD,CSC - Care Leavers Independent Living,Independent Living,Caretech Community Services,6753.66, 09-Nov-2021
844,Revenue,CAHD,CSC - Care Leavers Independent Living,Independent Living,Caretech Community Services,6535.80, 26-Nov-2021
845,Revenue,CAHD,CSC - Care Leavers Independent Living,Adults - Family Support,Caring for Communities and People,1281.60, 17-Nov-2021
846,Revenue,CAHD,CSC - Care Leavers Independent Living,Leaving Care,Caring for Communities and People,2221.44, 04-Nov-2021
847,Revenue,CAHD,CSC - Care Leavers Independent Living,Independent Living,Caring for Communities and People,7286.52, 08-Nov-2021
848,Revenue,CAHD,Supporting People Programme,Grants to Voluntary Bodies,Caring for Communities and People,12256.75, 04-Nov-2021
849,Revenue,CAHD,CSC - Vinney Green Secure Unit,R & M by Departments,Carlton Services UK Limited,425.00, 17-Nov-2021
850,Revenue,CAHD,Central - Commissioned Services,Supported Living,Cartrefi Cymru Co Operative,765.90, 16-Nov-2021
851,Revenue,CAHD,Statemented Support Academies,Other Public Bodies,Castle School Education Trust,530.55, 23-Nov-2021
852,Revenue,CAHD,Statemented Support Academies,Other Public Bodies,Castle School Education Trust,778.14, 23-Nov-2021
853,Revenue,CAHD,Statemented Support Academies,Other Public Bodies,Castle School Education Trust,821.50, 23-Nov-2021
854,Revenue,CAHD,Statemented Support Academies,Other Public Bodies,Castle School Education Trust,672.03, 23-Nov-2021
855,Revenue,CAHD,Statemented Support Academies,Other Public Bodies,Castle School Education Trust,947.08, 23-Nov-2021
856,Revenue,CAHD,Statemented Support Academies,Other Public Bodies,Castle School Education Trust,577.71, 23-Nov-2021
857,Revenue,CAHD,Statemented Support Academies,Other Public Bodies,Castle School Education Trust,505.08, 23-Nov-2021
858,Revenue,CAHD,Statemented Support Academies,Other Public Bodies,Castle School Education Trust,672.03, 23-Nov-2021
859,Revenue,CAHD,Statemented Support Academies,Other Public Bodies,Castle School Education Trust,636.66, 23-Nov-2021
860,Revenue,CAHD,Statemented Support Academies,Other Public Bodies,Castle School Education Trust,554.13, 23-Nov-2021
861,Revenue,CAHD,Statemented Support Academies,Other Public Bodies,Castle School Education Trust,543.42, 23-Nov-2021
862,Revenue,CAHD,Statemented Support Academies,Other Public Bodies,Castle School Education Trust,954.99, 23-Nov-2021
863,Revenue,CAHD,Statemented Support Academies,Other Public Bodies,Castle School Education Trust,577.71, 23-Nov-2021
864,Revenue,CAHD,Statemented Support Academies,Other Public Bodies,Castle School Education Trust,1248.33, 23-Nov-2021
865,Revenue,CAHD,Statemented Support Academies,Other Public Bodies,Castle School Education Trust,1462.26, 23-Nov-2021
866,Revenue,CAHD,Statemented Support Academies,Other Public Bodies,Castle School Education Trust,1190.79, 23-Nov-2021
867,Revenue,CAHD,Statemented Support Academies,Other Public Bodies,Castle School Education Trust,691.92, 23-Nov-2021
868,Revenue,CAHD,Statemented Support Academies,Other Public Bodies,Castle School Education Trust,1071.67, 23-Nov-2021
869,Revenue,CAHD,Statemented Support Academies,Other Public Bodies,Castle School Education Trust,1061.10, 23-Nov-2021
870,Revenue,CAHD,Statemented Support Academies,Other Public Bodies,Castle School Education Trust,577.71, 23-Nov-2021
871,Revenue,CAHD,Statemented Support Academies,Other Public Bodies,Castle School Education Trust,1143.63, 23-Nov-2021
872,Revenue,CAHD,Statemented Support Academies,Other Public Bodies,Castle School Education Trust,943.33, 23-Nov-2021
873,Revenue,CAHD,Statemented Support Academies,Other Public Bodies,Castle School Education Trust,754.25, 23-Nov-2021
874,Revenue,CAHD,Statemented Support Academies,Other Public Bodies,Castle School Education Trust,906.75, 23-Nov-2021
875,Revenue,CAHD,Statemented Support Academies,Other Public Bodies,Castle School Education Trust,1202.67, 23-Nov-2021
876,Revenue,CAHD,Statemented Support Academies,Other Public Bodies,Castle School Education Trust,1485.54, 23-Nov-2021
877,Revenue,CAHD,Statemented Support Academies,Other Public Bodies,Castle School Education Trust,1177.50, 23-Nov-2021
878,Revenue,CAHD,Statemented Support Academies,Other Public Bodies,Castle School Education Trust,888.75, 23-Nov-2021
879,Revenue,CAHD,Statemented Support Academies,Other Public Bodies,Castle School Education Trust,1261.75, 23-Nov-2021
880,Revenue,CAHD,Statemented Support Academies,Other Public Bodies,Castle School Education Trust,801.92, 23-Nov-2021
881,Revenue,CAHD,Statemented Support Academies,Other Public Bodies,Castle School Education Trust,943.17, 23-Nov-2021
882,Revenue,CAHD,Statemented Support Academies,Other Public Bodies,Castle School Education Trust,1267.50, 23-Nov-2021
883,Revenue,CAHD,Academy Resource Base Funding,Other Public Bodies,Castle School Education Trust,3287.68, 23-Nov-2021
884,Revenue,CAHD,Academy Resource Base Funding,Other Public Bodies,Castle School Education Trust,1648.03, 23-Nov-2021
885,Revenue,CAHD,Academy Resource Base Funding,Other Public Bodies,Castle School Education Trust,2432.79, 23-Nov-2021
886,Revenue,CAHD,Academy Resource Base Funding,Other Public Bodies,Castle School Education Trust,1648.03, 23-Nov-2021
887,Revenue,CAHD,Academy Resource Base Funding,Other Public Bodies,Castle School Education Trust,1648.03, 23-Nov-2021
888,Revenue,CAHD,Academy Resource Base Funding,Other Public Bodies,Castle School Education Trust,1648.03, 23-Nov-2021
889,Revenue,CAHD,Academy Resource Base Funding,Other Public Bodies,Castle School Education Trust,2432.79, 23-Nov-2021
890,Revenue,CAHD,Academy Resource Base Funding,Other Public Bodies,Castle School Education Trust,1648.03, 23-Nov-2021
891,Revenue,CAHD,Academy Resource Base Funding,Other Public Bodies,Castle School Education Trust,2432.79, 23-Nov-2021
892,Revenue,CAHD,Academy Resource Base Funding,Other Public Bodies,Castle School Education Trust,2432.79, 23-Nov-2021
893,Revenue,CAHD,Academy Resource Base Funding,Other Public Bodies,Castle School Education Trust,1648.03, 23-Nov-2021
894,Revenue,CAHD,Academy Resource Base Funding,Other Public Bodies,Castle School Education Trust,1648.03, 23-Nov-2021
895,Revenue,CAHD,Academy Resource Base Funding,Other Public Bodies,Castle School Education Trust,1648.03, 23-Nov-2021
896,Revenue,CAHD,Academy Resource Base Funding,Other Public Bodies,Castle School Education Trust,1648.03, 23-Nov-2021
897,Revenue,CAHD,Academy Resource Base Funding,Other Public Bodies,Castle School Education Trust,1648.03, 23-Nov-2021
898,Revenue,CAHD,Academy Resource Base Funding,Other Public Bodies,Castle School Education Trust,1648.03, 23-Nov-2021
899,Revenue,CAHD,Academy Resource Base Funding,Other Public Bodies,Castle School Education Trust,1648.03, 23-Nov-2021
900,Revenue,CAHD,Academy Resource Base Funding,Other Public Bodies,Castle School Education Trust,1648.03, 23-Nov-2021
901,Revenue,CAHD,Academy Resource Base Funding,Other Public Bodies,Castle School Education Trust,1648.03, 23-Nov-2021
902,Revenue,CAHD,Academy Resource Base Funding,Other Public Bodies,Castle School Education Trust,2118.90, 23-Nov-2021
903,Revenue,CAHD,Schools Specific Grant Income,Other Public Bodies,Castle School Education Trust,500.00, 19-Nov-2021
904,Revenue,CAHD,Statemented Support Academies,Other Public Bodies,Castle School Education Trust,672.03, 23-Nov-2021
905,Revenue,CAHD,Statemented Support Academies,Other Public Bodies,Castle School Education Trust,822.50, 23-Nov-2021
906,Revenue,CAHD,Statemented Support Academies,Other Public Bodies,Castle School Education Trust,872.46, 23-Nov-2021
907,Revenue,CAHD,Statemented Support Academies,Other Public Bodies,Castle School Education Trust,848.88, 23-Nov-2021
908,Revenue,CAHD,Statemented Support Academies,Other Public Bodies,Castle School Education Trust,541.58, 23-Nov-2021
909,Revenue,CAHD,Statemented Support Academies,Other Public Bodies,Castle School Education Trust,723.17, 23-Nov-2021
910,Revenue,CAHD,Statemented Support Academies,Other Public Bodies,Castle School Education Trust,956.00, 23-Nov-2021
911,Revenue,CAHD,Statemented Support Academies,Other Public Bodies,Castle School Education Trust,1628.42, 23-Nov-2021
912,Revenue,CAHD,Statemented Support Academies,Other Public Bodies,Castle School Education Trust,560.17, 23-Nov-2021
913,Revenue,CAHD,Schools Specific Grant Income,Other Public Bodies,Castle School Education Trust,500.00, 19-Nov-2021
914,Revenue,CAHD,Schools Specific Grant Income,Other Public Bodies,Castle School Education Trust,500.00, 19-Nov-2021
915,Revenue,CAHD,Schools Specific Grant Income,Other Public Bodies,Castle School Education Trust,500.00, 19-Nov-2021
916,Revenue,CAHD,Schools Specific Grant Income,Other Public Bodies,Castle School Education Trust,500.00, 19-Nov-2021
917,Revenue,CAHD,Statemented Support Academies,Other Public Bodies,Castle School Education Trust,630.58, 23-Nov-2021
918,Revenue,CAHD,Statemented Support Academies,Other Public Bodies,Castle School Education Trust,778.14, 23-Nov-2021
919,Revenue,CAHD,Statemented Support Academies,Other Public Bodies,Castle School Education Trust,941.58, 23-Nov-2021
920,Revenue,CAHD,Statemented Support Academies,Other Public Bodies,Castle School Education Trust,613.08, 23-Nov-2021
921,Revenue,CAHD,Schools Specific Grant Income,Other Public Bodies,Castle School Education Trust,500.00, 19-Nov-2021
922,Revenue,CAHD,Schools Specific Grant Income,Other Public Bodies,Castle School Education Trust,500.00, 19-Nov-2021
923,Revenue,CAHD,Schools Specific Grant Income,Other Public Bodies,Castle School Education Trust,500.00, 19-Nov-2021
924,Revenue,CAHD,Schools Specific Grant Income,Other Public Bodies,Castle School Education Trust,500.00, 19-Nov-2021
925,Revenue,CAHD,Statemented Support Academies,Other Public Bodies,Castle School Educational Academy Trust,1129.92, 23-Nov-2021
926,Revenue,CAHD,Statemented Support Academies,Other Public Bodies,Castle School Educational Academy Trust,854.00, 23-Nov-2021
927,Revenue,CAHD,Statemented Support Academies,Other Public Bodies,Castle School Educational Academy Trust,940.75, 23-Nov-2021
928,Revenue,CAHD,Statemented Support Academies,Other Public Bodies,Castle School Educational Academy Trust,790.58, 23-Nov-2021
929,Revenue,CAHD,Statemented Support Academies,Other Public Bodies,Castle School Educational Academy Trust,508.67, 23-Nov-2021
930,Revenue,CAHD,Statemented Support Academies,Other Public Bodies,Castle School Educational Academy Trust,1148.20, 23-Nov-2021
931,Revenue,CAHD,Statemented Support Academies,Other Public Bodies,Castle School Educational Academy Trust,1097.25, 23-Nov-2021
932,Revenue,CAHD,Statemented Support Academies,Other Public Bodies,Castle School Educational Academy Trust,580.67, 23-Nov-2021
933,Revenue,CAHD,Statemented Support Academies,Other Public Bodies,Castle School Educational Academy Trust,925.08, 23-Nov-2021
934,Revenue,CAHD,Statemented Support Academies,Other Public Bodies,Castle School Educational Academy Trust,652.58, 23-Nov-2021
935,Revenue,CAHD,Schools Specific Grant Income,Other Public Bodies,Castle School Educational Academy Trust,500.00, 19-Nov-2021
936,Revenue,CAHD,Schools Specific Grant Income,Other Public Bodies,Castle School Educational Academy Trust,500.00, 19-Nov-2021
937,Revenue,CAHD,CSC - Adoption Support Fund,Post Adoption,Catchpoint,685.00, 26-Nov-2021
938,Revenue,CAHD,Social Lettings Agency,Rent,Individual,658.30, 01-Nov-2021
939,Revenue,CAHD,Social Lettings Agency,Fees & Charges Income - General,Individual,-52.66, 01-Nov-2021
940,Revenue,CAHD,CSC - Age Related Allowances,Children - Family Support,Individual,741.43, 12-Nov-2021
941,Revenue,CAHD,CSC - Professional Fees Foster Carers,Children - Family Support,Individual,552.00, 12-Nov-2021
942,Revenue,CAHD,South - Commissioned Services,Day Care / Social Activities,Causeway House,5481.44, 16-Nov-2021
943,Revenue,CAHD,18-25 Year Olds,Day Care / Social Activities,Causeway House,4606.48, 16-Nov-2021
944,Revenue,CAHD,Central - Commissioned Services,Day Care / Social Activities,Causeway House,4060.72, 16-Nov-2021
945,Revenue,CAHD,North - Community based support,Day Care / Social Activities,Causeway House,3366.40, 16-Nov-2021
946,Revenue,CAHD,North - Community based support,Day Care / Social Activities,Causeway House,5015.32, 16-Nov-2021
947,Revenue,CAHD,Central - Commissioned Services,Day Care / Social Activities,Causeway House,3810.84, 16-Nov-2021
948,Revenue,CAHD,North - Community based support,Day Care / Social Activities,Causeway House,3285.96, 16-Nov-2021
949,Revenue,CAHD,North - Community based support,Day Care / Social Activities,Causeway House,593.04, 16-Nov-2021
950,Revenue,CAHD,Central - Commissioned Services,Permanent Nursing,Cedar Court Care Home,6714.29, 16-Nov-2021
951,Revenue,CAHD,Central - Commissioned Services,Permanent Nursing,Cedar Court Care Home,4000.00, 16-Nov-2021
952,Revenue,CAHD,CSC - Care Leavers Independent Living,Independent Living,Centrepeacehomes Ltd,2960.00, 22-Nov-2021
953,Revenue,CAHD,South - Commissioned Services,Permanent Residential,Challenge House,2894.80, 16-Nov-2021
954,Revenue,CAHD,North - S117,Permanent Residential,Challenge House,2626.16, 16-Nov-2021
955,Revenue,CAHD,North - Community based support,Permanent Residential,Challenge House,2314.96, 16-Nov-2021
956,Revenue,CAHD,North - Community based support,Permanent Residential,Challenge House,2902.76, 16-Nov-2021
957,Revenue,CAHD,Central - Commissioned Services,Permanent Residential,Challenge House,2452.44, 16-Nov-2021
958,Revenue,CAHD,Central - Commissioned Services,Permanent Residential,Challenge House,2819.84, 16-Nov-2021
959,Revenue,CAHD,North - Community based support,Permanent Residential,Challenge House,2894.76, 16-Nov-2021
960,Revenue,CAHD,North - S117,Permanent Nursing,Challenge House,2505.52, 16-Nov-2021
961,Revenue,CAHD,North - Community based support,Permanent Nursing,Challenge House,2505.52, 16-Nov-2021
962,Revenue,CAHD,North - Community based support,Permanent Nursing,Challenge House,3205.48, 16-Nov-2021
963,Revenue,CAHD,South Glos Users in South Glos Homes,Permanent Nursing,Challenge House,750.40, 16-Nov-2021
964,Revenue,CAHD,South Glos Users in South Glos Homes,Permanent Nursing,Challenge House,750.40, 16-Nov-2021
965,Revenue,CAHD,South Glos Users in South Glos Homes,Permanent Nursing,Challenge House,750.40, 16-Nov-2021
966,Revenue,CAHD,South Glos Users in South Glos Homes,Permanent Nursing,Challenge House,750.40, 16-Nov-2021
967,Revenue,CAHD,North - Community based support,Permanent Nursing,Challenge House,3478.20, 16-Nov-2021
968,Revenue,CAHD,South Glos Users in South Glos Homes,Permanent Nursing,Challenge House,750.40, 16-Nov-2021
969,Revenue,CAHD,South Glos Users in South Glos Homes,Permanent Nursing,Challenge House,750.40, 16-Nov-2021
970,Revenue,CAHD,South - Commissioned Services,Permanent Nursing,Challenge House,3009.56, 16-Nov-2021
971,Revenue,CAHD,South Glos Users in South Glos Homes,Permanent Nursing,Challenge House,750.40, 16-Nov-2021
972,Revenue,CAHD,South - Commissioned Services,Respite Planned - Residential,Challenge House,2307.14, 16-Nov-2021
973,Revenue,CAHD,South - Commissioned Services,Respite Planned - Residential,Challenge House,1335.71, 16-Nov-2021
974,Revenue,CAHD,North - Community based support,Respite Planned - Residential,Challenge House,5100.00, 16-Nov-2021
975,Revenue,CAHD,North - Community based support,Permanent Nursing,Challenge House,3347.92, 16-Nov-2021
976,Revenue,CAHD,South Glos Users in South Glos Homes,Permanent Nursing,Challenge House,750.40, 16-Nov-2021
977,Revenue,CAHD,North - Community based support,Permanent Residential,Challenge House,3478.20, 16-Nov-2021
978,Revenue,CAHD,South Glos Users in South Glos Homes,Permanent Nursing,Challenge House,750.40, 16-Nov-2021
979,Revenue,CAHD,South Glos Users in South Glos Homes,Permanent Nursing,Challenge House,750.40, 16-Nov-2021
980,Revenue,CAHD,North - Community based support,Permanent Nursing,Challenge House,3400.00, 16-Nov-2021
981,Revenue,CAHD,South Glos Users in South Glos Homes,Permanent Nursing,Challenge House,750.40, 16-Nov-2021
982,Revenue,CAHD,South Glos Users in South Glos Homes,Permanent Nursing,Challenge House,750.40, 16-Nov-2021
983,Revenue,CAHD,South - Commissioned Services,Permanent Residential,Challenge House,3400.00, 16-Nov-2021
984,Revenue,CAHD,North - Community based support,Permanent Residential,Challenge House,3800.00, 16-Nov-2021
985,Revenue,CAHD,South Glos Users in South Glos Homes,Permanent Nursing,Challenge House,750.40, 16-Nov-2021
986,Revenue,CAHD,South - Commissioned Services,Permanent Residential,Challenge House,3400.00, 16-Nov-2021
987,Revenue,CAHD,South - Commissioned Services,Permanent Residential,Challenge House,3600.00, 16-Nov-2021
988,Revenue,CAHD,North - Community based support,Respite Planned - Residential,Challenge House,2307.14, 16-Nov-2021
989,Revenue,CAHD,North - Community based support,Respite Planned - Residential,Challenge House,1335.71, 16-Nov-2021
990,Revenue,CAHD,South Glos Users in South Glos Homes,Permanent Nursing,Challenge House,750.40, 16-Nov-2021
991,Revenue,CAHD,South - Commissioned Services,Permanent Nursing,Challenge House,13478.57, 16-Nov-2021
992,Revenue,CAHD,South - Commissioned Services,Permanent Nursing,Challenge House,3400.00, 16-Nov-2021
993,Revenue,CAHD,South - Commissioned Services,Respite Planned - Residential,Challenge House,3400.00, 16-Nov-2021
994,Revenue,CAHD,North - Community based support,Permanent Nursing,Challenge House,2950.40, 16-Nov-2021
995,Revenue,CAHD,South Glos Users in South Glos Homes,Permanent Nursing,Challenge House,750.40, 16-Nov-2021
996,Revenue,CAHD,North - Community based support,Permanent Nursing,Challenge House,3318.20, 16-Nov-2021
997,Revenue,CAHD,South Glos Users in South Glos Homes,Permanent Nursing,Challenge House,750.40, 16-Nov-2021
998,Revenue,CAHD,North - Community based support,Permanent Nursing,Challenge House,3483.92, 16-Nov-2021
999,Revenue,CAHD,South Glos Users in South Glos Homes,Permanent Nursing,Challenge House,750.40, 16-Nov-2021
1000,Revenue,CAHD,South Glos Users in South Glos Homes,Permanent Nursing,Challenge House,750.40, 16-Nov-2021
1001,Revenue,CAHD,North - Community based support,Permanent Residential,Challenge House,3193.00, 16-Nov-2021
1002,Revenue,CAHD,South Glos Users in South Glos Homes,Permanent Nursing,Challenge House,750.40, 16-Nov-2021
1003,Revenue,CAHD,Central - Commissioned Services,Permanent Nursing,Challenge House,2490.00, 16-Nov-2021
1004,Revenue,CAHD,Central - Commissioned Services,Permanent Nursing,Challenge House,3200.00, 16-Nov-2021
1005,Revenue,CAHD,South Glos Users in South Glos Homes,Permanent Nursing,Challenge House,750.40, 16-Nov-2021
1006,Revenue,CAHD,CSC - Vinney Green Secure Unit,External Lecturers Fees,Changing Tunes,7500.00, 12-Nov-2021
1007,Revenue,CAHD,Early Years Inclusion Fund,Other Public Bodies,Charfield Pre-School,1000.00, 15-Nov-2021
1008,Revenue,CAHD,Training - Adult Services,Training Expenses,Individual,2300.00, 05-Nov-2021
1009,Revenue,CAHD,Schools Specific Grant Income,Other Public Bodies,Charlton Wood Primary Academy,500.00, 19-Nov-2021
1010,Revenue,CAHD,Statemented Support Academies,Other Public Bodies,Charlton Wood Primary Academy,702.17, 23-Nov-2021
1011,Revenue,CAHD,Statemented Support Academies,Other Public Bodies,Charlton Wood Primary Academy,1202.67, 23-Nov-2021
1012,Revenue,CAHD,Central - Commissioned Services,Other Small Contracts,Cherish Able Care Limited,622.44, 05-Nov-2021
1013,Revenue,CAHD,South - Commissioned Services,Other Small Contracts,Cherish Able Care Limited,9077.47, 05-Nov-2021
1014,Revenue,CAHD,North - Community based support,Other Small Contracts,Cherish Able Care Limited,622.44, 05-Nov-2021
1015,Revenue,CAHD,Central - Commissioned Services,Other Small Contracts,Cherish Able Care Limited,647.14, 10-Nov-2021
1016,Revenue,CAHD,South - Commissioned Services,Other Small Contracts,Cherish Able Care Limited,9042.89, 10-Nov-2021
1017,Revenue,CAHD,North - Community based support,Other Small Contracts,Cherish Able Care Limited,642.20, 10-Nov-2021
1018,Revenue,CAHD,Central - Commissioned Services,Other Small Contracts,Cherish Able Care Limited,622.44, 12-Nov-2021
1019,Revenue,CAHD,South - Commissioned Services,Other Small Contracts,Cherish Able Care Limited,8431.43, 12-Nov-2021
1020,Revenue,CAHD,North - Community based support,Other Small Contracts,Cherish Able Care Limited,681.72, 12-Nov-2021
1021,Revenue,CAHD,Central - Commissioned Services,Other Small Contracts,Cherish Able Care Limited,617.50, 26-Nov-2021
1022,Revenue,CAHD,South - Commissioned Services,Other Small Contracts,Cherish Able Care Limited,8949.03, 26-Nov-2021
1023,Revenue,CAHD,North - Community based support,Other Small Contracts,Cherish Able Care Limited,652.08, 26-Nov-2021
1024,Revenue,CAHD,Central - Commissioned Services,Other Small Contracts,Cherish Able Care Limited,632.32, 30-Nov-2021
1025,Revenue,CAHD,South - Commissioned Services,Other Small Contracts,Cherish Able Care Limited,9042.89, 30-Nov-2021
1026,Revenue,CAHD,North - Community based support,Other Small Contracts,Cherish Able Care Limited,701.48, 30-Nov-2021
1027,Revenue,CAHD,North - Community based support,Other Small Contracts,Cherry Orchards,1580.80, 22-Nov-2021
1028,Revenue,CAHD,North - Community based support,Other Small Contracts,Cherry Orchards,1630.02, 22-Nov-2021
1029,Revenue,CAHD,South - Commissioned Services,Other Small Contracts,Cherry Orchards,6639.36, 22-Nov-2021
1030,Revenue,CAHD,South - Commissioned Services,Other Small Contracts,Cherry Orchards,6619.63, 22-Nov-2021
1031,Revenue,CAHD,Central - Commissioned Services,Other Small Contracts,Cherry Orchards,1906.84, 22-Nov-2021
1032,Revenue,CAHD,North - Community based support,Other Small Contracts,Cherry Orchards,790.40, 22-Nov-2021
1033,Revenue,CAHD,South - Commissioned Services,Other Small Contracts,Cherry Orchards,1995.76, 24-Nov-2021
1034,Revenue,CAHD,South - Commissioned Services,Other Small Contracts,Cherry Orchards,1679.60, 24-Nov-2021
1035,Revenue,CAHD,South - Commissioned Services,Other Small Contracts,Cherry Orchards,1472.12, 24-Nov-2021
1036,Revenue,CAHD,South - Commissioned Services,Other Small Contracts,Cherry Orchards,1042.34, 26-Nov-2021
1037,Revenue,CAHD,South - Commissioned Services,Supported Living,Cherry Orchards,1938.52, 16-Nov-2021
1038,Revenue,CAHD,South - Commissioned Services,Supported Living,Cherry Orchards,1049.08, 16-Nov-2021
1039,Revenue,CAHD,Younger MH non-res purchasing,Supported Living,Cherry Orchards,1958.12, 16-Nov-2021
1040,Revenue,CAHD,Central - Commissioned Services,Supported Living,Cherry Orchards,2367.92, 16-Nov-2021
1041,Revenue,CAHD,18-25 Year Olds,Supported Living,Cherry Orchards,2077.24, 16-Nov-2021
1042,Revenue,CAHD,North - Community based support,Supported Living,Cherry Orchards,1066.96, 16-Nov-2021
1043,Revenue,CAHD,North - Community based support,Supported Living,Cherry Orchards,1938.52, 16-Nov-2021
1044,Revenue,CAHD,Central - Commissioned Services,Permanent Residential,Chescombe Trust Ltd,8274.02, 16-Nov-2021
1045,Revenue,CAHD,S28A cases,Permanent Residential,Chescombe Trust Ltd,10188.80, 16-Nov-2021
1046,Revenue,CAHD,Covid - ASC - Infection Control,Grants to Voluntary Bodies,Chescombe Trust Ltd,3187.15, 30-Nov-2021
1047,Revenue,CAHD,ASC Rapid Testing Fund,Grants to Voluntary Bodies,Chescombe Trust Ltd,2264.62, 30-Nov-2021
1048,Revenue,CAHD,CAHC - Complaints & Advocacy Service,Complaints External Expenses,Individual,1235.85, 22-Nov-2021
1049,Revenue,CAHD,Early Years Inclusion Fund,Other Public Bodies,Christchurch Pre School,1350.00, 15-Nov-2021
1050,Revenue,CAHD,Early Years Inclusion Fund,Other Public Bodies,Christchurch Pre School,2000.00, 15-Nov-2021
1051,Revenue,CAHD,Childrens - Safeguarding Board,Training Expenses,Individual,525.00, 08-Nov-2021
1052,Revenue,CAHD,CSC - Post Ofsted Implementation,Consultants Fees,Christopher Baird,4200.00, 10-Nov-2021
1053,Revenue,CAHD,CSC - Post Ofsted Implementation,Consultants Fees,Christopher Baird,8100.00, 17-Nov-2021
1054,Revenue,CAHD,CSC - Post Ofsted Implementation,Consultants Fees,Christopher Baird,3900.00, 10-Nov-2021
1055,Revenue,CAHD,Statemented Support Payments to OLAs,Other L.A.s - General,Churchill Academy,3257.25, 22-Nov-2021
1056,Revenue,CAHD,18-25 Year Olds,Other Small Contracts,Cintre,916.20, 08-Nov-2021
1057,Revenue,CAHD,Central - Commissioned Services,Other Small Contracts,Cintre,122.16, 08-Nov-2021
1058,Revenue,CAHD,South - Commissioned Services,Other Small Contracts,Cintre,1241.96, 08-Nov-2021
1059,Revenue,CAHD,18-25 Year Olds,Other Small Contracts,Cintre,916.20, 12-Nov-2021
1060,Revenue,CAHD,Central - Commissioned Services,Other Small Contracts,Cintre,122.16, 12-Nov-2021
1061,Revenue,CAHD,South - Commissioned Services,Other Small Contracts,Cintre,1343.76, 12-Nov-2021
1062,Revenue,CAHD,18-25 Year Olds,Other Small Contracts,Cintre,875.48, 26-Nov-2021
1063,Revenue,CAHD,Central - Commissioned Services,Other Small Contracts,Cintre,162.88, 26-Nov-2021
1064,Revenue,CAHD,South - Commissioned Services,Other Small Contracts,Cintre,1364.12, 26-Nov-2021
1065,Revenue,CAHD,18-25 Year Olds,Other Small Contracts,Cintre,916.20, 26-Nov-2021
1066,Revenue,CAHD,Central - Commissioned Services,Other Small Contracts,Cintre,122.16, 26-Nov-2021
1067,Revenue,CAHD,South - Commissioned Services,Other Small Contracts,Cintre,1364.12, 26-Nov-2021
1068,Revenue,CAHD,Learning Difficulties,Premises Hire,Circadian Trust,955.50, 04-Nov-2021
1069,Revenue,CAHD,Learning Difficulties,Premises Hire,Circadian Trust,955.50, 04-Nov-2021
1070,Revenue,CAHD,Learning Difficulties Development Fund,Other Supplies & Services,Circles South West Ltd,4500.00, 29-Nov-2021
1071,Revenue,CAHD,Placements OLA Special Schools and RB,Other L.A.s - General,Claremont School,1917.51, 22-Nov-2021
1072,Revenue,CAHD,Placements OLA Special Schools and RB,Other L.A.s - General,Claremont School,625.16, 22-Nov-2021
1073,Revenue,CAHD,Placements OLA Special Schools and RB,Other L.A.s - General,Claremont School,2685.21, 22-Nov-2021
1074,Revenue,CAHD,Placements OLA Special Schools and RB,Other L.A.s - General,Claremont School,625.16, 22-Nov-2021
1075,Revenue,CAHD,Placements OLA Special Schools and RB,Other L.A.s - General,Claremont School,1917.51, 22-Nov-2021
1076,Revenue,CAHD,Placements OLA Special Schools and RB,Other L.A.s - General,Claremont School,625.16, 22-Nov-2021
1077,Revenue,CAHD,Placements OLA Special Schools and RB,Other L.A.s - General,Claremont School,1917.51, 22-Nov-2021
1078,Revenue,CAHD,Placements OLA Special Schools and RB,Other L.A.s - General,Claremont School,625.16, 22-Nov-2021
1079,Revenue,CAHD,Placements OLA Special Schools and RB,Other L.A.s - General,Claremont School,767.01, 22-Nov-2021
1080,Revenue,CAHD,Placements OLA Special Schools and RB,Other L.A.s - General,Claremont School,2685.21, 22-Nov-2021
1081,Revenue,CAHD,Placements OLA Special Schools and RB,Other L.A.s - General,Claremont School,1917.51, 22-Nov-2021
1082,Revenue,CAHD,Placements OLA Special Schools and RB,Other L.A.s - General,Claremont School,625.16, 22-Nov-2021
1083,Revenue,CAHD,Placements OLA Special Schools and RB,Other L.A.s - General,Claremont School,2685.21, 22-Nov-2021
1084,Revenue,CAHD,Placements OLA Special Schools and RB,Other L.A.s - General,Claremont School,625.16, 22-Nov-2021
1085,Revenue,CAHD,Placements OLA Special Schools and RB,Other L.A.s - General,Claremont School,1534.03, 22-Nov-2021
1086,Revenue,CAHD,Placements OLA Special Schools and RB,Other L.A.s - General,Claremont School,500.10, 22-Nov-2021
1087,Revenue,CAHD,Placements OLA Special Schools and RB,Other L.A.s - General,Claremont School,1917.51, 22-Nov-2021
1088,Revenue,CAHD,Placements OLA Special Schools and RB,Other L.A.s - General,Claremont School,625.16, 22-Nov-2021
1089,Revenue,CAHD,South - Commissioned Services,Permanent Residential,Cleeve Lodge,3846.60, 16-Nov-2021
1090,Revenue,CAHD,South - Commissioned Services,Permanent Residential,Cleeve Lodge,1365.28, 16-Nov-2021
1091,Revenue,CAHD,North - S117,Permanent Residential,Cleeve Lodge,3273.60, 16-Nov-2021
1092,Revenue,CAHD,South - Commissioned Services,Permanent Residential,Cleeve Lodge,26228.57, 16-Nov-2021
1093,Revenue,CAHD,South - Commissioned Services,Fees & Charges Income - General,Cleeve Lodge,1456.77, 16-Nov-2021
1094,Revenue,CAHD,South - Commissioned Services,Fees & Charges Income - General,Cleeve Lodge,3350.00, 16-Nov-2021
1095,Revenue,CAHD,Central - Commissioned Services,Permanent Residential,Cleeve Lodge,3273.60, 16-Nov-2021
1096,Revenue,CAHD,South - Commissioned Services,Permanent Residential,Cleeve Lodge,4501.20, 16-Nov-2021
1097,Revenue,CAHD,North - Community based support,Permanent Residential,Cleeve Lodge,4400.00, 16-Nov-2021
1098,Revenue,CAHD,South - Commissioned Services,Permanent Nursing,Cleeve Lodge,3273.60, 16-Nov-2021
1099,Revenue,CAHD,South - Commissioned Services,Permanent Residential,Cleeve Lodge,3018.76, 16-Nov-2021
1100,Revenue,CAHD,South - Commissioned Services,Permanent Residential,Cleeve Lodge,4092.00, 16-Nov-2021
1101,Revenue,CAHD,South - Commissioned Services,Fees & Charges Income - General,Cleeve Lodge,739.26, 16-Nov-2021
1102,Revenue,CAHD,South - Commissioned Services,Permanent Residential,Cleeve Lodge,4910.40, 16-Nov-2021
1103,Revenue,CAHD,Covid - ASC - Infection Control,Grants to Voluntary Bodies,Cleeve Lodge,5535.57, 30-Nov-2021
1104,Revenue,CAHD,ASC Rapid Testing Fund,Grants to Voluntary Bodies,Cleeve Lodge,3933.29, 30-Nov-2021
1105,Revenue,CAHD,Training - Adult Services,Training Expenses,Individual,1000.00, 08-Nov-2021
1106,Revenue,CAHD,Drug and Alcohol Programme,Other Small Contracts,Close Farm Surgery,913.50, 05-Nov-2021
1107,Revenue,CAHD,Sexual Health,Other Small Contracts,Close Farm Surgery,563.50, 12-Nov-2021
1108,Revenue,CAHD,Sexual Health,Other Small Contracts,Close Farm Surgery,1156.24, 12-Nov-2021
1109,Revenue,CAHD,Central - Commissioned Services,Respite Planned - Residential,Collingwood Care Home,850.00, 16-Nov-2021
1110,Revenue,CAHD,North - Community based support,Permanent Residential,Collingwood Care Home,3069.00, 16-Nov-2021
1111,Revenue,CAHD,Covid - ASC - Infection Control,Grants to Voluntary Bodies,Collingwood Care Home,4361.36, 30-Nov-2021
1112,Revenue,CAHD,ASC Rapid Testing Fund,Grants to Voluntary Bodies,Collingwood Care Home,3098.95, 30-Nov-2021
1113,Revenue,CAHD,Statemented Support Payments to OLAs,Other L.A.s - General,Colston`s Girls School Trust,1582.50, 22-Nov-2021
1114,Revenue,CAHD,South - Commissioned Services,Permanent Residential,Community Theraputic Services,7776.36, 16-Nov-2021
1115,Revenue,CAHD,Jointly Funded H&SC Packages,Permanent Residential,Community Theraputic Services,4992.88, 16-Nov-2021
1116,Revenue,CAHD,North - Community based support,Permanent Residential,Community Theraputic Services,8071.08, 16-Nov-2021
1117,Revenue,CAHD,Jointly Funded H&SC Packages,Permanent Residential,Community Theraputic Services,2076.20, 16-Nov-2021
1118,Revenue,CAHD,CSC - Agency Fostering,Foster Parent Allowances,Compass Fostering West Ltd,3176.26, 03-Nov-2021
1119,Revenue,CAHD,CSC - Agency Fostering,Foster Parent Allowances,Compass Fostering West Ltd,3176.26, 03-Nov-2021
1120,Revenue,CAHD,CSC - Agency Fostering,Foster Parent Allowances,Compass Fostering West Ltd,3618.63, 03-Nov-2021
1121,Revenue,CAHD,CSC - Agency Fostering,Foster Parent Allowances,Compass Fostering West Ltd,3501.90, 19-Nov-2021
1122,Revenue,CAHD,CSC - Agency Fostering,Foster Parent Allowances,Compass Fostering West Ltd,3501.90, 23-Nov-2021
1123,Revenue,CAHD,Drug and Alcohol Programme,Other Small Contracts,Concord Medical Centre,1116.50, 05-Nov-2021
1124,Revenue,CAHD,Sexual Health,Other Small Contracts,Concord Medical Centre,1690.50, 12-Nov-2021
1125,Revenue,CAHD,Sexual Health,Other Small Contracts,Concord Medical Centre,2529.28, 12-Nov-2021
1126,Revenue,CAHD,Drug and Alcohol Programme,Other Small Contracts,Coniston Medical Practice,2233.00, 05-Nov-2021
1127,Revenue,CAHD,Bed and Breakfast,Bed & Breakfast,Connolly & Callaghan Limited,583.80, 04-Nov-2021
1128,Revenue,CAHD,Bed and Breakfast,Bed & Breakfast,Connolly & Callaghan Limited,548.80, 04-Nov-2021
1129,Revenue,CAHD,Bed and Breakfast,Bed & Breakfast,Connolly & Callaghan Limited,807.10, 04-Nov-2021
1130,Revenue,CAHD,Bed and Breakfast,Bed & Breakfast,Connolly & Callaghan Limited,498.40, 04-Nov-2021
1131,Revenue,CAHD,Bed and Breakfast,Bed & Breakfast,Connolly & Callaghan Limited,583.80, 04-Nov-2021
1132,Revenue,CAHD,Bed and Breakfast,Bed & Breakfast,Connolly & Callaghan Limited,583.80, 08-Nov-2021
1133,Revenue,CAHD,Bed and Breakfast,Bed & Breakfast,Connolly & Callaghan Limited,727.30, 01-Nov-2021
1134,Revenue,CAHD,Bed and Breakfast,Bed & Breakfast,Connolly & Callaghan Limited,420.00, 01-Nov-2021
1135,Revenue,CAHD,Bed and Breakfast,Bed & Breakfast,Connolly & Callaghan Limited,422.80, 01-Nov-2021
1136,Revenue,CAHD,Bed and Breakfast,Bed & Breakfast,Connolly & Callaghan Limited,807.10, 04-Nov-2021
1137,Revenue,CAHD,Bed and Breakfast,Bed & Breakfast,Connolly & Callaghan Limited,498.40, 04-Nov-2021
1138,Revenue,CAHD,Bed and Breakfast,Bed & Breakfast,Connolly & Callaghan Limited,719.60, 01-Nov-2021
1139,Revenue,CAHD,Bed and Breakfast,Bed & Breakfast,Connolly & Callaghan Limited,422.80, 01-Nov-2021
1140,Revenue,CAHD,Bed and Breakfast,Bed & Breakfast,Connolly & Callaghan Limited,463.40, 03-Nov-2021
1141,Revenue,CAHD,Bed and Breakfast,Bed & Breakfast,Connolly & Callaghan Limited,422.80, 03-Nov-2021
1142,Revenue,CAHD,Bed and Breakfast,Bed & Breakfast,Connolly & Callaghan Limited,583.80, 04-Nov-2021
1143,Revenue,CAHD,Bed and Breakfast,Bed & Breakfast,Connolly & Callaghan Limited,422.80, 01-Nov-2021
1144,Revenue,CAHD,Bed and Breakfast,Bed & Breakfast,Connolly & Callaghan Limited,1055.60, 01-Nov-2021
1145,Revenue,CAHD,Bed and Breakfast,Bed & Breakfast,Connolly & Callaghan Limited,583.80, 05-Nov-2021
1146,Revenue,CAHD,Bed and Breakfast,Bed & Breakfast,Connolly & Callaghan Limited,727.30, 08-Nov-2021
1147,Revenue,CAHD,Bed and Breakfast,Bed & Breakfast,Connolly & Callaghan Limited,422.80, 05-Nov-2021
1148,Revenue,CAHD,Bed and Breakfast,Bed & Breakfast,Connolly & Callaghan Limited,420.00, 08-Nov-2021
1149,Revenue,CAHD,Bed and Breakfast,Bed & Breakfast,Connolly & Callaghan Limited,422.80, 08-Nov-2021
1150,Revenue,CAHD,Bed and Breakfast,Bed & Breakfast,Connolly & Callaghan Limited,807.10, 05-Nov-2021
1151,Revenue,CAHD,Bed and Breakfast,Bed & Breakfast,Connolly & Callaghan Limited,498.40, 05-Nov-2021
1152,Revenue,CAHD,Bed and Breakfast,Bed & Breakfast,Connolly & Callaghan Limited,719.60, 08-Nov-2021
1153,Revenue,CAHD,Bed and Breakfast,Bed & Breakfast,Connolly & Callaghan Limited,422.80, 08-Nov-2021
1154,Revenue,CAHD,Bed and Breakfast,Bed & Breakfast,Connolly & Callaghan Limited,463.40, 08-Nov-2021
1155,Revenue,CAHD,Bed and Breakfast,Bed & Breakfast,Connolly & Callaghan Limited,583.80, 05-Nov-2021
1156,Revenue,CAHD,Bed and Breakfast,Bed & Breakfast,Connolly & Callaghan Limited,422.80, 08-Nov-2021
1157,Revenue,CAHD,Bed and Breakfast,Bed & Breakfast,Connolly & Callaghan Limited,452.40, 08-Nov-2021
1158,Revenue,CAHD,Bed and Breakfast,Bed & Breakfast,Connolly & Callaghan Limited,583.80, 15-Nov-2021
1159,Revenue,CAHD,Bed and Breakfast,Bed & Breakfast,Connolly & Callaghan Limited,727.30, 15-Nov-2021
1160,Revenue,CAHD,Bed and Breakfast,Bed & Breakfast,Connolly & Callaghan Limited,422.80, 15-Nov-2021
1161,Revenue,CAHD,Bed and Breakfast,Bed & Breakfast,Connolly & Callaghan Limited,420.00, 25-Nov-2021
1162,Revenue,CAHD,Bed and Breakfast,Bed & Breakfast,Connolly & Callaghan Limited,422.80, 15-Nov-2021
1163,Revenue,CAHD,Bed and Breakfast,Bed & Breakfast,Connolly & Callaghan Limited,807.10, 15-Nov-2021
1164,Revenue,CAHD,Bed and Breakfast,Bed & Breakfast,Connolly & Callaghan Limited,457.80, 15-Nov-2021
1165,Revenue,CAHD,Bed and Breakfast,Bed & Breakfast,Connolly & Callaghan Limited,498.40, 15-Nov-2021
1166,Revenue,CAHD,Bed and Breakfast,Bed & Breakfast,Connolly & Callaghan Limited,719.60, 15-Nov-2021
1167,Revenue,CAHD,Bed and Breakfast,Bed & Breakfast,Connolly & Callaghan Limited,422.80, 15-Nov-2021
1168,Revenue,CAHD,Bed and Breakfast,Bed & Breakfast,Connolly & Callaghan Limited,463.40, 15-Nov-2021
1169,Revenue,CAHD,Bed and Breakfast,Bed & Breakfast,Connolly & Callaghan Limited,583.80, 15-Nov-2021
1170,Revenue,CAHD,Bed and Breakfast,Bed & Breakfast,Connolly & Callaghan Limited,422.80, 15-Nov-2021
1171,Revenue,CAHD,Bed and Breakfast,Bed & Breakfast,Connolly & Callaghan Limited,422.80, 15-Nov-2021
1172,Revenue,CAHD,Bed and Breakfast,Bed & Breakfast,Connolly & Callaghan Limited,583.80, 19-Nov-2021
1173,Revenue,CAHD,Bed and Breakfast,Bed & Breakfast,Connolly & Callaghan Limited,548.80, 19-Nov-2021
1174,Revenue,CAHD,Bed and Breakfast,Bed & Breakfast,Connolly & Callaghan Limited,422.80, 19-Nov-2021
1175,Revenue,CAHD,Bed and Breakfast,Bed & Breakfast,Connolly & Callaghan Limited,422.80, 23-Nov-2021
1176,Revenue,CAHD,Bed and Breakfast,Bed & Breakfast,Connolly & Callaghan Limited,420.00, 19-Nov-2021
1177,Revenue,CAHD,Bed and Breakfast,Bed & Breakfast,Connolly & Callaghan Limited,422.80, 19-Nov-2021
1178,Revenue,CAHD,Bed and Breakfast,Bed & Breakfast,Connolly & Callaghan Limited,807.10, 19-Nov-2021
1179,Revenue,CAHD,Bed and Breakfast,Bed & Breakfast,Connolly & Callaghan Limited,2014.00, 22-Nov-2021
1180,Revenue,CAHD,Bed and Breakfast,Bed & Breakfast,Connolly & Callaghan Limited,457.80, 19-Nov-2021
1181,Revenue,CAHD,Bed and Breakfast,Bed & Breakfast,Connolly & Callaghan Limited,498.40, 23-Nov-2021
1182,Revenue,CAHD,Bed and Breakfast,Bed & Breakfast,Connolly & Callaghan Limited,719.60, 24-Nov-2021
1183,Revenue,CAHD,Bed and Breakfast,Bed & Breakfast,Connolly & Callaghan Limited,422.80, 19-Nov-2021
1184,Revenue,CAHD,Bed and Breakfast,Bed & Breakfast,Connolly & Callaghan Limited,463.40, 23-Nov-2021
1185,Revenue,CAHD,Bed and Breakfast,Bed & Breakfast,Connolly & Callaghan Limited,583.80, 19-Nov-2021
1186,Revenue,CAHD,Bed and Breakfast,Bed & Breakfast,Connolly & Callaghan Limited,422.80, 19-Nov-2021
1187,Revenue,CAHD,Bed and Breakfast,Bed & Breakfast,Connolly & Callaghan Limited,422.80, 19-Nov-2021
1188,Revenue,CAHD,Bed and Breakfast,Bed & Breakfast,Connolly & Callaghan Limited,583.80, 24-Nov-2021
1189,Revenue,CAHD,Bed and Breakfast,Bed & Breakfast,Connolly & Callaghan Limited,548.80, 24-Nov-2021
1190,Revenue,CAHD,Bed and Breakfast,Bed & Breakfast,Connolly & Callaghan Limited,422.80, 23-Nov-2021
1191,Revenue,CAHD,Bed and Breakfast,Bed & Breakfast,Connolly & Callaghan Limited,422.80, 24-Nov-2021
1192,Revenue,CAHD,Bed and Breakfast,Bed & Breakfast,Connolly & Callaghan Limited,420.00, 23-Nov-2021
1193,Revenue,CAHD,Bed and Breakfast,Bed & Breakfast,Connolly & Callaghan Limited,422.80, 23-Nov-2021
1194,Revenue,CAHD,Bed and Breakfast,Bed & Breakfast,Connolly & Callaghan Limited,719.60, 24-Nov-2021
1195,Revenue,CAHD,Bed and Breakfast,Bed & Breakfast,Connolly & Callaghan Limited,422.80, 23-Nov-2021
1196,Revenue,CAHD,Bed and Breakfast,Bed & Breakfast,Connolly & Callaghan Limited,583.80, 24-Nov-2021
1197,Revenue,CAHD,Bed and Breakfast,Bed & Breakfast,Connolly & Callaghan Limited,422.80, 23-Nov-2021
1198,Revenue,CAHD,Bed and Breakfast,Bed & Breakfast,Connolly & Callaghan Limited,422.80, 23-Nov-2021
1199,Revenue,CAHD,CSC - Vinney Green Secure Unit,R & M by Departments,Cool-Rite Limited,2252.00, 02-Nov-2021
1200,Revenue,CAHD,CSC - Vinney Green Secure Unit,Other Supplies & Services,Coram Voice,2247.50, 16-Nov-2021
1201,Revenue,CAHD,Independent Special Placements - Pre 16,Other Private Contractors,Cotswold Chine School,10680.00, 10-Nov-2021
1202,Revenue,CAHD,Central - Commissioned Services,Permanent Nursing,Cotswold House Care Home,3484.32, 16-Nov-2021
1203,Revenue,CAHD,Alexandra Way,Cleaning & Domestic Services,Countrywide Healthcare Supplies Ltd,442.66, 10-Nov-2021
1204,Revenue,CAHD,Alexandra Way,Cleaning & Domestic Services,Countrywide Healthcare Supplies Ltd,458.59, 10-Nov-2021
1205,Revenue,CAHD,North - Community based support,Permanent Residential,Court House Residential C.H.,3400.00, 16-Nov-2021
1206,Revenue,CAHD,EARLY YEARS DEPRIVATION PAYMENT,Preventative Assistance,Courtney Ladybirds Pre-School,538.08, 12-Nov-2021
1207,Revenue,CAHD,Drug and Alcohol Programme,Other Small Contracts,Courtside Surgery,1725.50, 05-Nov-2021
1208,Revenue,CAHD,S28A cases,Permanent Residential,Creedy Court,10597.96, 16-Nov-2021
1209,Revenue,CAHD,S28A cases,Permanent Residential,Creedy Court,8904.92, 16-Nov-2021
1210,Revenue,CAHD,North - Community based support,Permanent Residential,Creedy Court,14054.00, 16-Nov-2021
1211,Revenue,CAHD,Central - Commissioned Services,Supported Living,Cygnet Healthcare Limited,3380.00, 16-Nov-2021
1212,Revenue,CAHD,South - Commissioned Services,Permanent Residential,Daneswood,12759.56, 16-Nov-2021
1213,Revenue,CAHD,South - Commissioned Services,Day Care / Social Activities,Daneswood,1474.72, 16-Nov-2021
1214,Revenue,CAHD,North - Community based support,Permanent Residential,Daneswood,13579.68, 16-Nov-2021
1215,Revenue,CAHD,Learning Difficulties PSL,Rent,Individual,2400.00, 22-Nov-2021
1216,Revenue,CAHD,Drug and Alcohol Programme,Other Small Contracts,Day Lewis - Horfield Branch,900.00, 08-Nov-2021
1217,Revenue,CAHD,South - Commissioned Services,Day Care / Social Activities,Deafblind Uk,1197.57, 24-Nov-2021
1218,Revenue,CAHD,Central - Commissioned Services,Permanent Residential,Debt Recovery,4326.88, 16-Nov-2021
1219,Revenue,CAHD,South - Commissioned Services,Permanent Residential,Debt Recovery,4422.88, 16-Nov-2021
1220,Revenue,CAHD,North - Community based support,Permanent Nursing,Debt Recovery,4642.48, 16-Nov-2021
1221,Revenue,CAHD,North - Community based support,Permanent Nursing,Debt Recovery,3822.52, 16-Nov-2021
1222,Revenue,CAHD,Central - Commissioned Services,Permanent Residential,Debt Recovery,4786.48, 16-Nov-2021
1223,Revenue,CAHD,North - Community based support,Permanent Nursing,Debt Recovery,5723.32, 16-Nov-2021
1224,Revenue,CAHD,North - Community based support,Permanent Nursing,Debt Recovery,26285.39, 16-Nov-2021
1225,Revenue,CAHD,North - Community based support,Permanent Nursing,Debt Recovery,3643.52, 16-Nov-2021
1226,Revenue,CAHD,North - Community based support,Fees & Charges Income - General,Debt Recovery,3085.60, 16-Nov-2021
1227,Revenue,CAHD,Central - Commissioned Services,Permanent Nursing,Debt Recovery,4908.24, 16-Nov-2021
1228,Revenue,CAHD,North - Community based support,Permanent Nursing,Debt Recovery,5735.40, 16-Nov-2021
1229,Revenue,CAHD,North - Community based support,Permanent Nursing,Debt Recovery,5325.73, 16-Nov-2021
1230,Revenue,CAHD,North - Community based support,Permanent Residential,Debt Recovery,26709.02, 16-Nov-2021
1231,Revenue,CAHD,North - Community based support,Permanent Residential,Debt Recovery,3702.24, 16-Nov-2021
1232,Revenue,CAHD,North - Community based support,Fees & Charges Income - General,Debt Recovery,3085.60, 16-Nov-2021
1233,Revenue,CAHD,North - Community based support,Permanent Nursing,Debt Recovery,30207.37, 16-Nov-2021
1234,Revenue,CAHD,North - Community based support,Permanent Nursing,Debt Recovery,4187.16, 16-Nov-2021
1235,Revenue,CAHD,North - Community based support,Fees & Charges Income - General,Debt Recovery,3630.80, 16-Nov-2021
1236,Revenue,CAHD,South - Commissioned Services,Permanent Nursing,Deerhurst Nursing Home,3970.68, 16-Nov-2021
1237,Revenue,CAHD,South Glos Users in South Glos Homes,Permanent Nursing,Deerhurst Nursing Home,750.40, 16-Nov-2021
1238,Revenue,CAHD,South - Commissioned Services,Permanent Nursing,Deerhurst Nursing Home,4501.20, 16-Nov-2021
1239,Revenue,CAHD,South Glos Users in South Glos Homes,Permanent Nursing,Deerhurst Nursing Home,750.40, 16-Nov-2021
1240,Revenue,CAHD,South - Commissioned Services,Permanent Nursing,Deerhurst Nursing Home,4762.80, 16-Nov-2021
1241,Revenue,CAHD,South Glos Users in South Glos Homes,Permanent Nursing,Deerhurst Nursing Home,750.40, 16-Nov-2021
1242,Revenue,CAHD,South - Commissioned Services,Day Care / Social Activities,Deerhurst Nursing Home,581.28, 16-Nov-2021
1243,Revenue,CAHD,South - Commissioned Services,Permanent Nursing,Deerhurst Nursing Home,4800.00, 16-Nov-2021
1244,Revenue,CAHD,South Glos Users in South Glos Homes,Permanent Nursing,Deerhurst Nursing Home,750.40, 16-Nov-2021
1245,Revenue,CAHD,South Glos Users in South Glos Homes,Permanent Nursing,Deerhurst Nursing Home,750.40, 16-Nov-2021
1246,Revenue,CAHD,South Glos Users in South Glos Homes,Permanent Nursing,Deerhurst Nursing Home,750.40, 16-Nov-2021
1247,Revenue,CAHD,South - Commissioned Services,Permanent Nursing,Deerhurst Nursing Home,4006.00, 16-Nov-2021
1248,Revenue,CAHD,South Glos Users in South Glos Homes,Permanent Nursing,Deerhurst Nursing Home,750.40, 16-Nov-2021
1249,Revenue,CAHD,North - Community based support,Permanent Nursing,Deerhurst Nursing Home,3891.20, 16-Nov-2021
1250,Revenue,CAHD,South - Commissioned Services,Permanent Nursing,Deerhurst Nursing Home,3965.12, 16-Nov-2021
1251,Revenue,CAHD,South Glos Users in South Glos Homes,Permanent Nursing,Deerhurst Nursing Home,750.40, 16-Nov-2021
1252,Revenue,CAHD,North - Community based support,Permanent Nursing,Deerhurst Nursing Home,4140.00, 16-Nov-2021
1253,Revenue,CAHD,South - Commissioned Services,Permanent Nursing,Deerhurst Nursing Home,4129.40, 16-Nov-2021
1254,Revenue,CAHD,South - Commissioned Services,Permanent Nursing,Deerhurst Nursing Home,4182.12, 16-Nov-2021
1255,Revenue,CAHD,South Glos Users in South Glos Homes,Permanent Nursing,Deerhurst Nursing Home,750.40, 16-Nov-2021
1256,Revenue,CAHD,North - Community based support,Respite Planned - Nursing,Deerhurst Nursing Home,1086.53, 16-Nov-2021
1257,Revenue,CAHD,South Glos Users in South Glos Homes,Permanent Nursing,Deerhurst Nursing Home,750.40, 16-Nov-2021
1258,Revenue,CAHD,South Glos Users in South Glos Homes,Permanent Nursing,Deerhurst Nursing Home,750.40, 16-Nov-2021
1259,Revenue,CAHD,South Glos Users in South Glos Homes,Permanent Nursing,Deerhurst Nursing Home,750.40, 16-Nov-2021
1260,Revenue,CAHD,South - Commissioned Services,Permanent Nursing,Deerhurst Nursing Home,4180.04, 16-Nov-2021
1261,Revenue,CAHD,South Glos Users in South Glos Homes,Permanent Nursing,Deerhurst Nursing Home,750.40, 16-Nov-2021
1262,Revenue,CAHD,South Glos Users in South Glos Homes,Permanent Nursing,Deerhurst Nursing Home,750.40, 16-Nov-2021
1263,Revenue,CAHD,South - Commissioned Services,Permanent Nursing,Deerhurst Nursing Home,4060.32, 16-Nov-2021
1264,Revenue,CAHD,South Glos Users in South Glos Homes,Permanent Nursing,Deerhurst Nursing Home,750.40, 16-Nov-2021
1265,Revenue,CAHD,Central - Commissioned Services,Permanent Nursing,Deerhurst Nursing Home,4535.08, 16-Nov-2021
1266,Revenue,CAHD,South Glos Users in South Glos Homes,Permanent Nursing,Deerhurst Nursing Home,750.40, 16-Nov-2021
1267,Revenue,CAHD,South Glos Users in South Glos Homes,Permanent Nursing,Deerhurst Nursing Home,750.40, 16-Nov-2021
1268,Revenue,CAHD,South Glos Users in South Glos Homes,Permanent Nursing,Deerhurst Nursing Home,750.40, 16-Nov-2021
1269,Revenue,CAHD,South Glos Users in South Glos Homes,Permanent Nursing,Deerhurst Nursing Home,750.40, 16-Nov-2021
1270,Revenue,CAHD,South - Commissioned Services,Permanent Nursing,Deerhurst Nursing Home,22454.25, 16-Nov-2021
1271,Revenue,CAHD,South - Commissioned Services,Permanent Nursing,Deerhurst Nursing Home,4277.00, 16-Nov-2021
1272,Revenue,CAHD,South Glos Users in South Glos Homes,Permanent Nursing,Deerhurst Nursing Home,750.40, 16-Nov-2021
1273,Revenue,CAHD,South Glos Users in South Glos Homes,Permanent Nursing,Deerhurst Nursing Home,750.40, 16-Nov-2021
1274,Revenue,CAHD,South Glos Users in South Glos Homes,Permanent Nursing,Deerhurst Nursing Home,750.40, 16-Nov-2021
1275,Revenue,CAHD,South Glos Users in South Glos Homes,Permanent Nursing,Deerhurst Nursing Home,750.40, 16-Nov-2021
1276,Revenue,CAHD,South Glos Users in South Glos Homes,Permanent Nursing,Deerhurst Nursing Home,750.40, 16-Nov-2021
1277,Revenue,CAHD,South Glos Users in South Glos Homes,Permanent Nursing,Deerhurst Nursing Home,750.40, 16-Nov-2021
1278,Revenue,CAHD,South - Commissioned Services,Permanent Nursing,Deerhurst Nursing Home,4006.00, 16-Nov-2021
1279,Revenue,CAHD,South Glos Users in South Glos Homes,Permanent Nursing,Deerhurst Nursing Home,750.40, 16-Nov-2021
1280,Revenue,CAHD,South - Commissioned Services,Permanent Residential,Deerhurst Nursing Home,4129.00, 16-Nov-2021
1281,Revenue,CAHD,South - Commissioned Services,Permanent Nursing,Deerhurst Nursing Home,2720.00, 16-Nov-2021
1282,Revenue,CAHD,South - Commissioned Services,Permanent Nursing,Deerhurst Nursing Home,2040.00, 16-Nov-2021
1283,Revenue,CAHD,South - Commissioned Services,Permanent Nursing,Deerhurst Nursing Home,4760.00, 16-Nov-2021
1284,Revenue,CAHD,South Glos Users in South Glos Homes,Permanent Nursing,Deerhurst Nursing Home,750.40, 16-Nov-2021
1285,Revenue,CAHD,South Glos Users in South Glos Homes,Permanent Nursing,Deerhurst Nursing Home,750.40, 16-Nov-2021
1286,Revenue,CAHD,South Glos Users in South Glos Homes,Permanent Nursing,Deerhurst Nursing Home,750.40, 16-Nov-2021
1287,Revenue,CAHD,South Glos Users in South Glos Homes,Permanent Nursing,Deerhurst Nursing Home,750.40, 16-Nov-2021
1288,Revenue,CAHD,South Glos Users in South Glos Homes,Permanent Nursing,Deerhurst Nursing Home,750.40, 16-Nov-2021
1289,Revenue,CAHD,South Glos Users in South Glos Homes,Permanent Nursing,Deerhurst Nursing Home,750.40, 16-Nov-2021
1290,Revenue,CAHD,South - Commissioned Services,Permanent Nursing,Deerhurst Nursing Home,4760.00, 16-Nov-2021
1291,Revenue,CAHD,South Glos Users in South Glos Homes,Permanent Nursing,Deerhurst Nursing Home,750.40, 16-Nov-2021
1292,Revenue,CAHD,South Glos Users in South Glos Homes,Permanent Nursing,Deerhurst Nursing Home,750.40, 16-Nov-2021
1293,Revenue,CAHD,South Glos Users in South Glos Homes,Permanent Nursing,Deerhurst Nursing Home,750.40, 16-Nov-2021
1294,Revenue,CAHD,South - Commissioned Services,Permanent Residential,Deerhurst Nursing Home,3891.20, 16-Nov-2021
1295,Revenue,CAHD,South - Commissioned Services,Permanent Nursing,Deerhurst Nursing Home,4762.80, 16-Nov-2021
1296,Revenue,CAHD,South Glos Users in South Glos Homes,Permanent Nursing,Deerhurst Nursing Home,750.40, 16-Nov-2021
1297,Revenue,CAHD,South Glos Users in South Glos Homes,Permanent Nursing,Deerhurst Nursing Home,750.40, 16-Nov-2021
1298,Revenue,CAHD,South Glos Users in South Glos Homes,Permanent Nursing,Deerhurst Nursing Home,750.40, 16-Nov-2021
1299,Revenue,CAHD,South Glos Users in South Glos Homes,Permanent Nursing,Deerhurst Nursing Home,750.40, 16-Nov-2021
1300,Revenue,CAHD,South Glos Users in South Glos Homes,Permanent Nursing,Deerhurst Nursing Home,750.40, 16-Nov-2021
1301,Revenue,CAHD,Covid - ASC - Infection Control,Grants to Voluntary Bodies,Deerhurst Nursing Home,11071.14, 30-Nov-2021
1302,Revenue,CAHD,ASC Rapid Testing Fund,Grants to Voluntary Bodies,Deerhurst Nursing Home,7866.57, 30-Nov-2021
1303,Revenue,CAHD,Covid - Vaccines,Grants to Voluntary Bodies,Deerhurst Nursing Home,967.19, 30-Nov-2021
1304,Revenue,CAHD,Schools Specific Grant Income,Other Public Bodies,Dene Magna School,500.00, 19-Nov-2021
1305,Revenue,CAHD,South - Commissioned Services,Supported Living,Design House,2776.88, 16-Nov-2021
1306,Revenue,CAHD,South - Commissioned Services,Supported Living,Design House,3196.12, 16-Nov-2021
1307,Revenue,CAHD,South - Commissioned Services,Supported Living,Design House,2651.32, 16-Nov-2021
1308,Revenue,CAHD,18-25 Year Olds,Supported Living,Design House,3083.24, 16-Nov-2021
1309,Revenue,CAHD,18-25 Year Olds,Supported Living,Design House,4094.76, 16-Nov-2021
1310,Revenue,CAHD,Central - Commissioned Services,Day Care / Social Activities,Design House,3060.24, 16-Nov-2021
1311,Revenue,CAHD,18-25 Year Olds,Supported Living,Design House,4094.76, 16-Nov-2021
1312,Revenue,CAHD,18-25 Year Olds,Supported Living,Design House,3107.04, 16-Nov-2021
1313,Revenue,CAHD,South - Commissioned Services,Supported Living,Design House,2753.28, 16-Nov-2021
1314,Revenue,CAHD,South - Commissioned Services,Supported Living,Design House,2753.28, 16-Nov-2021
1315,Revenue,CAHD,South - Commissioned Services,Supported Living,Design House,2242.76, 16-Nov-2021
1316,Revenue,CAHD,South - Commissioned Services,Supported Living,Design House,1978.92, 16-Nov-2021
1317,Revenue,CAHD,South - Commissioned Services,Day Care / Social Activities,Design House,538.88, 16-Nov-2021
1318,Revenue,CAHD,South - Commissioned Services,Supported Living,Design House,2625.96, 16-Nov-2021
1319,Revenue,CAHD,South - Commissioned Services,Supported Living,Design House,4494.32, 16-Nov-2021
1320,Revenue,CAHD,North - Community based support,Supported Living,Design House,3434.00, 16-Nov-2021
1321,Revenue,CAHD,South - Commissioned Services,Supported Living,Design House,3051.76, 16-Nov-2021
1322,Revenue,CAHD,South - Commissioned Services,Supported Living,Design House,2653.28, 16-Nov-2021
1323,Revenue,CAHD,South - Commissioned Services,Supported Living,Design House,2355.60, 16-Nov-2021
1324,Revenue,CAHD,South - Commissioned Services,Supported Living,Design House,2355.60, 16-Nov-2021
1325,Revenue,CAHD,Bed and Breakfast,Bed & Breakfast,Designz Ltd,672.00, 08-Nov-2021
1326,Revenue,CAHD,Bed and Breakfast,Bed & Breakfast,Designz Ltd,672.00, 04-Nov-2021
1327,Revenue,CAHD,Bed and Breakfast,Bed & Breakfast,Designz Ltd,672.00, 09-Nov-2021
1328,Revenue,CAHD,Central - Commissioned Services,Other Small Contracts,Dhek Bhal,333.52, 08-Nov-2021
1329,Revenue,CAHD,South - Commissioned Services,Other Small Contracts,Dhek Bhal,262.64, 08-Nov-2021
1330,Revenue,CAHD,Central - Commissioned Services,Other Small Contracts,Dhek Bhal,268.00, 08-Nov-2021
1331,Revenue,CAHD,South - Commissioned Services,Other Small Contracts,Dhek Bhal,257.28, 08-Nov-2021
1332,Revenue,CAHD,Central - Commissioned Services,Other Small Contracts,Dhek Bhal,333.52, 08-Nov-2021
1333,Revenue,CAHD,South - Commissioned Services,Other Small Contracts,Dhek Bhal,214.40, 08-Nov-2021
1334,Revenue,CAHD,Central - Commissioned Services,Other Small Contracts,Dhek Bhal,328.16, 26-Nov-2021
1335,Revenue,CAHD,South - Commissioned Services,Other Small Contracts,Dhek Bhal,262.64, 26-Nov-2021
1336,Revenue,CAHD,North - Community based support,Permanent Nursing,Douglas House,3599.80, 16-Nov-2021
1337,Revenue,CAHD,Planning and Partnerships Team,Legal Fees,Individual,600.00, 17-Nov-2021
1338,Revenue,CAHD,Drug and Alcohol Programme,Other Small Contracts,Downend Health Group,5481.00, 05-Nov-2021
1339,Revenue,CAHD,Sexual Health,Other Small Contracts,Downend Health Group,1529.50, 12-Nov-2021
1340,Revenue,CAHD,Sexual Health,Other Small Contracts,Downend Health Group,1114.94, 12-Nov-2021
1341,Revenue,CAHD,Statemented Support Academies,Other Public Bodies,Downend School,1544.42, 23-Nov-2021
1342,Revenue,CAHD,Statemented Support Academies,Other Public Bodies,Downend School,660.24, 23-Nov-2021
1343,Revenue,CAHD,Statemented Support Academies,Other Public Bodies,Downend School,1025.73, 23-Nov-2021
1344,Revenue,CAHD,Statemented Support Academies,Other Public Bodies,Downend School,801.72, 23-Nov-2021
1345,Revenue,CAHD,Statemented Support Academies,Other Public Bodies,Downend School,1108.26, 23-Nov-2021
1346,Revenue,CAHD,Statemented Support Academies,Other Public Bodies,Downend School,554.13, 23-Nov-2021
1347,Revenue,CAHD,Statemented Support Academies,Other Public Bodies,Downend School,666.00, 23-Nov-2021
1348,Revenue,CAHD,Statemented Support Academies,Other Public Bodies,Downend School,822.83, 23-Nov-2021
1349,Revenue,CAHD,Statemented Support Academies,Other Public Bodies,Downend School,6569.00, 23-Nov-2021
1350,Revenue,CAHD,Statemented Support Academies,Other Public Bodies,Downend School,1079.67, 23-Nov-2021
1351,Revenue,CAHD,Statemented Support Academies,Other Public Bodies,Downend School,1438.38, 23-Nov-2021
1352,Revenue,CAHD,Statemented Support Academies,Other Public Bodies,Downend School,1709.55, 23-Nov-2021
1353,Revenue,CAHD,Statemented Support Academies,Other Public Bodies,Downend School,1192.50, 23-Nov-2021
1354,Revenue,CAHD,Statemented Support Academies,Other Public Bodies,Downend School,1544.49, 23-Nov-2021
1355,Revenue,CAHD,Statemented Support Academies,Other Public Bodies,Downend School,966.92, 23-Nov-2021
1356,Revenue,CAHD,Alexandra Way,Premises Maintenance by Contractor,DPS Construction Services Limited,800.00, 09-Nov-2021
1357,Revenue,CAHD,Social Lettings Agency,Rent,Individual,822.73, 22-Nov-2021
1358,Revenue,CAHD,Social Lettings Agency,Fees & Charges Income - General,Individual,-65.82, 22-Nov-2021
1359,Revenue,CAHD,Central - Bed Purchasing and Direct Payments,Permanent Nursing,Drakes Court,1505.06, 16-Nov-2021
1360,Revenue,CAHD,Central - Bed Purchasing and Direct Payments,Fees & Charges Income - General,Drakes Court,1440.51, 16-Nov-2021
1361,Revenue,CAHD,Schools Specific Grant Income,Other Public Bodies,Durham School,500.00, 19-Nov-2021
1362,Revenue,CAHD,CSC - Care Leavers Independent Living,Adults - Family Support,Dynamic Youth Support Services,5974.20, 04-Nov-2021
1363,Revenue,CAHD,CSC - Care Leavers Independent Living,Independent Living,Dynamic Youth Support Services,5974.20, 04-Nov-2021
1364,Revenue,CAHD,CSC - Care Leavers Independent Living,Adults - Family Support,Dynamic Youth Support Services,13433.34, 04-Nov-2021
1365,Revenue,CAHD,Assistive Tech,Other Supplies & Services,Dyslexia Box Limited,975.00, 25-Nov-2021
1366,Revenue,CAHD,CSC - Corporate Parenting,Fostering Plus Enhanced Fee,Individual,2327.14, 19-Nov-2021
1367,Revenue,CAHD,CSC - Professional Fees Foster Carers,Band 3 Foster Care,Individual,516.43, 19-Nov-2021
1368,Revenue,CAHD,CSC - Corporate Parenting,Fostering Plus Enhanced Fee,Individual,1086.00, 26-Nov-2021
1369,Revenue,CAHD,North - Community based support,Permanent Residential,East Court,2763.56, 16-Nov-2021
1370,Revenue,CAHD,Community Support - North,Preventative Assistance,Easylink UK,609.19, 24-Nov-2021
1371,Revenue,CAHD,Planning & Development,Long Service Awards,Edenred (UK Group) Limited,750.00, 26-Nov-2021
1372,Revenue,CAHD,Training - Adult Services,Training Expenses,Edge Training & Consultancy Limited,1750.00, 10-Nov-2021
1373,Revenue,CAHD,Training - Adult Services,Training Expenses,Edge Training & Consultancy Limited,875.00, 10-Nov-2021
1374,Revenue,CAHD,Central - Commissioned Services,Permanent Residential,Edgemont House Ltd,10742.86, 16-Nov-2021
1375,Revenue,CAHD,Central - Commissioned Services,Permanent Residential,Edgemont House Ltd,3200.00, 16-Nov-2021
1376,Revenue,CAHD,South - Commissioned Services,Permanent Residential,Edgemont House Ltd,3273.60, 16-Nov-2021
1377,Revenue,CAHD,South - Commissioned Services,Permanent Residential,Edgemont House Ltd,3339.08, 16-Nov-2021
1378,Revenue,CAHD,South - Commissioned Services,Permanent Residential,Edgemont House Ltd,3130.40, 16-Nov-2021
1379,Revenue,CAHD,South - Commissioned Services,Permanent Residential,Edgemont House Ltd,3200.00, 16-Nov-2021
1380,Revenue,CAHD,Covid - ASC - Infection Control,Grants to Voluntary Bodies,Edgemont House Ltd,2348.42, 30-Nov-2021
1381,Revenue,CAHD,ASC Rapid Testing Fund,Grants to Voluntary Bodies,Edgemont House Ltd,1668.67, 30-Nov-2021
1382,Revenue,CAHD,South - Commissioned Services,Permanent Nursing,Edgemont View Ltd,3580.52, 16-Nov-2021
1383,Revenue,CAHD,South Glos Users in South Glos Homes,Permanent Nursing,Edgemont View Ltd,750.40, 16-Nov-2021
1384,Revenue,CAHD,South Glos Users in South Glos Homes,Permanent Nursing,Edgemont View Ltd,750.40, 16-Nov-2021
1385,Revenue,CAHD,South - Commissioned Services,Permanent Nursing,Edgemont View Ltd,3478.20, 16-Nov-2021
1386,Revenue,CAHD,South Glos Users in South Glos Homes,Permanent Nursing,Edgemont View Ltd,750.40, 16-Nov-2021
1387,Revenue,CAHD,South - Commissioned Services,Permanent Nursing,Edgemont View Ltd,3547.76, 16-Nov-2021
1388,Revenue,CAHD,South Glos Users in South Glos Homes,Permanent Nursing,Edgemont View Ltd,750.40, 16-Nov-2021
1389,Revenue,CAHD,South - Commissioned Services,Permanent Nursing,Edgemont View Ltd,3478.20, 16-Nov-2021
1390,Revenue,CAHD,South Glos Users in South Glos Homes,Permanent Nursing,Edgemont View Ltd,750.40, 16-Nov-2021
1391,Revenue,CAHD,South Glos Users in South Glos Homes,Permanent Nursing,Edgemont View Ltd,750.40, 16-Nov-2021
1392,Revenue,CAHD,South - Commissioned Services,Permanent Nursing,Edgemont View Ltd,3682.80, 16-Nov-2021
1393,Revenue,CAHD,South Glos Users in South Glos Homes,Permanent Nursing,Edgemont View Ltd,750.40, 16-Nov-2021
1394,Revenue,CAHD,South - Commissioned Services,Permanent Nursing,Edgemont View Ltd,3580.52, 16-Nov-2021
1395,Revenue,CAHD,South Glos Users in South Glos Homes,Permanent Nursing,Edgemont View Ltd,750.40, 16-Nov-2021
1396,Revenue,CAHD,South Glos Users in South Glos Homes,Permanent Nursing,Edgemont View Ltd,750.40, 16-Nov-2021
1397,Revenue,CAHD,South - Commissioned Services,Permanent Nursing,Edgemont View Ltd,3547.76, 16-Nov-2021
1398,Revenue,CAHD,South - Commissioned Services,Fees & Charges Income - General,Edgemont View Ltd,16444.08, 16-Nov-2021
1399,Revenue,CAHD,South - Commissioned Services,Permanent Nursing,Edgemont View Ltd,3500.00, 16-Nov-2021
1400,Revenue,CAHD,South Glos Users in South Glos Homes,Permanent Nursing,Edgemont View Ltd,750.40, 16-Nov-2021
1401,Revenue,CAHD,South - Commissioned Services,Fees & Charges Income - General,Edgemont View Ltd,4951.72, 16-Nov-2021
1402,Revenue,CAHD,South - Commissioned Services,Permanent Nursing,Edgemont View Ltd,3989.72, 16-Nov-2021
1403,Revenue,CAHD,South Glos Users in South Glos Homes,Permanent Nursing,Edgemont View Ltd,750.40, 16-Nov-2021
1404,Revenue,CAHD,South Glos Users in South Glos Homes,Permanent Nursing,Edgemont View Ltd,750.40, 16-Nov-2021
1405,Revenue,CAHD,South Glos Users in South Glos Homes,Permanent Nursing,Edgemont View Ltd,750.40, 16-Nov-2021
1406,Revenue,CAHD,South - Commissioned Services,Permanent Nursing,Edgemont View Ltd,3739.76, 16-Nov-2021
1407,Revenue,CAHD,South Glos Users in South Glos Homes,Permanent Nursing,Edgemont View Ltd,750.40, 16-Nov-2021
1408,Revenue,CAHD,Covid - ASC - Infection Control,Grants to Voluntary Bodies,Edgemont View Ltd,3522.63, 30-Nov-2021
1409,Revenue,CAHD,ASC Rapid Testing Fund,Grants to Voluntary Bodies,Edgemont View Ltd,2503.00, 30-Nov-2021
1410,Revenue,CAHD,Planning and Partnerships Procurement,Other Supplies & Services,Eldercare,2582.81, 12-Nov-2021
1411,Revenue,CAHD,Planning and Partnerships Procurement,Other Supplies & Services,Eldercare,2805.25, 12-Nov-2021
1412,Revenue,CAHD,CSC - Post Ofsted Implementation,Other Supplies & Services,Elia International Ltd,6600.00, 02-Nov-2021
1413,Revenue,CAHD,Supporting People Programme,Grants to Voluntary Bodies,Elim Housing Association Limited,5362.00, 01-Nov-2021
1414,Revenue,CAHD,Social Lettings Agency,Rent,Individual,1321.36, 12-Nov-2021
1415,Revenue,CAHD,Social Lettings Agency,Fees & Charges Income - General,Individual,-79.30, 12-Nov-2021
1416,Revenue,CAHD,North - Community based support,Permanent Residential,Ellsworth House,10016.24, 16-Nov-2021
1417,Revenue,CAHD,Placements OLA Special Schools and RB,Other L.A.s - General,Elmfield School for Deaf Children,1227.13, 22-Nov-2021
1418,Revenue,CAHD,Placements OLA Special Schools and RB,Other L.A.s - General,Elmfield School for Deaf Children,766.84, 22-Nov-2021
1419,Revenue,CAHD,Placements OLA Special Schools and RB,Other L.A.s - General,Elmfield School for Deaf Children,1227.13, 22-Nov-2021
1420,Revenue,CAHD,Placements OLA Special Schools and RB,Other L.A.s - General,Elmfield School for Deaf Children,1227.13, 22-Nov-2021
1421,Revenue,CAHD,Placements OLA Special Schools and RB,Other L.A.s - General,Elmfield School for Deaf Children,766.84, 22-Nov-2021
1422,Revenue,CAHD,Placements OLA Special Schools and RB,Other L.A.s - General,Elmfield School for Deaf Children,1227.13, 22-Nov-2021
1423,Revenue,CAHD,Placements OLA Special Schools and RB,Other L.A.s - General,Elmfield School for Deaf Children,1227.13, 22-Nov-2021
1424,Revenue,CAHD,Drug and Alcohol Programme,Other Small Contracts,Emersons Green Medical Centre,1522.50, 05-Nov-2021
1425,Revenue,CAHD,Sexual Health,Other Small Contracts,Emersons Green Medical Centre,1368.50, 12-Nov-2021
1426,Revenue,CAHD,Sexual Health,Other Small Contracts,Emersons Green Medical Centre,1548.54, 12-Nov-2021
1427,Revenue,CAHD,Special ISB,Other Public Bodies,Enable Trust,8219.20, 23-Nov-2021
1428,Revenue,CAHD,Special ISB,Other Public Bodies,Enable Trust,1137.94, 23-Nov-2021
1429,Revenue,CAHD,Special ISB,Other Public Bodies,Enable Trust,1137.94, 23-Nov-2021
1430,Revenue,CAHD,Special ISB,Other Public Bodies,Enable Trust,1491.13, 23-Nov-2021
1431,Revenue,CAHD,Special ISB,Other Public Bodies,Enable Trust,1137.94, 23-Nov-2021
1432,Revenue,CAHD,Special ISB,Other Public Bodies,Enable Trust,863.27, 23-Nov-2021
1433,Revenue,CAHD,Special ISB,Other Public Bodies,Enable Trust,1137.94, 23-Nov-2021
1434,Revenue,CAHD,Special ISB,Other Public Bodies,Enable Trust,1137.94, 23-Nov-2021
1435,Revenue,CAHD,Special ISB,Other Public Bodies,Enable Trust,863.27, 23-Nov-2021
1436,Revenue,CAHD,Special ISB,Other Public Bodies,Enable Trust,1648.03, 23-Nov-2021
1437,Revenue,CAHD,Special ISB,Other Public Bodies,Enable Trust,1491.13, 23-Nov-2021
1438,Revenue,CAHD,Special ISB,Other Public Bodies,Enable Trust,1137.94, 23-Nov-2021
1439,Revenue,CAHD,Special ISB,Other Public Bodies,Enable Trust,1137.94, 23-Nov-2021
1440,Revenue,CAHD,Special ISB,Other Public Bodies,Enable Trust,1491.13, 23-Nov-2021
1441,Revenue,CAHD,Special ISB,Other Public Bodies,Enable Trust,1491.13, 23-Nov-2021
1442,Revenue,CAHD,Special ISB,Other Public Bodies,Enable Trust,1491.13, 23-Nov-2021
1443,Revenue,CAHD,Special ISB,Other Public Bodies,Enable Trust,1137.94, 23-Nov-2021
1444,Revenue,CAHD,Special ISB,Other Public Bodies,Enable Trust,1137.94, 23-Nov-2021
1445,Revenue,CAHD,Special ISB,Other Public Bodies,Enable Trust,1137.94, 23-Nov-2021
1446,Revenue,CAHD,Special ISB,Other Public Bodies,Enable Trust,1137.94, 23-Nov-2021
1447,Revenue,CAHD,Special ISB,Other Public Bodies,Enable Trust,627.77, 23-Nov-2021
1448,Revenue,CAHD,Special ISB,Other Public Bodies,Enable Trust,863.27, 23-Nov-2021
1449,Revenue,CAHD,Special ISB,Other Public Bodies,Enable Trust,863.27, 23-Nov-2021
1450,Revenue,CAHD,Special ISB,Other Public Bodies,Enable Trust,2118.90, 23-Nov-2021
1451,Revenue,CAHD,Special ISB,Other Public Bodies,Enable Trust,1137.94, 23-Nov-2021
1452,Revenue,CAHD,Special ISB,Other Public Bodies,Enable Trust,1137.94, 23-Nov-2021
1453,Revenue,CAHD,Special ISB,Other Public Bodies,Enable Trust,1137.94, 23-Nov-2021
1454,Revenue,CAHD,Special ISB,Other Public Bodies,Enable Trust,1137.94, 23-Nov-2021
1455,Revenue,CAHD,Special ISB,Other Public Bodies,Enable Trust,1137.94, 23-Nov-2021
1456,Revenue,CAHD,Special ISB,Other Public Bodies,Enable Trust,1137.94, 23-Nov-2021
1457,Revenue,CAHD,Special ISB,Other Public Bodies,Enable Trust,1491.13, 23-Nov-2021
1458,Revenue,CAHD,Special ISB,Other Public Bodies,Enable Trust,1491.13, 23-Nov-2021
1459,Revenue,CAHD,Special ISB,Other Public Bodies,Enable Trust,1137.94, 23-Nov-2021
1460,Revenue,CAHD,Special ISB,Other Public Bodies,Enable Trust,1137.94, 23-Nov-2021
1461,Revenue,CAHD,Special ISB,Other Public Bodies,Enable Trust,2118.90, 23-Nov-2021
1462,Revenue,CAHD,Special ISB,Other Public Bodies,Enable Trust,2118.90, 23-Nov-2021
1463,Revenue,CAHD,Special ISB,Other Public Bodies,Enable Trust,1137.94, 23-Nov-2021
1464,Revenue,CAHD,Special ISB,Other Public Bodies,Enable Trust,1137.94, 23-Nov-2021
1465,Revenue,CAHD,Special ISB,Other Public Bodies,Enable Trust,1137.94, 23-Nov-2021
1466,Revenue,CAHD,Special ISB,Other Public Bodies,Enable Trust,863.27, 23-Nov-2021
1467,Revenue,CAHD,Special ISB,Other Public Bodies,Enable Trust,627.77, 23-Nov-2021
1468,Revenue,CAHD,Special ISB,Other Public Bodies,Enable Trust,2118.90, 23-Nov-2021
1469,Revenue,CAHD,Special ISB,Other Public Bodies,Enable Trust,1491.13, 23-Nov-2021
1470,Revenue,CAHD,Special ISB,Other Public Bodies,Enable Trust,1137.94, 23-Nov-2021
1471,Revenue,CAHD,Special ISB,Other Public Bodies,Enable Trust,863.27, 23-Nov-2021
1472,Revenue,CAHD,Special ISB,Other Public Bodies,Enable Trust,1137.94, 23-Nov-2021
1473,Revenue,CAHD,Special ISB,Other Public Bodies,Enable Trust,1137.94, 23-Nov-2021
1474,Revenue,CAHD,Special ISB,Other Public Bodies,Enable Trust,863.27, 23-Nov-2021
1475,Revenue,CAHD,Special ISB,Other Public Bodies,Enable Trust,2118.90, 23-Nov-2021
1476,Revenue,CAHD,Special ISB,Other Public Bodies,Enable Trust,1137.94, 23-Nov-2021
1477,Revenue,CAHD,Special ISB,Other Public Bodies,Enable Trust,1137.94, 23-Nov-2021
1478,Revenue,CAHD,Special ISB,Other Public Bodies,Enable Trust,863.27, 23-Nov-2021
1479,Revenue,CAHD,Special ISB,Other Public Bodies,Enable Trust,1137.94, 23-Nov-2021
1480,Revenue,CAHD,Special ISB,Other Public Bodies,Enable Trust,863.27, 23-Nov-2021
1481,Revenue,CAHD,Special ISB,Other Public Bodies,Enable Trust,1491.13, 23-Nov-2021
1482,Revenue,CAHD,Special ISB,Other Public Bodies,Enable Trust,1491.13, 23-Nov-2021
1483,Revenue,CAHD,Special ISB,Other Public Bodies,Enable Trust,1648.03, 23-Nov-2021
1484,Revenue,CAHD,Special ISB,Other Public Bodies,Enable Trust,1491.13, 23-Nov-2021
1485,Revenue,CAHD,Special ISB,Other Public Bodies,Enable Trust,863.27, 23-Nov-2021
1486,Revenue,CAHD,Special ISB,Other Public Bodies,Enable Trust,1491.13, 23-Nov-2021
1487,Revenue,CAHD,Special ISB,Other Public Bodies,Enable Trust,1137.94, 23-Nov-2021
1488,Revenue,CAHD,Special ISB,Other Public Bodies,Enable Trust,627.77, 23-Nov-2021
1489,Revenue,CAHD,Special ISB,Other Public Bodies,Enable Trust,1137.94, 23-Nov-2021
1490,Revenue,CAHD,Special ISB,Other Public Bodies,Enable Trust,1137.94, 23-Nov-2021
1491,Revenue,CAHD,Special ISB,Other Public Bodies,Enable Trust,1137.94, 23-Nov-2021
1492,Revenue,CAHD,Special ISB,Other Public Bodies,Enable Trust,863.27, 23-Nov-2021
1493,Revenue,CAHD,Special ISB,Other Public Bodies,Enable Trust,863.27, 23-Nov-2021
1494,Revenue,CAHD,Special ISB,Other Public Bodies,Enable Trust,2432.79, 23-Nov-2021
1495,Revenue,CAHD,Special ISB,Other Public Bodies,Enable Trust,2118.90, 23-Nov-2021
1496,Revenue,CAHD,Special ISB,Other Public Bodies,Enable Trust,627.77, 23-Nov-2021
1497,Revenue,CAHD,Special ISB,Other Public Bodies,Enable Trust,1904.24, 23-Nov-2021
1498,Revenue,CAHD,Special ISB,Other Public Bodies,Enable Trust,1491.13, 23-Nov-2021
1499,Revenue,CAHD,Special ISB,Other Public Bodies,Enable Trust,2118.90, 23-Nov-2021
1500,Revenue,CAHD,Special ISB,Other Public Bodies,Enable Trust,1491.13, 23-Nov-2021
1501,Revenue,CAHD,Special ISB,Other Public Bodies,Enable Trust,1137.94, 23-Nov-2021
1502,Revenue,CAHD,Special ISB,Other Public Bodies,Enable Trust,1137.94, 23-Nov-2021
1503,Revenue,CAHD,Special ISB,Other Public Bodies,Enable Trust,2118.90, 23-Nov-2021
1504,Revenue,CAHD,Special ISB,Other Public Bodies,Enable Trust,1137.94, 23-Nov-2021
1505,Revenue,CAHD,Special ISB,Other Public Bodies,Enable Trust,1137.94, 23-Nov-2021
1506,Revenue,CAHD,Special ISB,Other Public Bodies,Enable Trust,1491.13, 23-Nov-2021
1507,Revenue,CAHD,Special ISB,Other Public Bodies,Enable Trust,1137.94, 23-Nov-2021
1508,Revenue,CAHD,Special ISB,Other Public Bodies,Enable Trust,863.27, 23-Nov-2021
1509,Revenue,CAHD,Special ISB,Other Public Bodies,Enable Trust,1137.94, 23-Nov-2021
1510,Revenue,CAHD,Special ISB,Other Public Bodies,Enable Trust,1491.13, 23-Nov-2021
1511,Revenue,CAHD,Schools Specific Grant Income,Other Public Bodies,Enable Trust,500.00, 19-Nov-2021
1512,Revenue,CAHD,Schools Specific Grant Income,Other Public Bodies,Enable Trust,500.00, 19-Nov-2021
1513,Revenue,CAHD,Special ISB,Other Public Bodies,Enable Trust,5753.44, 23-Nov-2021
1514,Revenue,CAHD,Special ISB,Other Public Bodies,Enable Trust,1137.94, 23-Nov-2021
1515,Revenue,CAHD,Special ISB,Other Public Bodies,Enable Trust,1137.94, 23-Nov-2021
1516,Revenue,CAHD,Special ISB,Other Public Bodies,Enable Trust,1648.03, 23-Nov-2021
1517,Revenue,CAHD,Special ISB,Other Public Bodies,Enable Trust,863.27, 23-Nov-2021
1518,Revenue,CAHD,Special ISB,Other Public Bodies,Enable Trust,863.27, 23-Nov-2021
1519,Revenue,CAHD,Special ISB,Other Public Bodies,Enable Trust,1137.94, 23-Nov-2021
1520,Revenue,CAHD,Special ISB,Other Public Bodies,Enable Trust,1491.13, 23-Nov-2021
1521,Revenue,CAHD,Special ISB,Other Public Bodies,Enable Trust,1137.94, 23-Nov-2021
1522,Revenue,CAHD,Special ISB,Other Public Bodies,Enable Trust,627.77, 23-Nov-2021
1523,Revenue,CAHD,Special ISB,Other Public Bodies,Enable Trust,1137.94, 23-Nov-2021
1524,Revenue,CAHD,Special ISB,Other Public Bodies,Enable Trust,1648.03, 23-Nov-2021
1525,Revenue,CAHD,Special ISB,Other Public Bodies,Enable Trust,1648.03, 23-Nov-2021
1526,Revenue,CAHD,Special ISB,Other Public Bodies,Enable Trust,1648.03, 23-Nov-2021
1527,Revenue,CAHD,Special ISB,Other Public Bodies,Enable Trust,1137.94, 23-Nov-2021
1528,Revenue,CAHD,Special ISB,Other Public Bodies,Enable Trust,1648.03, 23-Nov-2021
1529,Revenue,CAHD,Special ISB,Other Public Bodies,Enable Trust,1648.03, 23-Nov-2021
1530,Revenue,CAHD,Special ISB,Other Public Bodies,Enable Trust,1648.03, 23-Nov-2021
1531,Revenue,CAHD,Special ISB,Other Public Bodies,Enable Trust,1648.03, 23-Nov-2021
1532,Revenue,CAHD,Special ISB,Other Public Bodies,Enable Trust,1137.94, 23-Nov-2021
1533,Revenue,CAHD,Special ISB,Other Public Bodies,Enable Trust,1137.94, 23-Nov-2021
1534,Revenue,CAHD,Special ISB,Other Public Bodies,Enable Trust,1648.03, 23-Nov-2021
1535,Revenue,CAHD,Special ISB,Other Public Bodies,Enable Trust,2118.90, 23-Nov-2021
1536,Revenue,CAHD,Special ISB,Other Public Bodies,Enable Trust,2118.90, 23-Nov-2021
1537,Revenue,CAHD,Special ISB,Other Public Bodies,Enable Trust,2118.90, 23-Nov-2021
1538,Revenue,CAHD,Special ISB,Other Public Bodies,Enable Trust,863.27, 23-Nov-2021
1539,Revenue,CAHD,Special ISB,Other Public Bodies,Enable Trust,1137.94, 23-Nov-2021
1540,Revenue,CAHD,Special ISB,Other Public Bodies,Enable Trust,1137.94, 23-Nov-2021
1541,Revenue,CAHD,Special ISB,Other Public Bodies,Enable Trust,863.27, 23-Nov-2021
1542,Revenue,CAHD,Special ISB,Other Public Bodies,Enable Trust,863.27, 23-Nov-2021
1543,Revenue,CAHD,Special ISB,Other Public Bodies,Enable Trust,1648.03, 23-Nov-2021
1544,Revenue,CAHD,Special ISB,Other Public Bodies,Enable Trust,863.27, 23-Nov-2021
1545,Revenue,CAHD,Special ISB,Other Public Bodies,Enable Trust,863.27, 23-Nov-2021
1546,Revenue,CAHD,Special ISB,Other Public Bodies,Enable Trust,1648.03, 23-Nov-2021
1547,Revenue,CAHD,Special ISB,Other Public Bodies,Enable Trust,1137.94, 23-Nov-2021
1548,Revenue,CAHD,Special ISB,Other Public Bodies,Enable Trust,1648.03, 23-Nov-2021
1549,Revenue,CAHD,Special ISB,Other Public Bodies,Enable Trust,863.27, 23-Nov-2021
1550,Revenue,CAHD,Special ISB,Other Public Bodies,Enable Trust,1137.94, 23-Nov-2021
1551,Revenue,CAHD,Special ISB,Other Public Bodies,Enable Trust,3451.76, 23-Nov-2021
1552,Revenue,CAHD,Special ISB,Other Public Bodies,Enable Trust,863.27, 23-Nov-2021
1553,Revenue,CAHD,Special ISB,Other Public Bodies,Enable Trust,1648.03, 23-Nov-2021
1554,Revenue,CAHD,Special ISB,Other Public Bodies,Enable Trust,2432.79, 23-Nov-2021
1555,Revenue,CAHD,Special ISB,Other Public Bodies,Enable Trust,1648.03, 23-Nov-2021
1556,Revenue,CAHD,Special ISB,Other Public Bodies,Enable Trust,863.27, 23-Nov-2021
1557,Revenue,CAHD,Special ISB,Other Public Bodies,Enable Trust,1137.94, 23-Nov-2021
1558,Revenue,CAHD,Special ISB,Other Public Bodies,Enable Trust,1137.94, 23-Nov-2021
1559,Revenue,CAHD,Special ISB,Other Public Bodies,Enable Trust,1137.94, 23-Nov-2021
1560,Revenue,CAHD,Special ISB,Other Public Bodies,Enable Trust,863.27, 23-Nov-2021
1561,Revenue,CAHD,Special ISB,Other Public Bodies,Enable Trust,1648.03, 23-Nov-2021
1562,Revenue,CAHD,Special ISB,Other Public Bodies,Enable Trust,1459.67, 23-Nov-2021
1563,Revenue,CAHD,Special ISB,Other Public Bodies,Enable Trust,1137.94, 23-Nov-2021
1564,Revenue,CAHD,Special ISB,Other Public Bodies,Enable Trust,1648.03, 23-Nov-2021
1565,Revenue,CAHD,Special ISB,Other Public Bodies,Enable Trust,2118.90, 23-Nov-2021
1566,Revenue,CAHD,Special ISB,Other Public Bodies,Enable Trust,1137.94, 23-Nov-2021
1567,Revenue,CAHD,Special ISB,Other Public Bodies,Enable Trust,1271.36, 23-Nov-2021
1568,Revenue,CAHD,Special ISB,Other Public Bodies,Enable Trust,863.27, 23-Nov-2021
1569,Revenue,CAHD,Special ISB,Other Public Bodies,Enable Trust,1137.94, 23-Nov-2021
1570,Revenue,CAHD,Special ISB,Other Public Bodies,Enable Trust,1648.03, 23-Nov-2021
1571,Revenue,CAHD,Special ISB,Other Public Bodies,Enable Trust,627.77, 23-Nov-2021
1572,Revenue,CAHD,Special ISB,Other Public Bodies,Enable Trust,1137.94, 23-Nov-2021
1573,Revenue,CAHD,Special ISB,Other Public Bodies,Enable Trust,1137.94, 23-Nov-2021
1574,Revenue,CAHD,Special ISB,Other Public Bodies,Enable Trust,1137.94, 23-Nov-2021
1575,Revenue,CAHD,Special ISB,Other Public Bodies,Enable Trust,863.27, 23-Nov-2021
1576,Revenue,CAHD,Special ISB,Other Public Bodies,Enable Trust,2118.90, 23-Nov-2021
1577,Revenue,CAHD,Special ISB,Other Public Bodies,Enable Trust,1491.13, 23-Nov-2021
1578,Revenue,CAHD,Special ISB,Other Public Bodies,Enable Trust,1648.03, 23-Nov-2021
1579,Revenue,CAHD,Special ISB,Other Public Bodies,Enable Trust,1137.94, 23-Nov-2021
1580,Revenue,CAHD,Special ISB,Other Public Bodies,Enable Trust,1648.03, 23-Nov-2021
1581,Revenue,CAHD,Special ISB,Other Public Bodies,Enable Trust,2118.90, 23-Nov-2021
1582,Revenue,CAHD,Special ISB,Other Public Bodies,Enable Trust,1648.03, 23-Nov-2021
1583,Revenue,CAHD,Special ISB,Other Public Bodies,Enable Trust,1648.03, 23-Nov-2021
1584,Revenue,CAHD,Special ISB,Other Public Bodies,Enable Trust,1648.03, 23-Nov-2021
1585,Revenue,CAHD,Special ISB,Other Public Bodies,Enable Trust,1491.13, 23-Nov-2021
1586,Revenue,CAHD,Special ISB,Other Public Bodies,Enable Trust,1648.03, 23-Nov-2021
1587,Revenue,CAHD,Special ISB,Other Public Bodies,Enable Trust,1137.94, 23-Nov-2021
1588,Revenue,CAHD,Special ISB,Other Public Bodies,Enable Trust,2118.90, 23-Nov-2021
1589,Revenue,CAHD,Special ISB,Other Public Bodies,Enable Trust,863.27, 23-Nov-2021
1590,Revenue,CAHD,Special ISB,Other Public Bodies,Enable Trust,2118.90, 23-Nov-2021
1591,Revenue,CAHD,Special ISB,Other Public Bodies,Enable Trust,863.27, 23-Nov-2021
1592,Revenue,CAHD,Special ISB,Other Public Bodies,Enable Trust,1137.94, 23-Nov-2021
1593,Revenue,CAHD,Special ISB,Other Public Bodies,Enable Trust,1648.03, 23-Nov-2021
1594,Revenue,CAHD,Special ISB,Other Public Bodies,Enable Trust,1648.03, 23-Nov-2021
1595,Revenue,CAHD,Special ISB,Other Public Bodies,Enable Trust,1137.94, 23-Nov-2021
1596,Revenue,CAHD,Special ISB,Other Public Bodies,Enable Trust,2432.79, 23-Nov-2021
1597,Revenue,CAHD,Special ISB,Other Public Bodies,Enable Trust,1648.03, 23-Nov-2021
1598,Revenue,CAHD,Special ISB,Other Public Bodies,Enable Trust,1137.94, 23-Nov-2021
1599,Revenue,CAHD,Special ISB,Other Public Bodies,Enable Trust,1648.03, 23-Nov-2021
1600,Revenue,CAHD,Special ISB,Other Public Bodies,Enable Trust,863.27, 23-Nov-2021
1601,Revenue,CAHD,Special ISB,Other Public Bodies,Enable Trust,1648.03, 23-Nov-2021
1602,Revenue,CAHD,Special ISB,Other Public Bodies,Enable Trust,2432.79, 23-Nov-2021
1603,Revenue,CAHD,Special ISB,Other Public Bodies,Enable Trust,1648.03, 23-Nov-2021
1604,Revenue,CAHD,Special ISB,Other Public Bodies,Enable Trust,1137.94, 23-Nov-2021
1605,Revenue,CAHD,Special ISB,Other Public Bodies,Enable Trust,863.27, 23-Nov-2021
1606,Revenue,CAHD,Special ISB,Other Public Bodies,Enable Trust,2118.90, 23-Nov-2021
1607,Revenue,CAHD,Special ISB,Other Public Bodies,Enable Trust,1648.03, 23-Nov-2021
1608,Revenue,CAHD,Special ISB,Other Public Bodies,Enable Trust,1137.94, 23-Nov-2021
1609,Revenue,CAHD,Special ISB,Other Public Bodies,Enable Trust,1648.03, 23-Nov-2021
1610,Revenue,CAHD,Special ISB,Other Public Bodies,Enable Trust,1648.03, 23-Nov-2021
1611,Revenue,CAHD,Special ISB,Other Public Bodies,Enable Trust,1137.94, 23-Nov-2021
1612,Revenue,CAHD,Special ISB,Other Public Bodies,Enable Trust,35000.00, 01-Nov-2021
1613,Revenue,CAHD,Schools Specific Grant Income,Other Public Bodies,Endeavour Academy Trust,500.00, 19-Nov-2021
1614,Revenue,CAHD,CSC - Agency Fostering,Foster Parent Allowances,Enhanced Foster Care Limited,4839.10, 11-Nov-2021
1615,Revenue,CAHD,CSC - Agency Fostering,Foster Parent Allowances,Enhanced Foster Care Limited,4839.10, 11-Nov-2021
1616,Revenue,CAHD,North - Community based support,Other Small Contracts,Epiphany In Care,4209.92, 04-Nov-2021
1617,Revenue,CAHD,18-25 Year Olds,Other Small Contracts,Epiphany In Care,647.68, 04-Nov-2021
1618,Revenue,CAHD,South - Commissioned Services,Other Small Contracts,Epiphany In Care,3534.00, 04-Nov-2021
1619,Revenue,CAHD,North - Community based support,Other Small Contracts,Epiphany In Care,4209.92, 04-Nov-2021
1620,Revenue,CAHD,Central - Commissioned Services,Other Small Contracts,Epiphany In Care,1214.40, 11-Nov-2021
1621,Revenue,CAHD,North - Community based support,Other Small Contracts,Epiphany In Care,11074.56, 16-Nov-2021
1622,Revenue,CAHD,18-25 Year Olds,Other Small Contracts,Epiphany In Care,647.68, 17-Nov-2021
1623,Revenue,CAHD,Central - Commissioned Services,Permanent Residential,Epworth House,3400.00, 16-Nov-2021
1624,Revenue,CAHD,North - S117,Permanent Residential,Evolve House,3490.20, 16-Nov-2021
1625,Revenue,CAHD,North - S117,Permanent Residential,Evolve House,45245.57, 16-Nov-2021
1626,Revenue,CAHD,North - S117,Permanent Residential,Evolve House,25303.95, 16-Nov-2021
1627,Revenue,CAHD,Placements OLA Special Schools and RB,Other L.A.s - General,Excalibur Academies Trust T/A,2166.56, 22-Nov-2021
1628,Revenue,CAHD,Social Lettings Agency,Prop.Serv. General Repairs,Express Property Services Limited,57.00, 11-Nov-2021
1629,Revenue,CAHD,Social Lettings Agency,Prop.Serv. General Repairs,Express Property Services Limited,191.50, 11-Nov-2021
1630,Revenue,CAHD,Social Lettings Agency,Prop.Serv. General Repairs,Express Property Services Limited,539.00, 11-Nov-2021
1631,Revenue,CAHD,Social Lettings Agency,Prop.Serv. General Repairs,Express Property Services Limited,236.00, 11-Nov-2021
1632,Revenue,CAHD,Social Lettings Agency,Prop.Serv. General Repairs,Express Property Services Limited,345.00, 11-Nov-2021
1633,Revenue,CAHD,Social Lettings Agency,Prop.Serv. General Repairs,Express Property Services Limited,190.20, 11-Nov-2021
1634,Revenue,CAHD,Social Lettings Agency,Prop.Serv. General Repairs,Express Property Services Limited,48.00, 11-Nov-2021
1635,Revenue,CAHD,Social Lettings Agency,Prop.Serv. General Repairs,Express Property Services Limited,485.00, 11-Nov-2021
1636,Revenue,CAHD,Social Lettings Agency,Prop.Serv. General Repairs,Express Property Services Limited,182.89, 11-Nov-2021
1637,Revenue,CAHD,Social Lettings Agency,Prop.Serv. General Repairs,Express Property Services Limited,93.00, 11-Nov-2021
1638,Revenue,CAHD,Social Lettings Agency,Prop.Serv. General Repairs,Express Property Services Limited,145.00, 11-Nov-2021
1639,Revenue,CAHD,Social Lettings Agency,Prop.Serv. General Repairs,Express Property Services Limited,443.50, 11-Nov-2021
1640,Revenue,CAHD,Social Lettings Agency,Prop.Serv. General Repairs,Express Property Services Limited,465.00, 11-Nov-2021
1641,Revenue,CAHD,Social Lettings Agency,Prop.Serv. General Repairs,Express Property Services Limited,540.00, 11-Nov-2021
1642,Revenue,CAHD,Learning Difficulties PSL,Prop.Serv. General Repairs,Express Property Services Limited,189.99, 11-Nov-2021
1643,Revenue,CAHD,Homeless - Private Sector Leasing,Prop.Serv. General Repairs,Express Property Services Limited,58.49, 11-Nov-2021
1644,Revenue,CAHD,North - Community based support,Permanent Residential,Eyre Court,5430.00, 16-Nov-2021
1645,Revenue,CAHD,Community Support - South,Preventative Assistance,Individual,500.00, 29-Nov-2021
1646,Revenue,CAHD,Post 16 High Needs Placements,Other Private Contractors,Fairfield Farm Trust,21099.13, 04-Nov-2021
1647,Revenue,CAHD,Post 16 High Needs Placements,Other Private Contractors,Fairfield Farm Trust,18172.00, 05-Nov-2021
1648,Revenue,CAHD,South - Commissioned Services,Permanent Nursing,Fairview Court,3976.16, 16-Nov-2021
1649,Revenue,CAHD,South Glos Users in South Glos Homes,Permanent Nursing,Fairview Court,750.40, 16-Nov-2021
1650,Revenue,CAHD,South Glos Users in South Glos Homes,Permanent Nursing,Fairview Court,750.40, 16-Nov-2021
1651,Revenue,CAHD,South - Commissioned Services,Respite Planned - Nursing,Fairview Court,12514.29, 16-Nov-2021
1652,Revenue,CAHD,South Glos Users in South Glos Homes,Permanent Nursing,Fairview Court,2170.80, 16-Nov-2021
1653,Revenue,CAHD,South - Commissioned Services,Respite Planned - Nursing,Fairview Court,1371.43, 16-Nov-2021
1654,Revenue,CAHD,South Glos Users in South Glos Homes,Permanent Nursing,Fairview Court,750.40, 16-Nov-2021
1655,Revenue,CAHD,South Glos Users in South Glos Homes,Permanent Nursing,Fairview Court,750.40, 16-Nov-2021
1656,Revenue,CAHD,Central - Commissioned Services,Permanent Nursing,Fairview Court,4800.00, 16-Nov-2021
1657,Revenue,CAHD,South Glos Users in South Glos Homes,Permanent Nursing,Fairview Court,750.40, 16-Nov-2021
1658,Revenue,CAHD,South - Commissioned Services,Permanent Nursing,Fairview Court,5545.60, 16-Nov-2021
1659,Revenue,CAHD,South Glos Users in South Glos Homes,Permanent Nursing,Fairview Court,750.40, 16-Nov-2021
1660,Revenue,CAHD,South - S117,Permanent Nursing,Fairview Court,4355.24, 16-Nov-2021
1661,Revenue,CAHD,South Glos Users in South Glos Homes,Permanent Nursing,Fairview Court,750.40, 16-Nov-2021
1662,Revenue,CAHD,South - Commissioned Services,Respite Planned - Nursing,Fairview Court,4800.00, 16-Nov-2021
1663,Revenue,CAHD,South - Commissioned Services,Respite Planned - Nursing,Fairview Court,1028.57, 16-Nov-2021
1664,Revenue,CAHD,North - Community based support,Permanent Nursing,Fairview Court,4800.00, 16-Nov-2021
1665,Revenue,CAHD,North - Community based support,Permanent Nursing,Fairview Court,1885.71, 16-Nov-2021
1666,Revenue,CAHD,South - Commissioned Services,Permanent Nursing,Fairview Court,4078.24, 16-Nov-2021
1667,Revenue,CAHD,South Glos Users in South Glos Homes,Permanent Nursing,Fairview Court,750.40, 16-Nov-2021
1668,Revenue,CAHD,South Glos Users in South Glos Homes,Permanent Nursing,Fairview Court,750.40, 16-Nov-2021
1669,Revenue,CAHD,South Glos Users in South Glos Homes,Permanent Nursing,Fairview Court,3135.60, 16-Nov-2021
1670,Revenue,CAHD,South Glos Users in South Glos Homes,Permanent Nursing,Fairview Court,750.40, 16-Nov-2021
1671,Revenue,CAHD,South Glos Users in South Glos Homes,Permanent Nursing,Fairview Court,750.40, 16-Nov-2021
1672,Revenue,CAHD,South Glos Users in South Glos Homes,Permanent Nursing,Fairview Court,750.40, 16-Nov-2021
1673,Revenue,CAHD,South - Commissioned Services,Permanent Nursing,Fairview Court,4800.00, 16-Nov-2021
1674,Revenue,CAHD,South Glos Users in South Glos Homes,Permanent Nursing,Fairview Court,750.40, 16-Nov-2021
1675,Revenue,CAHD,South Glos Users in South Glos Homes,Permanent Nursing,Fairview Court,750.40, 16-Nov-2021
1676,Revenue,CAHD,South Glos Users in South Glos Homes,Permanent Nursing,Fairview Court,750.40, 16-Nov-2021
1677,Revenue,CAHD,South - Commissioned Services,Permanent Nursing,Fairview Court,4910.40, 16-Nov-2021
1678,Revenue,CAHD,South Glos Users in South Glos Homes,Permanent Nursing,Fairview Court,750.40, 16-Nov-2021
1679,Revenue,CAHD,South Glos Users in South Glos Homes,Permanent Nursing,Fairview Court,750.40, 16-Nov-2021
1680,Revenue,CAHD,South - Commissioned Services,Permanent Nursing,Fairview Court,3887.40, 16-Nov-2021
1681,Revenue,CAHD,South Glos Users in South Glos Homes,Permanent Nursing,Fairview Court,750.40, 16-Nov-2021
1682,Revenue,CAHD,North - Community based support,Permanent Residential,Fairview Court,3397.84, 16-Nov-2021
1683,Revenue,CAHD,South - Commissioned Services,Permanent Nursing,Fairview Court,4232.92, 16-Nov-2021
1684,Revenue,CAHD,South Glos Users in South Glos Homes,Permanent Nursing,Fairview Court,750.40, 16-Nov-2021
1685,Revenue,CAHD,South - Commissioned Services,Respite Planned - Nursing,Fairview Court,7200.00, 16-Nov-2021
1686,Revenue,CAHD,South Glos Users in South Glos Homes,Permanent Nursing,Fairview Court,750.40, 16-Nov-2021
1687,Revenue,CAHD,South - Commissioned Services,Permanent Nursing,Fairview Court,4800.00, 16-Nov-2021
1688,Revenue,CAHD,South Glos Users in South Glos Homes,Permanent Nursing,Fairview Court,750.40, 16-Nov-2021
1689,Revenue,CAHD,South Glos Users in South Glos Homes,Permanent Nursing,Fairview Court,750.40, 16-Nov-2021
1690,Revenue,CAHD,South Glos Users in South Glos Homes,Permanent Nursing,Fairview Court,750.40, 16-Nov-2021
1691,Revenue,CAHD,South - Commissioned Services,Permanent Nursing,Fairview Court,5237.76, 16-Nov-2021
1692,Revenue,CAHD,South Glos Users in South Glos Homes,Permanent Nursing,Fairview Court,750.40, 16-Nov-2021
1693,Revenue,CAHD,South Glos Users in South Glos Homes,Permanent Nursing,Fairview Court,750.40, 16-Nov-2021
1694,Revenue,CAHD,South - Commissioned Services,Permanent Residential,Fairview Court,4545.48, 16-Nov-2021
1695,Revenue,CAHD,South Glos Users in South Glos Homes,Permanent Nursing,Fairview Court,750.40, 16-Nov-2021
1696,Revenue,CAHD,South Glos Users in South Glos Homes,Permanent Nursing,Fairview Court,750.40, 16-Nov-2021
1697,Revenue,CAHD,South Glos Users in South Glos Homes,Permanent Nursing,Fairview Court,1849.20, 16-Nov-2021
1698,Revenue,CAHD,South Glos Users in South Glos Homes,Permanent Nursing,Fairview Court,750.40, 16-Nov-2021
1699,Revenue,CAHD,South - Commissioned Services,Permanent Nursing,Fairview Court,3635.08, 16-Nov-2021
1700,Revenue,CAHD,South Glos Users in South Glos Homes,Permanent Nursing,Fairview Court,750.40, 16-Nov-2021
1701,Revenue,CAHD,South - Commissioned Services,Permanent Nursing,Fairview Court,3701.96, 16-Nov-2021
1702,Revenue,CAHD,South Glos Users in South Glos Homes,Permanent Nursing,Fairview Court,750.40, 16-Nov-2021
1703,Revenue,CAHD,South - Commissioned Services,Permanent Nursing,Fairview Court,4232.92, 16-Nov-2021
1704,Revenue,CAHD,South Glos Users in South Glos Homes,Permanent Nursing,Fairview Court,750.40, 16-Nov-2021
1705,Revenue,CAHD,Covid - ASC - Infection Control,Grants to Voluntary Bodies,Fairview Court,8219.48, 30-Nov-2021
1706,Revenue,CAHD,ASC Rapid Testing Fund,Grants to Voluntary Bodies,Fairview Court,5840.34, 30-Nov-2021
1707,Revenue,CAHD,Covid - Vaccines,Grants to Voluntary Bodies,Fairview Court,718.06, 30-Nov-2021
1708,Revenue,CAHD,South - Commissioned Services,Permanent Residential,Fairview House,3800.00, 16-Nov-2021
1709,Revenue,CAHD,South - Commissioned Services,Permanent Residential,Fairview House,2403.64, 16-Nov-2021
1710,Revenue,CAHD,Central - Commissioned Services,Permanent Residential,Fairview House,3400.00, 16-Nov-2021
1711,Revenue,CAHD,South - Commissioned Services,Permanent Residential,Fairview House,3478.20, 16-Nov-2021
1712,Revenue,CAHD,North - Community based support,Permanent Residential,Fairview House,3800.00, 16-Nov-2021
1713,Revenue,CAHD,North - Community based support,Fees & Charges Income - General,Fairview House,10024.68, 16-Nov-2021
1714,Revenue,CAHD,South - Commissioned Services,Permanent Residential,Fairview House,3600.00, 16-Nov-2021
1715,Revenue,CAHD,South - Commissioned Services,Permanent Residential,Fairview House,3800.00, 16-Nov-2021
1716,Revenue,CAHD,Central - Commissioned Services,Permanent Residential,Fairview House,3800.00, 16-Nov-2021
1717,Revenue,CAHD,Covid - ASC - Infection Control,Grants to Voluntary Bodies,Fairview House,4025.87, 30-Nov-2021
1718,Revenue,CAHD,ASC Rapid Testing Fund,Grants to Voluntary Bodies,Fairview House,2860.57, 30-Nov-2021
1719,Revenue,CAHD,North - Community based support,Permanent Residential,Faith House,3263.72, 16-Nov-2021
1720,Revenue,CAHD,North - Community based support,Permanent Residential,Faith House,3414.00, 16-Nov-2021
1721,Revenue,CAHD,South - Commissioned Services,Permanent Residential,Faith House,3965.36, 16-Nov-2021
1722,Revenue,CAHD,Covid - ASC - Infection Control,Grants to Voluntary Bodies,Faith House,1677.44, 30-Nov-2021
1723,Revenue,CAHD,ASC Rapid Testing Fund,Grants to Voluntary Bodies,Faith House,1191.91, 30-Nov-2021
1724,Revenue,CAHD,CSC - Parent & Child Assessments,Foster Parent Allowances,Families First (SW) Ltd,7269.90, 26-Nov-2021
1725,Revenue,CAHD,CSC - Agency Fostering,Foster Parent Allowances,Family Placement com,751.10, 30-Nov-2021
1726,Revenue,CAHD,Post 16 High Needs Placements,Other Private Contractors,Farleigh FEC-Frome Priory,25160.13, 04-Nov-2021
1727,Revenue,CAHD,CSC - Fostering Carer Support,Care Mgt/Asesmnt Staff Pay,Individual,2014.85, 26-Nov-2021
1728,Revenue,CAHD,Central - Commissioned Services,Permanent Nursing,Field House Care Home,3840.00, 16-Nov-2021
1729,Revenue,CAHD,North - Community based support,Permanent Nursing,Field House Care Home,3589.48, 16-Nov-2021
1730,Revenue,CAHD,Central - Commissioned Services,Permanent Nursing,Field House Care Home,3760.00, 16-Nov-2021
1731,Revenue,CAHD,North - Community based support,Permanent Nursing,Field House Care Home,2320.12, 16-Nov-2021
1732,Revenue,CAHD,Central - Commissioned Services,Permanent Nursing,Field House Care Home,3740.00, 16-Nov-2021
1733,Revenue,CAHD,North - Community based support,Permanent Nursing,Field House Care Home,2320.12, 16-Nov-2021
1734,Revenue,CAHD,North - Community based support,Permanent Nursing,Field House Care Home,3506.00, 16-Nov-2021
1735,Revenue,CAHD,Statemented Support Payments to OLAs,Other L.A.s - General,Filton Avenue Primary School,1131.84, 22-Nov-2021
1736,Revenue,CAHD,Statemented Support Payments to OLAs,Other L.A.s - General,Filton Avenue Primary School,1332.27, 22-Nov-2021
1737,Revenue,CAHD,South - Commissioned Services,Permanent Nursing,First Floor  Lingfield House,3846.48, 16-Nov-2021
1738,Revenue,CAHD,South Glos Users in South Glos Homes,Permanent Nursing,First Floor  Lingfield House,750.40, 16-Nov-2021
1739,Revenue,CAHD,South - Commissioned Services,Permanent Nursing,First Floor  Lingfield House,3480.00, 16-Nov-2021
1740,Revenue,CAHD,South - Commissioned Services,Respite Planned - Nursing,First Floor  Lingfield House,5774.29, 16-Nov-2021
1741,Revenue,CAHD,South - Commissioned Services,Respite Planned - Nursing,First Floor  Lingfield House,3357.14, 16-Nov-2021
1742,Revenue,CAHD,South - Commissioned Services,Respite Planned - Nursing,First Floor  Lingfield House,2282.86, 16-Nov-2021
1743,Revenue,CAHD,South - Commissioned Services,Permanent Residential,First Floor  Lingfield House,3560.00, 16-Nov-2021
1744,Revenue,CAHD,North - Community based support,Permanent Nursing,First Floor  Lingfield House,3760.00, 16-Nov-2021
1745,Revenue,CAHD,North - Community based support,Permanent Nursing,First Floor  Lingfield House,1880.00, 16-Nov-2021
1746,Revenue,CAHD,South - Commissioned Services,Permanent Nursing,First Floor  Lingfield House,2613.12, 16-Nov-2021
1747,Revenue,CAHD,South Glos Users in South Glos Homes,Permanent Nursing,First Floor  Lingfield House,750.40, 16-Nov-2021
1748,Revenue,CAHD,South - Commissioned Services,Permanent Nursing,First Floor  Lingfield House,3760.00, 16-Nov-2021
1749,Revenue,CAHD,South Glos Users in South Glos Homes,Permanent Nursing,First Floor  Lingfield House,750.40, 16-Nov-2021
1750,Revenue,CAHD,South Glos Users in South Glos Homes,Permanent Nursing,First Floor  Lingfield House,750.40, 16-Nov-2021
1751,Revenue,CAHD,South - Commissioned Services,Permanent Nursing,First Floor  Lingfield House,3760.00, 16-Nov-2021
1752,Revenue,CAHD,South Glos Users in South Glos Homes,Permanent Nursing,First Floor  Lingfield House,750.40, 16-Nov-2021
1753,Revenue,CAHD,South - Commissioned Services,Permanent Nursing,First Floor  Lingfield House,3480.00, 16-Nov-2021
1754,Revenue,CAHD,Covid 19- Spend on behalf of NHS,Respite Planned - Nursing,First Floor  Lingfield House,5700.00, 16-Nov-2021
1755,Revenue,CAHD,South - Commissioned Services,Permanent Residential,First Floor  Lingfield House,3360.00, 16-Nov-2021
1756,Revenue,CAHD,South - Commissioned Services,Permanent Nursing,First Floor  Lingfield House,3760.00, 16-Nov-2021
1757,Revenue,CAHD,South - Commissioned Services,Permanent Nursing,First Floor  Lingfield House,2685.71, 16-Nov-2021
1758,Revenue,CAHD,South - Commissioned Services,Fees & Charges Income - General,First Floor  Lingfield House,4929.09, 16-Nov-2021
1759,Revenue,CAHD,Covid - ASC - Infection Control,Grants to Voluntary Bodies,First Floor  Lingfield House,4025.87, 30-Nov-2021
1760,Revenue,CAHD,ASC Rapid Testing Fund,Grants to Voluntary Bodies,First Floor  Lingfield House,2860.57, 30-Nov-2021
1761,Revenue,CAHD,North - Community based support,Permanent Residential,First Floor  Q4  The Square,9099.40, 16-Nov-2021
1762,Revenue,CAHD,Jointly Funded H&SC Packages,Permanent Residential,First Floor  Q4  The Square,5728.52, 16-Nov-2021
1763,Revenue,CAHD,North - Community based support,Permanent Residential,First Floor  Q4  The Square,9030.88, 16-Nov-2021
1764,Revenue,CAHD,Jointly Funded H&SC Packages,Permanent Residential,First Floor  Q4  The Square,2639.56, 16-Nov-2021
1765,Revenue,CAHD,EARLY YEARS DEPRIVATION PAYMENT,Preventative Assistance,First Friends (Mangotsfield),519.18, 12-Nov-2021
1766,Revenue,CAHD,EARLY YEARS DEPRIVATION PAYMENT,Preventative Assistance,First Step Pre-School Ltd,538.08, 12-Nov-2021
1767,Revenue,CAHD,CSC - Residential Placements,Permanent Residential,Five Rivers Child Care Limited,29228.57, 26-Nov-2021
1768,Revenue,CAHD,CSC - Agency Fostering,Foster Parent Allowances,Five Rivers Child Care Limited,3627.00, 01-Nov-2021
1769,Revenue,CAHD,CSC - Agency Fostering,Foster Parent Allowances,Five Rivers Child Care Limited,3671.29, 01-Nov-2021
1770,Revenue,CAHD,CSC - Agency Fostering,Foster Parent Allowances,Five Rivers Child Care Limited,2223.76, 01-Nov-2021
1771,Revenue,CAHD,CSC - Agency Fostering,Foster Parent Allowances,Five Rivers Child Care Limited,3597.86, 01-Nov-2021
1772,Revenue,CAHD,CSC - Agency Fostering,Foster Parent Allowances,Five Rivers Child Care Limited,3483.34, 01-Nov-2021
1773,Revenue,CAHD,CSC - Agency Fostering,Foster Parent Allowances,Five Rivers Child Care Limited,3483.34, 01-Nov-2021
1774,Revenue,CAHD,CSC - Residential Placements,Permanent Residential,Five Rivers Child Care Limited,30202.86, 26-Nov-2021
1775,Revenue,CAHD,CSC - Fostering Carer Support,Project Funding,Flipout Limited,1093.81, 22-Nov-2021
1776,Revenue,CAHD,CSC - Agency Fostering,Foster Parent Allowances,Foster Care Associates Limited,2850.00, 08-Nov-2021
1777,Revenue,CAHD,CSC - Agency Fostering,Foster Parent Allowances,Foster Care Associates Limited,2434.12, 12-Nov-2021
1778,Revenue,CAHD,CSC - Asylum Seekers - Unaccompanied,Foster Parent Allowances,Foster Care Associates Limited,2588.81, 12-Nov-2021
1779,Revenue,CAHD,CSC - Agency Fostering,Foster Parent Allowances,Foster Care Associates Limited,3681.25, 12-Nov-2021
1780,Revenue,CAHD,Central - Commissioned Services,Other Small Contracts,Fourways Care Limited,1198.57, 12-Nov-2021
1781,Revenue,CAHD,South - Commissioned Services,Other Small Contracts,Fourways Care Limited,564.28, 12-Nov-2021
1782,Revenue,CAHD,North - Community based support,Other Small Contracts,Fourways Care Limited,8650.76, 12-Nov-2021
1783,Revenue,CAHD,Central - Commissioned Services,Other Small Contracts,Fourways Care Limited,1229.11, 26-Nov-2021
1784,Revenue,CAHD,South - Commissioned Services,Other Small Contracts,Fourways Care Limited,594.82, 26-Nov-2021
1785,Revenue,CAHD,North - Community based support,Other Small Contracts,Fourways Care Limited,8869.63, 26-Nov-2021
1786,Revenue,CAHD,Central - Commissioned Services,Other Small Contracts,Fourways Care Limited,1234.20, 26-Nov-2021
1787,Revenue,CAHD,South - Commissioned Services,Other Small Contracts,Fourways Care Limited,584.64, 26-Nov-2021
1788,Revenue,CAHD,North - Community based support,Other Small Contracts,Fourways Care Limited,8823.82, 26-Nov-2021
1789,Revenue,CAHD,South - Commissioned Services,Other Small Contracts,Freeways Trust Limited,1084.32, 10-Nov-2021
1790,Revenue,CAHD,North - Community based support,Other Small Contracts,Freeways Trust Limited,572.28, 10-Nov-2021
1791,Revenue,CAHD,South - Commissioned Services,Other Small Contracts,Freeways Trust Limited,1204.80, 19-Nov-2021
1792,Revenue,CAHD,Central - Commissioned Services,Other Small Contracts,Freeways Trust Limited,783.12, 19-Nov-2021
1793,Revenue,CAHD,Central - Commissioned Services,Permanent Residential,Freeways Trust Ltd,4059.28, 16-Nov-2021
1794,Revenue,CAHD,Central - Commissioned Services,Permanent Residential,Freeways Trust Ltd,4098.72, 16-Nov-2021
1795,Revenue,CAHD,Central - Commissioned Services,Permanent Residential,Freeways Trust Ltd,4564.92, 16-Nov-2021
1796,Revenue,CAHD,Central - Commissioned Services,Permanent Residential,Freeways Trust Ltd,5270.84, 16-Nov-2021
1797,Revenue,CAHD,North - Community based support,Permanent Residential,Freeways Trust Ltd,4101.56, 16-Nov-2021
1798,Revenue,CAHD,Central - Commissioned Services,Permanent Residential,Freeways Trust Ltd,4379.80, 16-Nov-2021
1799,Revenue,CAHD,South - Commissioned Services,Permanent Residential,Freeways Trust Ltd,4533.88, 16-Nov-2021
1800,Revenue,CAHD,Central - Commissioned Services,Permanent Residential,Freeways Trust Ltd,4098.72, 16-Nov-2021
1801,Revenue,CAHD,Central - Commissioned Services,Permanent Residential,Freeways Trust Ltd,4098.72, 16-Nov-2021
1802,Revenue,CAHD,North - Community based support,Permanent Residential,Freeways Trust Ltd,4101.56, 16-Nov-2021
1803,Revenue,CAHD,Central - Commissioned Services,Permanent Residential,Freeways Trust Ltd,6129.72, 16-Nov-2021
1804,Revenue,CAHD,Covid - ASC - Infection Control,Grants to Voluntary Bodies,Freeways Trust Ltd,2683.91, 30-Nov-2021
1805,Revenue,CAHD,ASC Rapid Testing Fund,Grants to Voluntary Bodies,Freeways Trust Ltd,1907.05, 30-Nov-2021
1806,Revenue,CAHD,Younger MH non-res purchasing,Supported Living,Freeways Trust Ltd,916.80, 16-Nov-2021
1807,Revenue,CAHD,South - Commissioned Services,Supported Living,Freeways Trust Ltd,1971.68, 16-Nov-2021
1808,Revenue,CAHD,North - Community based support,Supported Living,Freeways Trust Ltd,1971.68, 16-Nov-2021
1809,Revenue,CAHD,Central - Commissioned Services,Permanent Residential,Freeways Trust Ltd,3600.00, 16-Nov-2021
1810,Revenue,CAHD,S28A cases,Permanent Residential,Freeways Trust Ltd,6237.68, 16-Nov-2021
1811,Revenue,CAHD,North - Community based support,Permanent Residential,Freeways Trust Ltd,3935.80, 16-Nov-2021
1812,Revenue,CAHD,North - Community based support,Permanent Residential,Freeways Trust Ltd,3452.28, 16-Nov-2021
1813,Revenue,CAHD,North - Community based support,Permanent Residential,Freeways Trust Ltd,3905.88, 16-Nov-2021
1814,Revenue,CAHD,North - Community based support,Permanent Residential,Freeways Trust Ltd,3849.08, 16-Nov-2021
1815,Revenue,CAHD,Section 117 Placements MH Younger,Permanent Residential,Freeways Trust Ltd,3492.00, 16-Nov-2021
1816,Revenue,CAHD,Central - Commissioned Services,Day Care / Social Activities,Frenchay Beckspool Building,1255.20, 16-Nov-2021
1817,Revenue,CAHD,South - Commissioned Services,Day Care / Social Activities,Frenchay Beckspool Building,941.60, 16-Nov-2021
1818,Revenue,CAHD,North - Community based support,Permanent Nursing,Frenchay Park Nursing Home,3400.00, 16-Nov-2021
1819,Revenue,CAHD,North - Community based support,Permanent Nursing,Frenchay Park Nursing Home,3700.00, 16-Nov-2021
1820,Revenue,CAHD,Drug and Alcohol Programme,Other Small Contracts,Frome Valley Medical Centre,1015.00, 05-Nov-2021
1821,Revenue,CAHD,Sexual Health,Other Small Contracts,Frome Valley Medical Centre,2173.50, 12-Nov-2021
1822,Revenue,CAHD,Sexual Health,Other Small Contracts,Frome Valley Medical Centre,1352.40, 12-Nov-2021
1823,Revenue,CAHD,CSC - Asylum Seekers - Unaccompanied,Foster Parent Allowances,Fusion Fostering Ltd,2550.00, 18-Nov-2021
1824,Revenue,CAHD,CSC - Agency Fostering,Foster Parent Allowances,Fusion Fostering Ltd,4073.27, 18-Nov-2021
1825,Revenue,CAHD,CSC - Section 17 0-25,Preventative Assistance,Future Sports Development,600.00, 15-Nov-2021
1826,Revenue,CAHD,Contain Outbreak Mgmt Fund,Other Supplies & Services,GB Sport & Leisure UK Limited,751.40, 19-Nov-2021
1827,Revenue,CAHD,Travel to School (HTST) - Primary,Client Transport,Individual,594.00, 03-Nov-2021
1828,Revenue,CAHD,North - Community based support,Supported Living,Gladstone House,3312.12, 16-Nov-2021
1829,Revenue,CAHD,18-25 Year Olds,Supported Living,Gladstone House,3312.12, 16-Nov-2021
1830,Revenue,CAHD,South - Commissioned Services,Permanent Residential,Gladstone House,5999.84, 16-Nov-2021
1831,Revenue,CAHD,MH Purchasing - Younger,Permanent Residential,Gladstone House,3135.90, 16-Nov-2021
1832,Revenue,CAHD,Jointly Funded H&SC Packages,Permanent Residential,Gladstone House,783.98, 16-Nov-2021
1833,Revenue,CAHD,South - Commissioned Services,Permanent Residential,Glasallt Fawr,5635.08, 16-Nov-2021
1834,Revenue,CAHD,North - Community based support,Permanent Nursing,Glebe House Nursing Home,3823.40, 16-Nov-2021
1835,Revenue,CAHD,South Glos Users in South Glos Homes,Permanent Nursing,Glebe House Nursing Home,750.40, 16-Nov-2021
1836,Revenue,CAHD,North - Community based support,Permanent Nursing,Glebe House Nursing Home,4145.80, 16-Nov-2021
